{"text_format":"1","workbook":"xlsx","n_sheets":11,"sheets":["Ctrl","Dateneingabe","Verfügbarkeit","Vollkosten_V","Ergebnisse","Komponenten","Backup","Report_Futter","Anforderungen","Phasenplan","Optimierung"],"not_rendered":{"charts":0,"images":6,"macros":1,"external_links":0,"defined_names":226,"comments":0,"pivot_tables":0},"unopened":[],"bounds":{"document_bytes":16777216,"sheet_cells":100000,"rows_first":2000,"rows_last":500,"rows_between":2000,"halvings":0,"cell_chars":16384,"cell_head_chars":4096},"cells_cut":0,"cells_raw":0,"read":"whole","date_system":"1900"}

{"sheet":"Ctrl","index":0,"n_rows":35,"n_cols":4,"rows_kept":35,"cut":false,"hidden":false,"merged":[[13,1,13,5],[2,1,3,3],[5,1,6,3],[10,3,10,5],[11,3,11,5]]}
[]
[]
[null,"#Pute@Praxis"]
[]
[]
[null,"Das Puten-Tool"]
[]
[]
[]
[null,null,null,"Bitte auswählen per Dropdown"]
[null,"Vollkosten",null,"Analyse mit Zusatzkosten intakter Schnabel"]
[null,"Futtermitteleingabe",null,"Futterkosten-Optimierer"]
[]
[null,"Haltung von Hennen mit intaktem Schnabel - Wirtschaftlickeitsrechner"]
[]
[]
[]
[]
[]
[]
[]
[]
[]
[]
[]
[]
[]
[]
[]
[]
[null,"weitere gesetzte Maßnahmen"]
[]
[null,null,"Notfallkoffer"]
[]
[null,null,"Zusätzliche Arbeitszeit"]

{"sheet":"Dateneingabe","index":1,"n_rows":43,"n_cols":8,"rows_kept":43,"cut":false,"hidden":false,"merged":[[0,0,0,5]]}
["Dateneingabe Putenmast"]
[]
["Stallplätze",2800,null,"Gewicht",12]
["Leertage/Durchgang",14,null,"L. Beschau",57,"je Durchgang"]
["Verlustrate",5,null,"Verladekosten/DG",20,10]
["Erlös je kg LG",2.7,null,"Zahlungseingang",30,"nach Verkauf"]
["Masttage je Durchgang",100]
[]
["Variable Kosten","Kosten/Stück","Gewicht/St."]
["Küken",7,1]
["Nebenkosten",0.05]
["Reinigen u. Desinfektion",null,1200]
["Wasser","Je Durchgang",60,1]
["Sonstiges","Je Durchgang",0,0.01]
["Stroh","Je Durchgang",1.53,15]
["Weitere Einstreu","Je Durchgang",1.53,15]
["Sonstiges","Je Durchgang",1200]
["Var. Kosten intakter Schnabel","Je Durchgang",0]
["Futtermenge je Tier","kg je Tier",28]
["Mischpreis","€/to",{"$f":"0.45*1000","v":450}]
[]
["Arbeitserledigung",null,"Gesamt","€/Std."]
["Kontrollarbeiten","Je Tag",1.2,20]
["Ausmisten","Je Durchgang",14,20]
["Einstreuen","Je Durchgang",45,20]
[]
["Betriebszweigbezogene Fixkosten"]
["Gas","im Jahr",150,1]
["Strom","im Jahr",150,1]
["Feuer u. Inventar","im Jahr",1200]
["Ertragsausfall","im Jahr",12]
[]
["Festkosten","Anschaffung","Afa in %","Unterhalt","Zinsansatz"]
["Stallgebäude",200000,5,2,3]
["Grundstück",20000,5,2,3]
["Inventar & Technik",10000,10,3,3]
[]
["Verzinssung des Umlaufkapitals",null,"Zinstage"]
["Zinsansatz",3,{"$f":"B7+E6","v":130}]
[]
[]
[]
[null,null,null,null,null,null,null,"Autor: Fa. UNIPLAN www.Georgshof.de"]

{"sheet":"Verfügbarkeit","index":2,"n_rows":77,"n_cols":4,"rows_kept":77,"cut":false,"hidden":false,"merged":[]}
["Komponente","Kategorie","Preis EUR/t","Verfügbarkeit"]
["Mais","Getreide",270]
["Weizen","Getreide",220]
["Gerste","Getreide",200]
["Triticale","Getreide",200]
["Roggen","Getreide",190]
["Hafer","Getreide",210]
["Maiskleberfutter","Getreidenebenprodukt",230]
["Maisklebermehl","Getreidenebenprodukt",650]
["Weizenkleie","Getreidenebenprodukt",210]
["Weizenschrot","Getreide",220]
["Gerstenschrot","Getreide",210]
["Komponente","Kategorie","Preis EUR/t","Verfügbarkeit"]
["Sojaschrot 48","Eiweißträger",400]
["Sojaschrot 44","Eiweißträger",370]
["Rapskuchen","Eiweißträger",290]
["Rapsschrot","Eiweißträger",260]
["Sonnenblumenschrot 33","Eiweißträger",270]
["Sonnenblumenexpeller","Eiweißträger",300]
["Ackerbohnen","Eiweißträger",320]
["Erbsen","Eiweißträger",300]
["Lupinen weiß","Eiweißträger",380]
["Lupinen blau","Eiweißträger",360]
["Komponente","Kategorie","Preis EUR/t","Verfügbarkeit"]
["Geflügelproteinmehl","Tierisches Protein",1200]
["Blutplasma","Tierisches Protein",4000]
["Blutmehl","Tierisches Protein",1400]
["Fischmehl","Tierisches Protein",1900]
["Komponente","Kategorie","Preis EUR/t","Verfügbarkeit"]
["Pflanzenöl","Öl/Fett",1200]
["Rapsöl","Öl/Fett",1100]
["Sojaöl","Öl/Fett",1150]
["Palmöl","Öl/Fett",1050]
["Tierfett","Öl/Fett",950]
["Komponente","Kategorie","Preis EUR/t","Verfügbarkeit"]
["Melasse","Nebenprodukt Energie",220]
["Zuckerrübenschnitzel (trocken)","Nebenprodukt Energie",300]
["Bierhefe","Nebenprodukt Eiweiß",650]
["Biertreber (trocken)","Nebenprodukt Eiweiß",250]
["Kartoffelprotein","Nebenprodukt Eiweiß",750]
["Kartoffeldampfschälprodukte","Nebenprodukt Energie",180]
["Mais-DDGS","DDGS",280]
["Weizen-DDGS","DDGS",270]
["Komponente","Kategorie","Preis EUR/t","Verfügbarkeit"]
["Kalkstein","Mineral",90]
["Monocalciumphosphat (MCP)","Mineral",580]
["Dicalciumphosphat (DCP)","Mineral",520]
["Dinatriumphosphat","Mineral",1600]
["Natriumbikarbonat","Mineral",750]
["Natriumchlorid (Salz)","Mineral",120]
["Magnesiumoxid","Mineral",950]
["Komponente","Kategorie","Preis EUR/t","Verfügbarkeit"]
["L-Lysin","Aminosäure",2100]
["DL-Methionin","Aminosäure",3200]
["L-Threonin","Aminosäure",2800]
["L-Tryptophan","Aminosäure",9000]
["Valin","Aminosäure",4500]
["Isoleucin","Aminosäure",4800]
["Arginin","Aminosäure",6000]
["Komponente","Kategorie","Preis EUR/t","Verfügbarkeit"]
["Geflügel-Premix","Premix",1600]
["Puten-Premix","Premix",1700]
["Broiler-Premix","Premix",1700]
["Legehennen-Premix","Premix",1500]
["Schwein-Mast-Premix","Premix",1300]
["Sauen-Premix","Premix",1400]
["Rinder-Premix","Premix",1200]
["Kälber-Premix","Premix",1800]
["Komponente","Kategorie","Preis EUR/t","Verfügbarkeit"]
["Enzym-Mix","Zusatzstoff",12000]
["Phytase","Zusatzstoff",10000]
["Kokzidiostatikum","Zusatzstoff",15000]
["Buttersäuresalz","Zusatzstoff",2500]
["Organische Säuren","Zusatzstoff",1400]
["Toxinbinder","Zusatzstoff",2800]
["Hefekulturen","Zusatzstoff",3200]
["Pansenstabilisator","Zusatzstoff",2700]

{"sheet":"Vollkosten_V","index":3,"n_rows":52,"n_cols":3,"rows_kept":52,"cut":false,"hidden":true,"merged":[]}
[null,"Baseline","Szenario"]
["Eingestallte Tiere je DG",{"$f":"Dateneingabe!B3","v":2800},{"$f":"B2","v":2800}]
["Verkaufte Tiere je DG",{"$f":"B2*(1-Dateneingabe!B5/100)","v":2660},{"$f":"B3-Backup!G11","v":2658}]
["Lebendgewicht je Tier (kg)",{"$f":"Dateneingabe!E3","v":12},12]
["Verkaufte kg LG je DG",{"$f":"B3*B4","v":31920},{"$f":"C3*C4","v":31896}]
[]
["Erlös je kg LG",{"$f":"Dateneingabe!B6","v":2.7},2.7]
["Bruttoerlös je DG",{"$f":"B5*B7","v":86184},{"$f":"C5*C7","v":86119.200000000012}]
["Beschau je DG",{"$f":"Dateneingabe!E4","v":57},57]
["Verladekosten je DG",{"$f":"Dateneingabe!E5*Dateneingabe!F5","v":200},200]
[{"$f":"IF(Backup!B6=1,\"Nettoerlös je DG\",\"Nettoerlös je DG mit Verlusten\")","v":"Nettoerlös je DG mit Verlusten"},{"$f":"B8-B9-B10","v":85927},{"$f":"C8-C9-C10","v":85862.200000000012}]
["Nettoerlös je kg LG",{"$f":"B11/B5","v":2.6919486215538848},{"$f":"C11/C5","v":2.6919425633308256}]
[]
["Kükenkosten je DG",{"$f":"B2*Dateneingabe!B10","v":19600},19600]
["Nebenkosten je DG",{"$f":"B2*Dateneingabe!B11","v":140},140]
["Summe tierbezogene variable Kosten je DG",{"$f":"B14+B15","v":19740},19740]
["Tierbezogene variable Kosten je kg LG",{"$f":"B16/B5","v":0.61842105263157898},0.61842105263157898]
[]
[{"$f":"IF(Backup!B5=1,\"Futterkosten\",\"Futterkosten optimiert\")","v":"Futterkosten optimiert"},{"$f":"Dateneingabe!C19*Dateneingabe!B3*(Dateneingabe!C20/1000)","v":35280},{"$f":"IF(Backup!B5=1,Dateneingabe!C19*Dateneingabe!B3*(Dateneingabe!C20/1000),Dateneingabe!B3*Report_Futter!$F$8)","v":17420.979686538227}]
["Reinigen & Desinfektion je DG",{"$f":"Dateneingabe!C12","v":1200},1200]
["Wasser je DG",{"$f":"Dateneingabe!C13*Dateneingabe!D13","v":60},60]
["Stroh je DG",{"$f":"Dateneingabe!C15*Dateneingabe!D15","v":22.95},{"$f":"B22+Backup!F13","v":44.254347826086956}]
["Weitere Einstreu je DG",{"$f":"Dateneingabe!C16*Dateneingabe!D16","v":22.95},22.95]
["Sonstiges 1 je DG",{"$f":"Dateneingabe!C17","v":1200},1200]
["Sonstiges 2 je DG",{"$f":"Dateneingabe!C18","v":0},{"$f":"Backup!F9+Backup!F10+Backup!F15+Backup!F16+Backup!F17+Backup!F18+Backup!F19+Backup!F20+Backup!F21","v":2677.1133807498081}]
["Summe variable Durchgangskosten je DG",{"$f":"SUM(B19:B25)","v":37785.899999999994},{"$f":"SUM(C19:C25)","v":22625.297415114124}]
["Variable Durchgangskosten je kg LG",{"$f":"B26/B5","v":1.1837687969924811},{"$f":"C26/C5","v":0.70934591845730266}]
[]
["Summe Arbeit je DG",{"$f":"Dateneingabe!C23*Dateneingabe!B7*Dateneingabe!D23+Dateneingabe!C24*Dateneingabe!D24+Dateneingabe!C25*Dateneingabe!D25","v":3580},{"$f":"((Dateneingabe!C23*Dateneingabe!B7+Backup!F22/60)*Dateneingabe!D23+Dateneingabe!C24*Dateneingabe!D24+Dateneingabe!C25*Dateneingabe!D25)","v":3636}]
["Arbeitskosten je kg LG",{"$f":"B29/B5","v":0.11215538847117794},{"$f":"C29/C5","v":0.11399548532731377}]
[]
["Durchgänge je Jahr",{"$f":"365/(Dateneingabe!B7+Dateneingabe!B4)","v":3.2017543859649122},3.2017543859649122]
[]
["Summe betriebszweigbezogene Fixkosten je Jahr",{"$f":"Dateneingabe!C28*Dateneingabe!D28+Dateneingabe!C29*Dateneingabe!D29+Dateneingabe!C30+Dateneingabe!C31","v":1512},{"$f":"B34","v":1512}]
["Summe betriebszweigbezogene Fixkosten je DG",{"$f":"B34/B32","v":472.24109589041097},472.24109589041097]
["... je kg LG",{"$f":"B35/B5","v":1.4794520547945207E-2},1.4794520547945207E-2]
[]
["AfA je Jahr (Summe)",{"$f":"(Dateneingabe!B34*Dateneingabe!C34)/100+(Dateneingabe!B35*Dateneingabe!C35)/100+(Dateneingabe!B36*Dateneingabe!C36)/100","v":12000},{"$f":"((Dateneingabe!B36+Backup!G14)*Dateneingabe!C36)/100+(Dateneingabe!B35*Dateneingabe!C35)/100+(Dateneingabe!B34*Dateneingabe!C34)/100","v":14324.015354231116}]
["Unterhalt je Jahr (Gebäude+Grundstück+Inventar)",{"$f":"Dateneingabe!B34*Dateneingabe!D34/100+Dateneingabe!B35*Dateneingabe!D35/100+Dateneingabe!B36*Dateneingabe!D36/100","v":4700},{"$f":"(Dateneingabe!B34+Backup!G14)*Dateneingabe!D34/100+Dateneingabe!B35*Dateneingabe!D35/100+Dateneingabe!B36*Dateneingabe!D36/100","v":5164.8030708462229}]
["Zinsen Festkapital je Jahr",{"$f":"Dateneingabe!B34*Dateneingabe!E34/100+Dateneingabe!B35*Dateneingabe!E35/100+Dateneingabe!B36*Dateneingabe!E36/100","v":6900},{"$f":"(Dateneingabe!B36+Backup!G14)*Dateneingabe!E36/100+Dateneingabe!B35*Dateneingabe!E35/100+Dateneingabe!B34*Dateneingabe!E34/100","v":7597.2046062693353}]
["Summe Festkosten (AfA+Unterhalt+Zinsen) je Jahr",{"$f":"B38+B39+B40","v":23600},{"$f":"C38+C39+C40","v":27086.023031346675}]
["Summe Festkosten je DG",{"$f":"B41/B32","v":7370.9589041095887},{"$f":"C41/C32","v":8459.7441796534822}]
["... je kg LG",{"$f":"B42/B5","v":0.2309197651663405},{"$f":"C42/C5","v":0.26522899986372844}]
[]
["verzinsbare Kostenbasis je DG (var + Arbeit)",{"$f":"B16+B26+B29","v":61105.899999999994},61105.899999999994]
["Zinskosten Umlaufkapital je DG",{"$f":"B45*(Dateneingabe!B39/100)*(Dateneingabe!B7+Dateneingabe!E6)/360","v":661.98058333333324},661.98058333333324]
["... je kg LG",{"$f":"B46/B5","v":2.0738740079365076E-2},2.0738740079365076E-2]
[]
["Summe Kosten je DG (var + Arbeit + Fix + Fest + Zins Umlauf)",{"$f":"B16+B26+B29+B35+B42+B46","v":69611.080583333329},69611.080583333329]
["Summe Kosten je kg LG",{"$f":"B49/B5","v":2.1807982638888888},2.1807982638888888]
["Deckungsbeitrag / Gewinn je DG",{"$f":"B11-B49","v":16315.919416666671},16315.919416666671]
["... je kg LG",{"$f":"B12-B50","v":0.51115035766499606},0.51115035766499606]

{"sheet":"Ergebnisse","index":4,"n_rows":52,"n_cols":3,"rows_kept":52,"cut":false,"hidden":false,"merged":[]}
[null,"Baseline","Szenario"]
["Eingestallte Tiere je DG",{"$f":"Dateneingabe!B3","v":2800},{"$f":"B2","v":2800}]
["Verkaufte Tiere je DG",{"$f":"B2*(1-Dateneingabe!B5/100)","v":2660},{"$f":"B3-Backup!G11","v":2658}]
["Lebendgewicht je Tier (kg)",{"$f":"Dateneingabe!E3","v":12},12]
["Verkaufte kg LG je DG",{"$f":"B3*B4","v":31920},{"$f":"C3*C4","v":31896}]
[]
["Erlös je kg LG",{"$f":"Dateneingabe!B6","v":2.7},2.7]
["Bruttoerlös je DG",{"$f":"B5*B7","v":86184},{"$f":"C5*C7","v":86119.200000000012}]
["Beschau je DG",{"$f":"Dateneingabe!E4","v":57},57]
["Verladekosten je DG",{"$f":"Dateneingabe!E5*Dateneingabe!F5","v":200},200]
[{"$f":"IF(Backup!B6=1,\"Nettoerlös je DG\",\"Nettoerlös je DG mit Verlusten\")","v":"Nettoerlös je DG mit Verlusten"},{"$f":"B8-B9-B10","v":85927},{"$f":"C8-C9-C10","v":85862.200000000012}]
["Nettoerlös je kg LG",{"$f":"B11/B5","v":2.6919486215538848},{"$f":"C11/C5","v":2.6919425633308256}]
[]
["Kükenkosten je DG",{"$f":"B2*Dateneingabe!B10","v":19600},19600]
["Nebenkosten je DG",{"$f":"B2*Dateneingabe!B11","v":140},140]
["Summe tierbezogene variable Kosten je DG",{"$f":"B14+B15","v":19740},19740]
["Tierbezogene variable Kosten je kg LG",{"$f":"B16/B5","v":0.61842105263157898},0.61842105263157898]
[]
[{"$f":"IF(Backup!B5=1,\"Futterkosten\",\"Futterkosten optimiert\")","v":"Futterkosten optimiert"},{"$f":"Dateneingabe!C19*Dateneingabe!B3*(Dateneingabe!C20/1000)","v":35280},{"$f":"IF(Backup!B5=1,Dateneingabe!C19*Dateneingabe!B3*(Dateneingabe!C20/1000),Dateneingabe!B3*Report_Futter!$F$8)","v":17420.979686538227}]
["Reinigen & Desinfektion je DG",{"$f":"Dateneingabe!C12","v":1200},1200]
["Wasser je DG",{"$f":"Dateneingabe!C13*Dateneingabe!D13","v":60},60]
["Stroh je DG",{"$f":"Dateneingabe!C15*Dateneingabe!D15","v":22.95},{"$f":"B22+Backup!F13","v":44.254347826086956}]
["Weitere Einstreu je DG",{"$f":"Dateneingabe!C16*Dateneingabe!D16","v":22.95},22.95]
["Sonstiges 1 je DG",{"$f":"Dateneingabe!C17","v":1200},1200]
["Sonstiges 2 je DG",{"$f":"Dateneingabe!C18","v":0},{"$f":"Backup!F9+Backup!F10+Backup!F15+Backup!F16+Backup!F17+Backup!F18+Backup!F19+Backup!F20+Backup!F21","v":2677.1133807498081}]
["Summe variable Durchgangskosten je DG",{"$f":"SUM(B19:B25)","v":37785.899999999994},{"$f":"SUM(C19:C25)","v":22625.297415114124}]
["Variable Durchgangskosten je kg LG",{"$f":"B26/B5","v":1.1837687969924811},{"$f":"C26/C5","v":0.70934591845730266}]
[]
["Summe Arbeit je DG",{"$f":"Dateneingabe!C23*Dateneingabe!B7*Dateneingabe!D23+Dateneingabe!C24*Dateneingabe!D24+Dateneingabe!C25*Dateneingabe!D25","v":3580},{"$f":"((Dateneingabe!C23*Dateneingabe!B7+Backup!F22/60)*Dateneingabe!D23+Dateneingabe!C24*Dateneingabe!D24+Dateneingabe!C25*Dateneingabe!D25)","v":3636}]
["Arbeitskosten je kg LG",{"$f":"B29/B5","v":0.11215538847117794},{"$f":"C29/C5","v":0.11399548532731377}]
[]
["Durchgänge je Jahr",{"$f":"365/(Dateneingabe!B7+Dateneingabe!B4)","v":3.2017543859649122},3.2017543859649122]
[]
["Summe betriebszweigbezogene Fixkosten je Jahr",{"$f":"Dateneingabe!C28*Dateneingabe!D28+Dateneingabe!C29*Dateneingabe!D29+Dateneingabe!C30+Dateneingabe!C31","v":1512},{"$f":"B34","v":1512}]
["Summe betriebszweigbezogene Fixkosten je DG",{"$f":"B34/B32","v":472.24109589041097},472.24109589041097]
["... je kg LG",{"$f":"B35/B5","v":1.4794520547945207E-2},1.4794520547945207E-2]
[]
["AfA je Jahr (Summe)",{"$f":"(Dateneingabe!B34*Dateneingabe!C34)/100+(Dateneingabe!B35*Dateneingabe!C35)/100+(Dateneingabe!B36*Dateneingabe!C36)/100","v":12000},{"$f":"((Dateneingabe!B36+Backup!G14)*Dateneingabe!C36)/100+(Dateneingabe!B35*Dateneingabe!C35)/100+(Dateneingabe!B34*Dateneingabe!C34)/100","v":14324.015354231116}]
["Unterhalt je Jahr (Gebäude+Grundstück+Inventar)",{"$f":"Dateneingabe!B34*Dateneingabe!D34/100+Dateneingabe!B35*Dateneingabe!D35/100+Dateneingabe!B36*Dateneingabe!D36/100","v":4700},{"$f":"(Dateneingabe!B34+Backup!G14)*Dateneingabe!D34/100+Dateneingabe!B35*Dateneingabe!D35/100+Dateneingabe!B36*Dateneingabe!D36/100","v":5164.8030708462229}]
["Zinsen Festkapital je Jahr",{"$f":"Dateneingabe!B34*Dateneingabe!E34/100+Dateneingabe!B35*Dateneingabe!E35/100+Dateneingabe!B36*Dateneingabe!E36/100","v":6900},{"$f":"(Dateneingabe!B36+Backup!G14)*Dateneingabe!E36/100+Dateneingabe!B35*Dateneingabe!E35/100+Dateneingabe!B34*Dateneingabe!E34/100","v":7597.2046062693353}]
["Summe Festkosten (AfA+Unterhalt+Zinsen) je Jahr",{"$f":"B38+B39+B40","v":23600},{"$f":"C38+C39+C40","v":27086.023031346675}]
["Summe Festkosten je DG",{"$f":"B41/B32","v":7370.9589041095887},{"$f":"C41/C32","v":8459.7441796534822}]
["... je kg LG",{"$f":"B42/B5","v":0.2309197651663405},{"$f":"C42/C5","v":0.26522899986372844}]
[]
["verzinsbare Kostenbasis je DG (var + Arbeit)",{"$f":"B16+B26+B29","v":61105.899999999994},61105.899999999994]
["Zinskosten Umlaufkapital je DG",{"$f":"B45*(Dateneingabe!B39/100)*(Dateneingabe!B7+Dateneingabe!E6)/360","v":661.98058333333324},661.98058333333324]
["... je kg LG",{"$f":"B46/B5","v":2.0738740079365076E-2},2.0738740079365076E-2]
[]
["Summe Kosten je DG (var + Arbeit + Fix + Fest + Zins Umlauf)",{"$f":"B16+B26+B29+B35+B42+B46","v":69611.080583333329},69611.080583333329]
["Summe Kosten je kg LG",{"$f":"B49/B5","v":2.1807982638888888},2.1807982638888888]
["Deckungsbeitrag / Gewinn je DG",{"$f":"B11-B49","v":16315.919416666671},16315.919416666671]
["... je kg LG",{"$f":"B12-B50","v":0.51115035766499606},0.51115035766499606]

{"sheet":"Komponenten","index":5,"n_rows":69,"n_cols":14,"rows_kept":69,"cut":false,"hidden":true,"merged":[]}
["Komponente","Kategorie","Preis_€/kg","Verfügbar","ME_MJkg","XP_gkg","Lysin_gkg","Methionin_gkg","MetCys_gkg","Rohfett_gkg","Rohfaser_gkg","Ca_gkg","Pverd_gkg","Na_gkg"]
["Mais","Getreide",{"$f":"Verfügbarkeit!$C2/1000","v":0.27},true,13.5,80,2.7,1.8,3.6,40,20,0.3,2.2000000000000002,0.1]
["Weizen","Getreide",{"$f":"Verfügbarkeit!$C3/1000","v":0.22},true,13.2,115,3.4,1.9,3.5,18,25,0.5,2.5,0.1]
["Gerste","Getreide",{"$f":"Verfügbarkeit!$C4/1000","v":0.2},true,12.8,110,4,1.9,3.6,25,50,0.6,2.2999999999999998,0.1]
["Triticale","Getreide",{"$f":"Verfügbarkeit!$C5/1000","v":0.2},true,13,120,4.2,1.9,3.7,20,25,0.6,2.4,0.1]
["Roggen","Getreide",{"$f":"Verfügbarkeit!$C6/1000","v":0.19},true,12.5,105,3.5,1.8,3.3,20,35,0.5,2.2999999999999998,0.1]
["Hafer","Getreide",{"$f":"Verfügbarkeit!$C7/1000","v":0.21},true,11.5,110,4.5,2,3.9,55,100,0.8,2,0.1]
["Maiskleberfutter","Getreidenebenprodukt",{"$f":"Verfügbarkeit!$C8/1000","v":0.23},true,11.5,210,5,3,5.5,40,120,0.5,3,0.3]
["Maisklebermehl","Getreidenebenprodukt",{"$f":"Verfügbarkeit!$C9/1000","v":0.65},true,12,600,12,18,22,60,20,0.3,4,0.3]
["Weizenkleie","Getreidenebenprodukt",{"$f":"Verfügbarkeit!$C10/1000","v":0.21},true,9,160,5,2.2000000000000002,4.5,45,110,1.3,3,0.3]
["Weizenschrot","Getreide",{"$f":"Verfügbarkeit!$C11/1000","v":0.22},true,13,120,3.5,2,3.7,20,30,0.6,2.5,0.1]
["Gerstenschrot","Getreide",{"$f":"Verfügbarkeit!$C12/1000","v":0.21},true,12.8,110,4,1.9,3.6,25,50,0.6,2.2999999999999998,0.1]
["Sojaschrot 48","Eiweißträger",{"$f":"Verfügbarkeit!$C14/1000","v":0.4},true,12,480,28,6,11,10,35,3,2.5,0.1]
["Sojaschrot 44","Eiweißträger",{"$f":"Verfügbarkeit!$C15/1000","v":0.37},true,11.5,440,25,5.5,10,15,55,3,2.2999999999999998,0.1]
["Rapskuchen","Eiweißträger",{"$f":"Verfügbarkeit!$C16/1000","v":0.28999999999999998},true,11,340,20,6.5,12,80,120,7,4,0.5]
["Rapsschrot","Eiweißträger",{"$f":"Verfügbarkeit!$C17/1000","v":0.26},true,10.5,360,21,7,13,35,120,7,4,0.5]
["Sonnenblumenschrot 33","Eiweißträger",{"$f":"Verfügbarkeit!$C18/1000","v":0.27},false,9,330,13,6.5,11,20,220,3,3,0.3]
["Sonnenblumenexpeller","Eiweißträger",{"$f":"Verfügbarkeit!$C19/1000","v":0.3},false,10,300,12,6,10,80,200,3,3,0.3]
["Ackerbohnen","Eiweißträger",{"$f":"Verfügbarkeit!$C20/1000","v":0.32},true,12,260,18,2.2999999999999998,4.8,15,70,2,2.2999999999999998,0.1]
["Erbsen","Eiweißträger",{"$f":"Verfügbarkeit!$C21/1000","v":0.3},true,12.5,230,17,2,4.3,15,60,1.5,2.1,0.1]
["Lupinen weiß","Eiweißträger",{"$f":"Verfügbarkeit!$C22/1000","v":0.38},true,11,360,21,3.5,6.5,60,150,2.5,2.5,0.1]
["Lupinen blau","Eiweißträger",{"$f":"Verfügbarkeit!$C23/1000","v":0.36},true,10.5,340,20,3.5,6.5,55,160,2.5,2.5,0.1]
["Geflügelproteinmehl","Tierisches Protein",{"$f":"Verfügbarkeit!$C25/1000","v":1.2},true,12,600,40,12,22,120,0,50,30,30]
["Blutplasma","Tierisches Protein",{"$f":"Verfügbarkeit!$C26/1000","v":4},false,14,750,70,6,12,10,0,0.5,3,35]
["Blutmehl","Tierisches Protein",{"$f":"Verfügbarkeit!$C27/1000","v":1.4},false,12.5,850,80,6,10,15,0,1,3,3]
["Fischmehl","Tierisches Protein",{"$f":"Verfügbarkeit!$C28/1000","v":1.9},false,11.5,650,50,18,26,80,0,55,30,30]
["Pflanzenöl","Öl/Fett",{"$f":"Verfügbarkeit!$C30/1000","v":1.2},true,35,0,0,0,0,1000,0,0,0,0]
["Rapsöl","Öl/Fett",{"$f":"Verfügbarkeit!$C31/1000","v":1.1000000000000001},true,35,0,0,0,0,1000,0,0,0,0]
["Sojaöl","Öl/Fett",{"$f":"Verfügbarkeit!$C32/1000","v":1.1499999999999999},true,35,0,0,0,0,1000,0,0,0,0]
["Palmöl","Öl/Fett",{"$f":"Verfügbarkeit!$C33/1000","v":1.05},false,35,0,0,0,0,1000,0,0,0,0]
["Tierfett","Öl/Fett",{"$f":"Verfügbarkeit!$C34/1000","v":0.95},false,33,0,0,0,0,1000,0,0,0,0]
["Melasse","Nebenprodukt Energie",{"$f":"Verfügbarkeit!$C36/1000","v":0.22},true,11.5,60,2,1,2,5,0,7,0.5,5]
["Zuckerrübenschnitzel (trocken)","Nebenprodukt Energie",{"$f":"Verfügbarkeit!$C37/1000","v":0.3},false,10.5,90,5,1.5,3,10,200,7,1,2]
["Bierhefe","Nebenprodukt Eiweiß",{"$f":"Verfügbarkeit!$C38/1000","v":0.65},true,11.5,450,28,6,11,15,50,3,3,3]
["Biertreber (trocken)","Nebenprodukt Eiweiß",{"$f":"Verfügbarkeit!$C39/1000","v":0.25},false,10,230,14,4,8,90,170,4,2.5,2]
["Kartoffelprotein","Nebenprodukt Eiweiß",{"$f":"Verfügbarkeit!$C40/1000","v":0.75},true,10.5,780,60,18,30,5,20,2,3,5]
["Kartoffeldampfschälprodukte","Nebenprodukt Energie",{"$f":"Verfügbarkeit!$C41/1000","v":0.18},false,12,80,4,1.5,3,10,40,2,1,3]
["Mais-DDGS","DDGS",{"$f":"Verfügbarkeit!$C42/1000","v":0.28000000000000003},false,12,300,9,5,9,110,90,2.5,4,3]
["Weizen-DDGS","DDGS",{"$f":"Verfügbarkeit!$C43/1000","v":0.27},true,11.5,320,11,6,10,60,120,2.5,4,3]
["Kalkstein","Mineral",{"$f":"Verfügbarkeit!$C45/1000","v":0.09},true,0,0,0,0,0,0,0,380,0,0]
["Monocalciumphosphat (MCP)","Mineral",{"$f":"Verfügbarkeit!$C46/1000","v":0.57999999999999996},true,0,0,0,0,0,0,0,170,220,0]
["Dicalciumphosphat (DCP)","Mineral",{"$f":"Verfügbarkeit!$C47/1000","v":0.52},true,0,0,0,0,0,0,0,220,180,0]
["Dinatriumphosphat","Mineral",{"$f":"Verfügbarkeit!$C48/1000","v":1.6},true,0,0,0,0,0,0,0,0,190,190]
["Natriumbikarbonat","Mineral",{"$f":"Verfügbarkeit!$C49/1000","v":0.75},false,0,0,0,0,0,0,0,0,0,270]
["Natriumchlorid (Salz)","Mineral",{"$f":"Verfügbarkeit!$C50/1000","v":0.12},true,0,0,0,0,0,0,0,0,0,390]
["Magnesiumoxid","Mineral",{"$f":"Verfügbarkeit!$C51/1000","v":0.95},true,0,0,0,0,0,0,0,0,0,0]
["L-Lysin","Aminosäure",{"$f":"Verfügbarkeit!$C53/1000","v":2.1},true,12,780,780,0,0,0,0,0,0,0]
["DL-Methionin","Aminosäure",{"$f":"Verfügbarkeit!$C54/1000","v":3.2},true,12,600,0,600,600,0,0,0,0,0]
["L-Threonin","Aminosäure",{"$f":"Verfügbarkeit!$C55/1000","v":2.8},true,12,780,0,0,0,0,0,0,0,0]
["L-Tryptophan","Aminosäure",{"$f":"Verfügbarkeit!$C56/1000","v":9},true,12,780,0,0,0,0,0,0,0,0]
["Valin","Aminosäure",{"$f":"Verfügbarkeit!$C57/1000","v":4.5},false,12,780,0,0,0,0,0,0,0,0]
["Isoleucin","Aminosäure",{"$f":"Verfügbarkeit!$C58/1000","v":4.8},false,12,780,0,0,0,0,0,0,0,0]
["Arginin","Aminosäure",{"$f":"Verfügbarkeit!$C59/1000","v":6},true,12,780,0,0,0,0,0,0,0,0]
["Geflügel-Premix","Premix",{"$f":"Verfügbarkeit!$C61/1000","v":1.6},true,0,0,0,0,0,0,0,0,0,0]
["Puten-Premix","Premix",{"$f":"Verfügbarkeit!$C62/1000","v":1.7},true,0,0,0,0,0,0,0,0,0,0]
["Broiler-Premix","Premix",{"$f":"Verfügbarkeit!$C63/1000","v":1.7},true,0,0,0,0,0,0,0,0,0,0]
["Legehennen-Premix","Premix",{"$f":"Verfügbarkeit!$C64/1000","v":1.5},true,0,0,0,0,0,0,0,0,0,0]
["Schwein-Mast-Premix","Premix",{"$f":"Verfügbarkeit!$C65/1000","v":1.3},false,0,0,0,0,0,0,0,0,0,0]
["Sauen-Premix","Premix",{"$f":"Verfügbarkeit!$C66/1000","v":1.4},true,0,0,0,0,0,0,0,0,0,0]
["Rinder-Premix","Premix",{"$f":"Verfügbarkeit!$C67/1000","v":1.2},false,0,0,0,0,0,0,0,0,0,0]
["Kälber-Premix","Premix",{"$f":"Verfügbarkeit!$C68/1000","v":1.8},false,0,0,0,0,0,0,0,0,0,0]
["Enzym-Mix","Zusatzstoff",{"$f":"Verfügbarkeit!$C70/1000","v":12},true,0,0,0,0,0,0,0,0,0,0]
["Phytase","Zusatzstoff",{"$f":"Verfügbarkeit!$C71/1000","v":10},false,0,0,0,0,0,0,0,0,0,0]
["Kokzidiostatikum","Zusatzstoff",{"$f":"Verfügbarkeit!$C72/1000","v":15},true,0,0,0,0,0,0,0,0,0,0]
["Buttersäuresalz","Zusatzstoff",{"$f":"Verfügbarkeit!$C73/1000","v":2.5},true,0,0,0,0,0,0,0,0,0,0]
["Organische Säuren","Zusatzstoff",{"$f":"Verfügbarkeit!$C74/1000","v":1.4},true,0,0,0,0,0,0,0,0,0,0]
["Toxinbinder","Zusatzstoff",{"$f":"Verfügbarkeit!$C75/1000","v":2.8},false,0,0,0,0,0,0,0,0,0,0]
["Hefekulturen","Zusatzstoff",{"$f":"Verfügbarkeit!$C76/1000","v":3.2},false,0,0,0,0,0,0,0,0,0,0]
["Pansenstabilisator","Zusatzstoff",{"$f":"Verfügbarkeit!$C77/1000","v":2.7},false,0,0,0,0,0,0,0,0,0,0]

{"sheet":"Backup","index":6,"n_rows":22,"n_cols":7,"rows_kept":22,"cut":false,"hidden":true,"merged":[]}
["Futtermittelrechner","Futterkosten-Rechner"]
[null,"Futterkosten-Optimierer"]
["Vollkosten","Analyse"]
[null,"Analyse mit Zusatzkosten intakter Schnabel"]
[{"$f":"IF(B5=1,\"Futterkostenrechner\",\"Optimierer\")","v":"Optimierer"},{"$f":"IF(Ctrl!D12=B1,1,2)","v":2}]
["Vollkosten",{"$f":"IF(Ctrl!D11=B3,1,2)","v":2},null,null,null,{"$f":"Dateneingabe!B3","v":2800}]
["Erhöhte Ebene",true,{"$f":"4828/5520","v":0.87463768115942031},null,"Afa",{"$f":"IF(B7=TRUE,C7*$F$6,0)","v":2448.985507246377},"x"]
["Metallmobiles",true,{"$f":"12*18.31/5520","v":3.9804347826086953E-2},null,"Afa",{"$f":"IF(B8=TRUE,C8*$F$6,0)","v":111.45217391304347},"x"]
["Haferspender",true,{"$f":"1377.09/5520","v":0.24947282608695651},null,null,{"$f":"IF(B9=TRUE,C9*$F$6,0)","v":698.52391304347827}]
["Heukörbe",true,{"$f":"(183+175)/5520","v":6.4855072463768121E-2},null,null,{"$f":"IF(B10=TRUE,C10*$F$6,0)","v":181.59420289855075}]
["Tierverluste",true,0.01,0.51,null,{"$f":"IF(B11=TRUE,C11*$F$6,0)","v":28},{"$f":"ROUNDUP(F11/(Vollkosten_V!C4*0.8*Vollkosten_V!C7),0)","v":2}]
["Fluchtboxen",true,1068.6199999999999,null,"je 1500 Tiere",{"$f":"IF(B12=TRUE,C12*ROUNDUP($F$6/1500,0),0)","v":2137.2399999999998}]
["Strohballen",true,{"$f":"42/5520","v":7.6086956521739134E-3},null,null,{"$f":"IF(B13=TRUE,C13*$F$6,0)","v":21.304347826086957}]
["Lichtmanagement",true,{"$f":"11306.59/5520","v":2.0482952898550724},{"$f":"49793.17/7519","v":6.6223128075541959},"Afa",{"$f":"IF(B14=TRUE,D14*$F$6,0)","v":18542.47586115175},{"$f":"+F7+F14+F8+F12","v":23240.153542311171}]
["Maischips",true,{"$f":"51.22/5520","v":9.2789855072463769E-3},null,null,{"$f":"IF(B15=TRUE,C15*$F$6,0)","v":25.981159420289856}]
["Pickblock",true,{"$f":"86.24/3468","v":2.4867358708189156E-2},null,null,{"$f":"IF(B16=TRUE,C16*$F$6,0)","v":69.628604382929637}]
["Luzerne",true,{"$f":"425.33/5520","v":7.7052536231884058E-2},null,null,{"$f":"IF(B17=TRUE,C17*$F$6,0)","v":215.74710144927536}]
["Staubbad",true,{"$f":"265.26/3468","v":7.6487889273356396E-2},null,null,{"$f":"IF(B18=TRUE,C18*$F$6,0)","v":214.1660899653979}]
["Grit",true,{"$f":"170/5520","v":3.0797101449275364E-2},null,null,{"$f":"IF(B19=TRUE,C19*$F$6,0)","v":86.231884057971016}]
["Hubsystem",true,917.9,null,"bis 7519 Plätze",{"$f":"IF(B20=TRUE,C20*ROUNDUP($F$6/7500,0),0)","v":917.9}]
["Notfallkoffer",true,{"$f":"371/5520","v":6.7210144927536228E-2},{"$f":"718/7520","v":9.5478723404255325E-2},null,{"$f":"IF(B21=TRUE,D21*$F$6,0)","v":267.34042553191489}]
["Zusätzliche Arbeitszeit",true,0.06,4.8000000000000001E-2,"min./DG/Tier",{"$f":"IF(B22=TRUE,C22*$F$6,0)","v":168},"x"]

{"sheet":"Report_Futter","index":7,"n_rows":65,"n_cols":6,"rows_kept":65,"cut":false,"hidden":false,"merged":[]}
["Tierart","Phase","Futterpreis_€/t","Futterpreis_€/kg","Futter_kg_pro_Pute","Futterkosten_€/Pute_Phase"]
["Pute","Starter 1",222.20637355278353,0.22220637355278353,3.36,0.74661341513735258]
["Pute","Starter 2",222.20637355278353,0.22220637355278353,3.36,0.74661341513735258]
["Pute","Grower 1",222.20637355278353,0.22220637355278353,5.6,1.2443556918955876]
["Pute","Grower 2",222.20637355278353,0.22220637355278353,5.6,1.2443556918955876]
["Pute","Finisher 1",222.20637355278353,0.22220637355278353,5.04,1.1199201227060289]
["Pute","Finisher 2",222.20637355278353,0.22220637355278353,5.04,1.1199201227060289]
["Summe Futterkosten je Pute",null,null,null,null,{"$f":"SUM(F2:F7)","v":6.221778459477938}]
[]
[]
["Tierart","Phase","Komponente","Anteil_%","Anteil_kg_1000"]
["Pute","Starter 1","Roggen",66.828680931952618,668.28680931952613]
["Pute","Starter 1","Rapskuchen",5.0053928001839747,50.053928001839751]
["Pute","Starter 1","Kalkstein",23.681155450241683,236.81155450241684]
["Pute","Starter 1","Monocalciumphosphat (MCP)",1.1477604275388982,11.477604275388982]
["Pute","Starter 1","Dicalciumphosphat (DCP)",0.50703564024912062,5.070356402491206]
["Pute","Starter 1","Magnesiumoxid",0.15325889527176373,1.5325889527176373]
["Pute","Starter 1","DL-Methionin",0.64165853587390198,6.4165853587390194]
["Pute","Starter 1","L-Threonin",1.0043061533662454,10.043061533662454]
["Pute","Starter 1",null,1.0307511653218093,10.307511653218093]
["Pute","Starter 2","Roggen",66.828680931952618,668.28680931952613]
["Pute","Starter 2","Rapskuchen",5.0053928001839747,50.053928001839751]
["Pute","Starter 2","Kalkstein",23.681155450241683,236.81155450241684]
["Pute","Starter 2","Monocalciumphosphat (MCP)",1.1477604275388982,11.477604275388982]
["Pute","Starter 2","Dicalciumphosphat (DCP)",0.50703564024912062,5.070356402491206]
["Pute","Starter 2","Magnesiumoxid",0.15325889527176373,1.5325889527176373]
["Pute","Starter 2","DL-Methionin",0.64165853587390198,6.4165853587390194]
["Pute","Starter 2","L-Threonin",1.0043061533662454,10.043061533662454]
["Pute","Starter 2",null,1.0307511653218093,10.307511653218093]
["Pute","Grower 1","Roggen",66.828680931952618,668.28680931952613]
["Pute","Grower 1","Rapskuchen",5.0053928001839747,50.053928001839751]
["Pute","Grower 1","Kalkstein",23.681155450241683,236.81155450241684]
["Pute","Grower 1","Monocalciumphosphat (MCP)",1.1477604275388982,11.477604275388982]
["Pute","Grower 1","Dicalciumphosphat (DCP)",0.50703564024912062,5.070356402491206]
["Pute","Grower 1","Magnesiumoxid",0.15325889527176373,1.5325889527176373]
["Pute","Grower 1","DL-Methionin",0.64165853587390198,6.4165853587390194]
["Pute","Grower 1","L-Threonin",1.0043061533662454,10.043061533662454]
["Pute","Grower 1",null,1.0307511653218093,10.307511653218093]
["Pute","Grower 2","Roggen",66.828680931952618,668.28680931952613]
["Pute","Grower 2","Rapskuchen",5.0053928001839747,50.053928001839751]
["Pute","Grower 2","Kalkstein",23.681155450241683,236.81155450241684]
["Pute","Grower 2","Monocalciumphosphat (MCP)",1.1477604275388982,11.477604275388982]
["Pute","Grower 2","Dicalciumphosphat (DCP)",0.50703564024912062,5.070356402491206]
["Pute","Grower 2","Magnesiumoxid",0.15325889527176373,1.5325889527176373]
["Pute","Grower 2","DL-Methionin",0.64165853587390198,6.4165853587390194]
["Pute","Grower 2","L-Threonin",1.0043061533662454,10.043061533662454]
["Pute","Grower 2",null,1.0307511653218093,10.307511653218093]
["Pute","Finisher 1","Roggen",66.828680931952618,668.28680931952613]
["Pute","Finisher 1","Rapskuchen",5.0053928001839747,50.053928001839751]
["Pute","Finisher 1","Kalkstein",23.681155450241683,236.81155450241684]
["Pute","Finisher 1","Monocalciumphosphat (MCP)",1.1477604275388982,11.477604275388982]
["Pute","Finisher 1","Dicalciumphosphat (DCP)",0.50703564024912062,5.070356402491206]
["Pute","Finisher 1","Magnesiumoxid",0.15325889527176373,1.5325889527176373]
["Pute","Finisher 1","DL-Methionin",0.64165853587390198,6.4165853587390194]
["Pute","Finisher 1","L-Threonin",1.0043061533662454,10.043061533662454]
["Pute","Finisher 1",null,1.0307511653218093,10.307511653218093]
["Pute","Finisher 2","Roggen",66.828680931952618,668.28680931952613]
["Pute","Finisher 2","Rapskuchen",5.0053928001839747,50.053928001839751]
["Pute","Finisher 2","Kalkstein",23.681155450241683,236.81155450241684]
["Pute","Finisher 2","Monocalciumphosphat (MCP)",1.1477604275388982,11.477604275388982]
["Pute","Finisher 2","Dicalciumphosphat (DCP)",0.50703564024912062,5.070356402491206]
["Pute","Finisher 2","Magnesiumoxid",0.15325889527176373,1.5325889527176373]
["Pute","Finisher 2","DL-Methionin",0.64165853587390198,6.4165853587390194]
["Pute","Finisher 2","L-Threonin",1.0043061533662454,10.043061533662454]
["Pute","Finisher 2",null,1.0307511653218093,10.307511653218093]

{"sheet":"Anforderungen","index":8,"n_rows":199,"n_cols":8,"rows_kept":199,"cut":false,"hidden":true,"merged":[]}
["Tierart","Phase","Alter_von_Wo","Alter_bis_Wo","Parameter","Einheit","Min","Max"]
["Pute","Starter 1",0,1,"ME","MJ/kg",10,13.4]
["Pute","Starter 1",0,1,"XP","g/kg",260,{"$f":"IF(tblAnforderungen[[#This Row],[Min]]=\"\",\"\",IF(tblAnforderungen[[#This Row],[Parameter]]=\"ME\",tblAnforderungen[[#This Row],[Min]]+0.7,IF(tblAnforderungen[[#This Row],[Parameter]]=\"XP\",tblAnforderungen[[#This Row],[Min]]*1.3,IF(tblAnforderungen[[#This Row],[Parameter]]=\"Lysin_gkg\",tblAnforderungen[[#This Row],[Min]]*1.25,IF(tblAnforderungen[[#This Row],[Parameter]]=\"Methionin_gkg\",tblAnforderungen[[#This Row],[Min]]*1.25,IF(tblAnforderungen[[#This Row],[Parameter]]=\"MetCys_gkg\",tblAnforderungen[[#This Row],[Min]]*1.25,IF(tblAnforderungen[[#This Row],[Parameter]]=\"Rohfett_gkg\",tblAnforderungen[[#This Row],[Min]]*2,IF(tblAnforderungen[[#This Row],[Parameter]]=\"Rohfaser_gkg\",tblAnforderungen[[#This Row],[Min]]*2,IF(tblAnforderungen[[#This Row],[Parameter]]=\"Ca_gkg\",tblAnforderungen[[#This Row],[Min]]*1.4,IF(tblAnforderungen[[#This Row],[Parameter]]=\"Pverd_gkg\",tblAnforderungen[[#This Row],[Min]]*1.3,IF(tblAnforderungen[[#This Row],[Parameter]]=\"Na_gkg\",tblAnforderungen[[#This Row],[Min]]*1.3,tblAnforderungen[[#This Row],[Min]]*1.3)))))))))))","v":338}]
["Pute","Starter 1",0,1,"Lysin_gkg","g/kg",16,{"$f":"IF(tblAnforderungen[[#This Row],[Min]]=\"\",\"\",IF(tblAnforderungen[[#This Row],[Parameter]]=\"ME\",tblAnforderungen[[#This Row],[Min]]+0.7,IF(tblAnforderungen[[#This Row],[Parameter]]=\"XP\",tblAnforderungen[[#This Row],[Min]]*1.3,IF(tblAnforderungen[[#This Row],[Parameter]]=\"Lysin_gkg\",tblAnforderungen[[#This Row],[Min]]*1.25,IF(tblAnforderungen[[#This Row],[Parameter]]=\"Methionin_gkg\",tblAnforderungen[[#This Row],[Min]]*1.25,IF(tblAnforderungen[[#This Row],[Parameter]]=\"MetCys_gkg\",tblAnforderungen[[#This Row],[Min]]*1.25,IF(tblAnforderungen[[#This Row],[Parameter]]=\"Rohfett_gkg\",tblAnforderungen[[#This Row],[Min]]*2,IF(tblAnforderungen[[#This Row],[Parameter]]=\"Rohfaser_gkg\",tblAnforderungen[[#This Row],[Min]]*2,IF(tblAnforderungen[[#This Row],[Parameter]]=\"Ca_gkg\",tblAnforderungen[[#This Row],[Min]]*1.4,IF(tblAnforderungen[[#This Row],[Parameter]]=\"Pverd_gkg\",tblAnforderungen[[#This Row],[Min]]*1.3,IF(tblAnforderungen[[#This Row],[Parameter]]=\"Na_gkg\",tblAnforderungen[[#This Row],[Min]]*1.3,tblAnforderungen[[#This Row],[Min]]*1.3)))))))))))","v":20}]
["Pute","Starter 1",0,1,"MetCys_gkg","g/kg",13,{"$f":"IF(tblAnforderungen[[#This Row],[Min]]=\"\",\"\",IF(tblAnforderungen[[#This Row],[Parameter]]=\"ME\",tblAnforderungen[[#This Row],[Min]]+0.7,IF(tblAnforderungen[[#This Row],[Parameter]]=\"XP\",tblAnforderungen[[#This Row],[Min]]*1.3,IF(tblAnforderungen[[#This Row],[Parameter]]=\"Lysin_gkg\",tblAnforderungen[[#This Row],[Min]]*1.25,IF(tblAnforderungen[[#This Row],[Parameter]]=\"Methionin_gkg\",tblAnforderungen[[#This Row],[Min]]*1.25,IF(tblAnforderungen[[#This Row],[Parameter]]=\"MetCys_gkg\",tblAnforderungen[[#This Row],[Min]]*1.25,IF(tblAnforderungen[[#This Row],[Parameter]]=\"Rohfett_gkg\",tblAnforderungen[[#This Row],[Min]]*2,IF(tblAnforderungen[[#This Row],[Parameter]]=\"Rohfaser_gkg\",tblAnforderungen[[#This Row],[Min]]*2,IF(tblAnforderungen[[#This Row],[Parameter]]=\"Ca_gkg\",tblAnforderungen[[#This Row],[Min]]*1.4,IF(tblAnforderungen[[#This Row],[Parameter]]=\"Pverd_gkg\",tblAnforderungen[[#This Row],[Min]]*1.3,IF(tblAnforderungen[[#This Row],[Parameter]]=\"Na_gkg\",tblAnforderungen[[#This Row],[Min]]*1.3,tblAnforderungen[[#This Row],[Min]]*1.3)))))))))))","v":16.25}]
["Pute","Starter 1",0,1,"Ca_gkg","g/kg",9,14]
["Pute","Starter 1",0,1,"Pverd_gkg","g/kg",5,{"$f":"IF(tblAnforderungen[[#This Row],[Min]]=\"\",\"\",IF(tblAnforderungen[[#This Row],[Parameter]]=\"ME\",tblAnforderungen[[#This Row],[Min]]+0.7,IF(tblAnforderungen[[#This Row],[Parameter]]=\"XP\",tblAnforderungen[[#This Row],[Min]]*1.3,IF(tblAnforderungen[[#This Row],[Parameter]]=\"Lysin_gkg\",tblAnforderungen[[#This Row],[Min]]*1.25,IF(tblAnforderungen[[#This Row],[Parameter]]=\"Methionin_gkg\",tblAnforderungen[[#This Row],[Min]]*1.25,IF(tblAnforderungen[[#This Row],[Parameter]]=\"MetCys_gkg\",tblAnforderungen[[#This Row],[Min]]*1.25,IF(tblAnforderungen[[#This Row],[Parameter]]=\"Rohfett_gkg\",tblAnforderungen[[#This Row],[Min]]*2,IF(tblAnforderungen[[#This Row],[Parameter]]=\"Rohfaser_gkg\",tblAnforderungen[[#This Row],[Min]]*2,IF(tblAnforderungen[[#This Row],[Parameter]]=\"Ca_gkg\",tblAnforderungen[[#This Row],[Min]]*1.4,IF(tblAnforderungen[[#This Row],[Parameter]]=\"Pverd_gkg\",tblAnforderungen[[#This Row],[Min]]*1.3,IF(tblAnforderungen[[#This Row],[Parameter]]=\"Na_gkg\",tblAnforderungen[[#This Row],[Min]]*1.3,tblAnforderungen[[#This Row],[Min]]*1.3)))))))))))","v":6.5}]
["Pute","Starter 1",0,1,"Na_gkg","g/kg",1.7,60]
["Pute","Starter 1",0,1,"Rohfett_gkg","g/kg",null,20]
["Pute","Starter 1",0,1,"Rohfaser_gkg","g/kg",null,8]
["Pute","Starter 2",1,3,"ME","MJ/kg",12.6,{"$f":"IF(tblAnforderungen[[#This Row],[Min]]=\"\",\"\",IF(tblAnforderungen[[#This Row],[Parameter]]=\"ME\",tblAnforderungen[[#This Row],[Min]]+0.7,IF(tblAnforderungen[[#This Row],[Parameter]]=\"XP\",tblAnforderungen[[#This Row],[Min]]*1.3,IF(tblAnforderungen[[#This Row],[Parameter]]=\"Lysin_gkg\",tblAnforderungen[[#This Row],[Min]]*1.25,IF(tblAnforderungen[[#This Row],[Parameter]]=\"Methionin_gkg\",tblAnforderungen[[#This Row],[Min]]*1.25,IF(tblAnforderungen[[#This Row],[Parameter]]=\"MetCys_gkg\",tblAnforderungen[[#This Row],[Min]]*1.25,IF(tblAnforderungen[[#This Row],[Parameter]]=\"Rohfett_gkg\",tblAnforderungen[[#This Row],[Min]]*2,IF(tblAnforderungen[[#This Row],[Parameter]]=\"Rohfaser_gkg\",tblAnforderungen[[#This Row],[Min]]*2,IF(tblAnforderungen[[#This Row],[Parameter]]=\"Ca_gkg\",tblAnforderungen[[#This Row],[Min]]*1.4,IF(tblAnforderungen[[#This Row],[Parameter]]=\"Pverd_gkg\",tblAnforderungen[[#This Row],[Min]]*1.3,IF(tblAnforderungen[[#This Row],[Parameter]]=\"Na_gkg\",tblAnforderungen[[#This Row],[Min]]*1.3,tblAnforderungen[[#This Row],[Min]]*1.3)))))))))))","v":13.299999999999999}]
["Pute","Starter 2",1,3,"XP","g/kg",240,{"$f":"IF(tblAnforderungen[[#This Row],[Min]]=\"\",\"\",IF(tblAnforderungen[[#This Row],[Parameter]]=\"ME\",tblAnforderungen[[#This Row],[Min]]+0.7,IF(tblAnforderungen[[#This Row],[Parameter]]=\"XP\",tblAnforderungen[[#This Row],[Min]]*1.3,IF(tblAnforderungen[[#This Row],[Parameter]]=\"Lysin_gkg\",tblAnforderungen[[#This Row],[Min]]*1.25,IF(tblAnforderungen[[#This Row],[Parameter]]=\"Methionin_gkg\",tblAnforderungen[[#This Row],[Min]]*1.25,IF(tblAnforderungen[[#This Row],[Parameter]]=\"MetCys_gkg\",tblAnforderungen[[#This Row],[Min]]*1.25,IF(tblAnforderungen[[#This Row],[Parameter]]=\"Rohfett_gkg\",tblAnforderungen[[#This Row],[Min]]*2,IF(tblAnforderungen[[#This Row],[Parameter]]=\"Rohfaser_gkg\",tblAnforderungen[[#This Row],[Min]]*2,IF(tblAnforderungen[[#This Row],[Parameter]]=\"Ca_gkg\",tblAnforderungen[[#This Row],[Min]]*1.4,IF(tblAnforderungen[[#This Row],[Parameter]]=\"Pverd_gkg\",tblAnforderungen[[#This Row],[Min]]*1.3,IF(tblAnforderungen[[#This Row],[Parameter]]=\"Na_gkg\",tblAnforderungen[[#This Row],[Min]]*1.3,tblAnforderungen[[#This Row],[Min]]*1.3)))))))))))","v":312}]
["Pute","Starter 2",1,3,"Lysin_gkg","g/kg",15,{"$f":"IF(tblAnforderungen[[#This Row],[Min]]=\"\",\"\",IF(tblAnforderungen[[#This Row],[Parameter]]=\"ME\",tblAnforderungen[[#This Row],[Min]]+0.7,IF(tblAnforderungen[[#This Row],[Parameter]]=\"XP\",tblAnforderungen[[#This Row],[Min]]*1.3,IF(tblAnforderungen[[#This Row],[Parameter]]=\"Lysin_gkg\",tblAnforderungen[[#This Row],[Min]]*1.25,IF(tblAnforderungen[[#This Row],[Parameter]]=\"Methionin_gkg\",tblAnforderungen[[#This Row],[Min]]*1.25,IF(tblAnforderungen[[#This Row],[Parameter]]=\"MetCys_gkg\",tblAnforderungen[[#This Row],[Min]]*1.25,IF(tblAnforderungen[[#This Row],[Parameter]]=\"Rohfett_gkg\",tblAnforderungen[[#This Row],[Min]]*2,IF(tblAnforderungen[[#This Row],[Parameter]]=\"Rohfaser_gkg\",tblAnforderungen[[#This Row],[Min]]*2,IF(tblAnforderungen[[#This Row],[Parameter]]=\"Ca_gkg\",tblAnforderungen[[#This Row],[Min]]*1.4,IF(tblAnforderungen[[#This Row],[Parameter]]=\"Pverd_gkg\",tblAnforderungen[[#This Row],[Min]]*1.3,IF(tblAnforderungen[[#This Row],[Parameter]]=\"Na_gkg\",tblAnforderungen[[#This Row],[Min]]*1.3,tblAnforderungen[[#This Row],[Min]]*1.3)))))))))))","v":18.75}]
["Pute","Starter 2",1,3,"MetCys_gkg","g/kg",12,{"$f":"IF(tblAnforderungen[[#This Row],[Min]]=\"\",\"\",IF(tblAnforderungen[[#This Row],[Parameter]]=\"ME\",tblAnforderungen[[#This Row],[Min]]+0.7,IF(tblAnforderungen[[#This Row],[Parameter]]=\"XP\",tblAnforderungen[[#This Row],[Min]]*1.3,IF(tblAnforderungen[[#This Row],[Parameter]]=\"Lysin_gkg\",tblAnforderungen[[#This Row],[Min]]*1.25,IF(tblAnforderungen[[#This Row],[Parameter]]=\"Methionin_gkg\",tblAnforderungen[[#This Row],[Min]]*1.25,IF(tblAnforderungen[[#This Row],[Parameter]]=\"MetCys_gkg\",tblAnforderungen[[#This Row],[Min]]*1.25,IF(tblAnforderungen[[#This Row],[Parameter]]=\"Rohfett_gkg\",tblAnforderungen[[#This Row],[Min]]*2,IF(tblAnforderungen[[#This Row],[Parameter]]=\"Rohfaser_gkg\",tblAnforderungen[[#This Row],[Min]]*2,IF(tblAnforderungen[[#This Row],[Parameter]]=\"Ca_gkg\",tblAnforderungen[[#This Row],[Min]]*1.4,IF(tblAnforderungen[[#This Row],[Parameter]]=\"Pverd_gkg\",tblAnforderungen[[#This Row],[Min]]*1.3,IF(tblAnforderungen[[#This Row],[Parameter]]=\"Na_gkg\",tblAnforderungen[[#This Row],[Min]]*1.3,tblAnforderungen[[#This Row],[Min]]*1.3)))))))))))","v":15}]
["Pute","Starter 2",1,3,"Ca_gkg","g/kg",8.5,10]
["Pute","Starter 2",1,3,"Pverd_gkg","g/kg",4.8,{"$f":"IF(tblAnforderungen[[#This Row],[Min]]=\"\",\"\",IF(tblAnforderungen[[#This Row],[Parameter]]=\"ME\",tblAnforderungen[[#This Row],[Min]]+0.7,IF(tblAnforderungen[[#This Row],[Parameter]]=\"XP\",tblAnforderungen[[#This Row],[Min]]*1.3,IF(tblAnforderungen[[#This Row],[Parameter]]=\"Lysin_gkg\",tblAnforderungen[[#This Row],[Min]]*1.25,IF(tblAnforderungen[[#This Row],[Parameter]]=\"Methionin_gkg\",tblAnforderungen[[#This Row],[Min]]*1.25,IF(tblAnforderungen[[#This Row],[Parameter]]=\"MetCys_gkg\",tblAnforderungen[[#This Row],[Min]]*1.25,IF(tblAnforderungen[[#This Row],[Parameter]]=\"Rohfett_gkg\",tblAnforderungen[[#This Row],[Min]]*2,IF(tblAnforderungen[[#This Row],[Parameter]]=\"Rohfaser_gkg\",tblAnforderungen[[#This Row],[Min]]*2,IF(tblAnforderungen[[#This Row],[Parameter]]=\"Ca_gkg\",tblAnforderungen[[#This Row],[Min]]*1.4,IF(tblAnforderungen[[#This Row],[Parameter]]=\"Pverd_gkg\",tblAnforderungen[[#This Row],[Min]]*1.3,IF(tblAnforderungen[[#This Row],[Parameter]]=\"Na_gkg\",tblAnforderungen[[#This Row],[Min]]*1.3,tblAnforderungen[[#This Row],[Min]]*1.3)))))))))))","v":6.24}]
["Pute","Starter 2",1,3,"Na_gkg","g/kg",1.6,2]
["Pute","Starter 2",1,3,"Rohfett_gkg","g/kg",null,80]
["Pute","Starter 2",1,3,"Rohfaser_gkg","g/kg",null,50]
["Pute","Grower 1",3,6,"ME","MJ/kg",12.4,{"$f":"IF(tblAnforderungen[[#This Row],[Min]]=\"\",\"\",IF(tblAnforderungen[[#This Row],[Parameter]]=\"ME\",tblAnforderungen[[#This Row],[Min]]+0.7,IF(tblAnforderungen[[#This Row],[Parameter]]=\"XP\",tblAnforderungen[[#This Row],[Min]]*1.3,IF(tblAnforderungen[[#This Row],[Parameter]]=\"Lysin_gkg\",tblAnforderungen[[#This Row],[Min]]*1.25,IF(tblAnforderungen[[#This Row],[Parameter]]=\"Methionin_gkg\",tblAnforderungen[[#This Row],[Min]]*1.25,IF(tblAnforderungen[[#This Row],[Parameter]]=\"MetCys_gkg\",tblAnforderungen[[#This Row],[Min]]*1.25,IF(tblAnforderungen[[#This Row],[Parameter]]=\"Rohfett_gkg\",tblAnforderungen[[#This Row],[Min]]*2,IF(tblAnforderungen[[#This Row],[Parameter]]=\"Rohfaser_gkg\",tblAnforderungen[[#This Row],[Min]]*2,IF(tblAnforderungen[[#This Row],[Parameter]]=\"Ca_gkg\",tblAnforderungen[[#This Row],[Min]]*1.4,IF(tblAnforderungen[[#This Row],[Parameter]]=\"Pverd_gkg\",tblAnforderungen[[#This Row],[Min]]*1.3,IF(tblAnforderungen[[#This Row],[Parameter]]=\"Na_gkg\",tblAnforderungen[[#This Row],[Min]]*1.3,tblAnforderungen[[#This Row],[Min]]*1.3)))))))))))","v":13.1}]
["Pute","Grower 1",3,6,"XP","g/kg",220,{"$f":"IF(tblAnforderungen[[#This Row],[Min]]=\"\",\"\",IF(tblAnforderungen[[#This Row],[Parameter]]=\"ME\",tblAnforderungen[[#This Row],[Min]]+0.7,IF(tblAnforderungen[[#This Row],[Parameter]]=\"XP\",tblAnforderungen[[#This Row],[Min]]*1.3,IF(tblAnforderungen[[#This Row],[Parameter]]=\"Lysin_gkg\",tblAnforderungen[[#This Row],[Min]]*1.25,IF(tblAnforderungen[[#This Row],[Parameter]]=\"Methionin_gkg\",tblAnforderungen[[#This Row],[Min]]*1.25,IF(tblAnforderungen[[#This Row],[Parameter]]=\"MetCys_gkg\",tblAnforderungen[[#This Row],[Min]]*1.25,IF(tblAnforderungen[[#This Row],[Parameter]]=\"Rohfett_gkg\",tblAnforderungen[[#This Row],[Min]]*2,IF(tblAnforderungen[[#This Row],[Parameter]]=\"Rohfaser_gkg\",tblAnforderungen[[#This Row],[Min]]*2,IF(tblAnforderungen[[#This Row],[Parameter]]=\"Ca_gkg\",tblAnforderungen[[#This Row],[Min]]*1.4,IF(tblAnforderungen[[#This Row],[Parameter]]=\"Pverd_gkg\",tblAnforderungen[[#This Row],[Min]]*1.3,IF(tblAnforderungen[[#This Row],[Parameter]]=\"Na_gkg\",tblAnforderungen[[#This Row],[Min]]*1.3,tblAnforderungen[[#This Row],[Min]]*1.3)))))))))))","v":286}]
["Pute","Grower 1",3,6,"Lysin_gkg","g/kg",14,{"$f":"IF(tblAnforderungen[[#This Row],[Min]]=\"\",\"\",IF(tblAnforderungen[[#This Row],[Parameter]]=\"ME\",tblAnforderungen[[#This Row],[Min]]+0.7,IF(tblAnforderungen[[#This Row],[Parameter]]=\"XP\",tblAnforderungen[[#This Row],[Min]]*1.3,IF(tblAnforderungen[[#This Row],[Parameter]]=\"Lysin_gkg\",tblAnforderungen[[#This Row],[Min]]*1.25,IF(tblAnforderungen[[#This Row],[Parameter]]=\"Methionin_gkg\",tblAnforderungen[[#This Row],[Min]]*1.25,IF(tblAnforderungen[[#This Row],[Parameter]]=\"MetCys_gkg\",tblAnforderungen[[#This Row],[Min]]*1.25,IF(tblAnforderungen[[#This Row],[Parameter]]=\"Rohfett_gkg\",tblAnforderungen[[#This Row],[Min]]*2,IF(tblAnforderungen[[#This Row],[Parameter]]=\"Rohfaser_gkg\",tblAnforderungen[[#This Row],[Min]]*2,IF(tblAnforderungen[[#This Row],[Parameter]]=\"Ca_gkg\",tblAnforderungen[[#This Row],[Min]]*1.4,IF(tblAnforderungen[[#This Row],[Parameter]]=\"Pverd_gkg\",tblAnforderungen[[#This Row],[Min]]*1.3,IF(tblAnforderungen[[#This Row],[Parameter]]=\"Na_gkg\",tblAnforderungen[[#This Row],[Min]]*1.3,tblAnforderungen[[#This Row],[Min]]*1.3)))))))))))","v":17.5}]
["Pute","Grower 1",3,6,"MetCys_gkg","g/kg",11,{"$f":"IF(tblAnforderungen[[#This Row],[Min]]=\"\",\"\",IF(tblAnforderungen[[#This Row],[Parameter]]=\"ME\",tblAnforderungen[[#This Row],[Min]]+0.7,IF(tblAnforderungen[[#This Row],[Parameter]]=\"XP\",tblAnforderungen[[#This Row],[Min]]*1.3,IF(tblAnforderungen[[#This Row],[Parameter]]=\"Lysin_gkg\",tblAnforderungen[[#This Row],[Min]]*1.25,IF(tblAnforderungen[[#This Row],[Parameter]]=\"Methionin_gkg\",tblAnforderungen[[#This Row],[Min]]*1.25,IF(tblAnforderungen[[#This Row],[Parameter]]=\"MetCys_gkg\",tblAnforderungen[[#This Row],[Min]]*1.25,IF(tblAnforderungen[[#This Row],[Parameter]]=\"Rohfett_gkg\",tblAnforderungen[[#This Row],[Min]]*2,IF(tblAnforderungen[[#This Row],[Parameter]]=\"Rohfaser_gkg\",tblAnforderungen[[#This Row],[Min]]*2,IF(tblAnforderungen[[#This Row],[Parameter]]=\"Ca_gkg\",tblAnforderungen[[#This Row],[Min]]*1.4,IF(tblAnforderungen[[#This Row],[Parameter]]=\"Pverd_gkg\",tblAnforderungen[[#This Row],[Min]]*1.3,IF(tblAnforderungen[[#This Row],[Parameter]]=\"Na_gkg\",tblAnforderungen[[#This Row],[Min]]*1.3,tblAnforderungen[[#This Row],[Min]]*1.3)))))))))))","v":13.75}]
["Pute","Grower 1",3,6,"Ca_gkg","g/kg",8,10]
["Pute","Grower 1",3,6,"Pverd_gkg","g/kg",4.5,{"$f":"IF(tblAnforderungen[[#This Row],[Min]]=\"\",\"\",IF(tblAnforderungen[[#This Row],[Parameter]]=\"ME\",tblAnforderungen[[#This Row],[Min]]+0.7,IF(tblAnforderungen[[#This Row],[Parameter]]=\"XP\",tblAnforderungen[[#This Row],[Min]]*1.3,IF(tblAnforderungen[[#This Row],[Parameter]]=\"Lysin_gkg\",tblAnforderungen[[#This Row],[Min]]*1.25,IF(tblAnforderungen[[#This Row],[Parameter]]=\"Methionin_gkg\",tblAnforderungen[[#This Row],[Min]]*1.25,IF(tblAnforderungen[[#This Row],[Parameter]]=\"MetCys_gkg\",tblAnforderungen[[#This Row],[Min]]*1.25,IF(tblAnforderungen[[#This Row],[Parameter]]=\"Rohfett_gkg\",tblAnforderungen[[#This Row],[Min]]*2,IF(tblAnforderungen[[#This Row],[Parameter]]=\"Rohfaser_gkg\",tblAnforderungen[[#This Row],[Min]]*2,IF(tblAnforderungen[[#This Row],[Parameter]]=\"Ca_gkg\",tblAnforderungen[[#This Row],[Min]]*1.4,IF(tblAnforderungen[[#This Row],[Parameter]]=\"Pverd_gkg\",tblAnforderungen[[#This Row],[Min]]*1.3,IF(tblAnforderungen[[#This Row],[Parameter]]=\"Na_gkg\",tblAnforderungen[[#This Row],[Min]]*1.3,tblAnforderungen[[#This Row],[Min]]*1.3)))))))))))","v":5.8500000000000005}]
["Pute","Grower 1",3,6,"Na_gkg","g/kg",1.6,1.9]
["Pute","Grower 1",3,6,"Rohfett_gkg","g/kg",null,80]
["Pute","Grower 1",3,6,"Rohfaser_gkg","g/kg",null,55]
["Pute","Grower 2",6,9,"ME","MJ/kg",12.2,{"$f":"IF(tblAnforderungen[[#This Row],[Min]]=\"\",\"\",IF(tblAnforderungen[[#This Row],[Parameter]]=\"ME\",tblAnforderungen[[#This Row],[Min]]+0.7,IF(tblAnforderungen[[#This Row],[Parameter]]=\"XP\",tblAnforderungen[[#This Row],[Min]]*1.3,IF(tblAnforderungen[[#This Row],[Parameter]]=\"Lysin_gkg\",tblAnforderungen[[#This Row],[Min]]*1.25,IF(tblAnforderungen[[#This Row],[Parameter]]=\"Methionin_gkg\",tblAnforderungen[[#This Row],[Min]]*1.25,IF(tblAnforderungen[[#This Row],[Parameter]]=\"MetCys_gkg\",tblAnforderungen[[#This Row],[Min]]*1.25,IF(tblAnforderungen[[#This Row],[Parameter]]=\"Rohfett_gkg\",tblAnforderungen[[#This Row],[Min]]*2,IF(tblAnforderungen[[#This Row],[Parameter]]=\"Rohfaser_gkg\",tblAnforderungen[[#This Row],[Min]]*2,IF(tblAnforderungen[[#This Row],[Parameter]]=\"Ca_gkg\",tblAnforderungen[[#This Row],[Min]]*1.4,IF(tblAnforderungen[[#This Row],[Parameter]]=\"Pverd_gkg\",tblAnforderungen[[#This Row],[Min]]*1.3,IF(tblAnforderungen[[#This Row],[Parameter]]=\"Na_gkg\",tblAnforderungen[[#This Row],[Min]]*1.3,tblAnforderungen[[#This Row],[Min]]*1.3)))))))))))","v":12.899999999999999}]
["Pute","Grower 2",6,9,"XP","g/kg",205,{"$f":"IF(tblAnforderungen[[#This Row],[Min]]=\"\",\"\",IF(tblAnforderungen[[#This Row],[Parameter]]=\"ME\",tblAnforderungen[[#This Row],[Min]]+0.7,IF(tblAnforderungen[[#This Row],[Parameter]]=\"XP\",tblAnforderungen[[#This Row],[Min]]*1.3,IF(tblAnforderungen[[#This Row],[Parameter]]=\"Lysin_gkg\",tblAnforderungen[[#This Row],[Min]]*1.25,IF(tblAnforderungen[[#This Row],[Parameter]]=\"Methionin_gkg\",tblAnforderungen[[#This Row],[Min]]*1.25,IF(tblAnforderungen[[#This Row],[Parameter]]=\"MetCys_gkg\",tblAnforderungen[[#This Row],[Min]]*1.25,IF(tblAnforderungen[[#This Row],[Parameter]]=\"Rohfett_gkg\",tblAnforderungen[[#This Row],[Min]]*2,IF(tblAnforderungen[[#This Row],[Parameter]]=\"Rohfaser_gkg\",tblAnforderungen[[#This Row],[Min]]*2,IF(tblAnforderungen[[#This Row],[Parameter]]=\"Ca_gkg\",tblAnforderungen[[#This Row],[Min]]*1.4,IF(tblAnforderungen[[#This Row],[Parameter]]=\"Pverd_gkg\",tblAnforderungen[[#This Row],[Min]]*1.3,IF(tblAnforderungen[[#This Row],[Parameter]]=\"Na_gkg\",tblAnforderungen[[#This Row],[Min]]*1.3,tblAnforderungen[[#This Row],[Min]]*1.3)))))))))))","v":266.5}]
["Pute","Grower 2",6,9,"Lysin_gkg","g/kg",13,{"$f":"IF(tblAnforderungen[[#This Row],[Min]]=\"\",\"\",IF(tblAnforderungen[[#This Row],[Parameter]]=\"ME\",tblAnforderungen[[#This Row],[Min]]+0.7,IF(tblAnforderungen[[#This Row],[Parameter]]=\"XP\",tblAnforderungen[[#This Row],[Min]]*1.3,IF(tblAnforderungen[[#This Row],[Parameter]]=\"Lysin_gkg\",tblAnforderungen[[#This Row],[Min]]*1.25,IF(tblAnforderungen[[#This Row],[Parameter]]=\"Methionin_gkg\",tblAnforderungen[[#This Row],[Min]]*1.25,IF(tblAnforderungen[[#This Row],[Parameter]]=\"MetCys_gkg\",tblAnforderungen[[#This Row],[Min]]*1.25,IF(tblAnforderungen[[#This Row],[Parameter]]=\"Rohfett_gkg\",tblAnforderungen[[#This Row],[Min]]*2,IF(tblAnforderungen[[#This Row],[Parameter]]=\"Rohfaser_gkg\",tblAnforderungen[[#This Row],[Min]]*2,IF(tblAnforderungen[[#This Row],[Parameter]]=\"Ca_gkg\",tblAnforderungen[[#This Row],[Min]]*1.4,IF(tblAnforderungen[[#This Row],[Parameter]]=\"Pverd_gkg\",tblAnforderungen[[#This Row],[Min]]*1.3,IF(tblAnforderungen[[#This Row],[Parameter]]=\"Na_gkg\",tblAnforderungen[[#This Row],[Min]]*1.3,tblAnforderungen[[#This Row],[Min]]*1.3)))))))))))","v":16.25}]
["Pute","Grower 2",6,9,"MetCys_gkg","g/kg",10.5,{"$f":"IF(tblAnforderungen[[#This Row],[Min]]=\"\",\"\",IF(tblAnforderungen[[#This Row],[Parameter]]=\"ME\",tblAnforderungen[[#This Row],[Min]]+0.7,IF(tblAnforderungen[[#This Row],[Parameter]]=\"XP\",tblAnforderungen[[#This Row],[Min]]*1.3,IF(tblAnforderungen[[#This Row],[Parameter]]=\"Lysin_gkg\",tblAnforderungen[[#This Row],[Min]]*1.25,IF(tblAnforderungen[[#This Row],[Parameter]]=\"Methionin_gkg\",tblAnforderungen[[#This Row],[Min]]*1.25,IF(tblAnforderungen[[#This Row],[Parameter]]=\"MetCys_gkg\",tblAnforderungen[[#This Row],[Min]]*1.25,IF(tblAnforderungen[[#This Row],[Parameter]]=\"Rohfett_gkg\",tblAnforderungen[[#This Row],[Min]]*2,IF(tblAnforderungen[[#This Row],[Parameter]]=\"Rohfaser_gkg\",tblAnforderungen[[#This Row],[Min]]*2,IF(tblAnforderungen[[#This Row],[Parameter]]=\"Ca_gkg\",tblAnforderungen[[#This Row],[Min]]*1.4,IF(tblAnforderungen[[#This Row],[Parameter]]=\"Pverd_gkg\",tblAnforderungen[[#This Row],[Min]]*1.3,IF(tblAnforderungen[[#This Row],[Parameter]]=\"Na_gkg\",tblAnforderungen[[#This Row],[Min]]*1.3,tblAnforderungen[[#This Row],[Min]]*1.3)))))))))))","v":13.125}]
["Pute","Grower 2",6,9,"Ca_gkg","g/kg",7.5,9]
["Pute","Grower 2",6,9,"Pverd_gkg","g/kg",4.2,{"$f":"IF(tblAnforderungen[[#This Row],[Min]]=\"\",\"\",IF(tblAnforderungen[[#This Row],[Parameter]]=\"ME\",tblAnforderungen[[#This Row],[Min]]+0.7,IF(tblAnforderungen[[#This Row],[Parameter]]=\"XP\",tblAnforderungen[[#This Row],[Min]]*1.3,IF(tblAnforderungen[[#This Row],[Parameter]]=\"Lysin_gkg\",tblAnforderungen[[#This Row],[Min]]*1.25,IF(tblAnforderungen[[#This Row],[Parameter]]=\"Methionin_gkg\",tblAnforderungen[[#This Row],[Min]]*1.25,IF(tblAnforderungen[[#This Row],[Parameter]]=\"MetCys_gkg\",tblAnforderungen[[#This Row],[Min]]*1.25,IF(tblAnforderungen[[#This Row],[Parameter]]=\"Rohfett_gkg\",tblAnforderungen[[#This Row],[Min]]*2,IF(tblAnforderungen[[#This Row],[Parameter]]=\"Rohfaser_gkg\",tblAnforderungen[[#This Row],[Min]]*2,IF(tblAnforderungen[[#This Row],[Parameter]]=\"Ca_gkg\",tblAnforderungen[[#This Row],[Min]]*1.4,IF(tblAnforderungen[[#This Row],[Parameter]]=\"Pverd_gkg\",tblAnforderungen[[#This Row],[Min]]*1.3,IF(tblAnforderungen[[#This Row],[Parameter]]=\"Na_gkg\",tblAnforderungen[[#This Row],[Min]]*1.3,tblAnforderungen[[#This Row],[Min]]*1.3)))))))))))","v":5.4600000000000009}]
["Pute","Grower 2",6,9,"Na_gkg","g/kg",1.5,1.8]
["Pute","Grower 2",6,9,"Rohfett_gkg","g/kg",null,80]
["Pute","Grower 2",6,9,"Rohfaser_gkg","g/kg",null,60]
["Pute","Finisher 1",9,12,"ME","MJ/kg",12,{"$f":"IF(tblAnforderungen[[#This Row],[Min]]=\"\",\"\",IF(tblAnforderungen[[#This Row],[Parameter]]=\"ME\",tblAnforderungen[[#This Row],[Min]]+0.7,IF(tblAnforderungen[[#This Row],[Parameter]]=\"XP\",tblAnforderungen[[#This Row],[Min]]*1.3,IF(tblAnforderungen[[#This Row],[Parameter]]=\"Lysin_gkg\",tblAnforderungen[[#This Row],[Min]]*1.25,IF(tblAnforderungen[[#This Row],[Parameter]]=\"Methionin_gkg\",tblAnforderungen[[#This Row],[Min]]*1.25,IF(tblAnforderungen[[#This Row],[Parameter]]=\"MetCys_gkg\",tblAnforderungen[[#This Row],[Min]]*1.25,IF(tblAnforderungen[[#This Row],[Parameter]]=\"Rohfett_gkg\",tblAnforderungen[[#This Row],[Min]]*2,IF(tblAnforderungen[[#This Row],[Parameter]]=\"Rohfaser_gkg\",tblAnforderungen[[#This Row],[Min]]*2,IF(tblAnforderungen[[#This Row],[Parameter]]=\"Ca_gkg\",tblAnforderungen[[#This Row],[Min]]*1.4,IF(tblAnforderungen[[#This Row],[Parameter]]=\"Pverd_gkg\",tblAnforderungen[[#This Row],[Min]]*1.3,IF(tblAnforderungen[[#This Row],[Parameter]]=\"Na_gkg\",tblAnforderungen[[#This Row],[Min]]*1.3,tblAnforderungen[[#This Row],[Min]]*1.3)))))))))))","v":12.7}]
["Pute","Finisher 1",9,12,"XP","g/kg",190,{"$f":"IF(tblAnforderungen[[#This Row],[Min]]=\"\",\"\",IF(tblAnforderungen[[#This Row],[Parameter]]=\"ME\",tblAnforderungen[[#This Row],[Min]]+0.7,IF(tblAnforderungen[[#This Row],[Parameter]]=\"XP\",tblAnforderungen[[#This Row],[Min]]*1.3,IF(tblAnforderungen[[#This Row],[Parameter]]=\"Lysin_gkg\",tblAnforderungen[[#This Row],[Min]]*1.25,IF(tblAnforderungen[[#This Row],[Parameter]]=\"Methionin_gkg\",tblAnforderungen[[#This Row],[Min]]*1.25,IF(tblAnforderungen[[#This Row],[Parameter]]=\"MetCys_gkg\",tblAnforderungen[[#This Row],[Min]]*1.25,IF(tblAnforderungen[[#This Row],[Parameter]]=\"Rohfett_gkg\",tblAnforderungen[[#This Row],[Min]]*2,IF(tblAnforderungen[[#This Row],[Parameter]]=\"Rohfaser_gkg\",tblAnforderungen[[#This Row],[Min]]*2,IF(tblAnforderungen[[#This Row],[Parameter]]=\"Ca_gkg\",tblAnforderungen[[#This Row],[Min]]*1.4,IF(tblAnforderungen[[#This Row],[Parameter]]=\"Pverd_gkg\",tblAnforderungen[[#This Row],[Min]]*1.3,IF(tblAnforderungen[[#This Row],[Parameter]]=\"Na_gkg\",tblAnforderungen[[#This Row],[Min]]*1.3,tblAnforderungen[[#This Row],[Min]]*1.3)))))))))))","v":247}]
["Pute","Finisher 1",9,12,"Lysin_gkg","g/kg",12,{"$f":"IF(tblAnforderungen[[#This Row],[Min]]=\"\",\"\",IF(tblAnforderungen[[#This Row],[Parameter]]=\"ME\",tblAnforderungen[[#This Row],[Min]]+0.7,IF(tblAnforderungen[[#This Row],[Parameter]]=\"XP\",tblAnforderungen[[#This Row],[Min]]*1.3,IF(tblAnforderungen[[#This Row],[Parameter]]=\"Lysin_gkg\",tblAnforderungen[[#This Row],[Min]]*1.25,IF(tblAnforderungen[[#This Row],[Parameter]]=\"Methionin_gkg\",tblAnforderungen[[#This Row],[Min]]*1.25,IF(tblAnforderungen[[#This Row],[Parameter]]=\"MetCys_gkg\",tblAnforderungen[[#This Row],[Min]]*1.25,IF(tblAnforderungen[[#This Row],[Parameter]]=\"Rohfett_gkg\",tblAnforderungen[[#This Row],[Min]]*2,IF(tblAnforderungen[[#This Row],[Parameter]]=\"Rohfaser_gkg\",tblAnforderungen[[#This Row],[Min]]*2,IF(tblAnforderungen[[#This Row],[Parameter]]=\"Ca_gkg\",tblAnforderungen[[#This Row],[Min]]*1.4,IF(tblAnforderungen[[#This Row],[Parameter]]=\"Pverd_gkg\",tblAnforderungen[[#This Row],[Min]]*1.3,IF(tblAnforderungen[[#This Row],[Parameter]]=\"Na_gkg\",tblAnforderungen[[#This Row],[Min]]*1.3,tblAnforderungen[[#This Row],[Min]]*1.3)))))))))))","v":15}]
["Pute","Finisher 1",9,12,"MetCys_gkg","g/kg",9.5,{"$f":"IF(tblAnforderungen[[#This Row],[Min]]=\"\",\"\",IF(tblAnforderungen[[#This Row],[Parameter]]=\"ME\",tblAnforderungen[[#This Row],[Min]]+0.7,IF(tblAnforderungen[[#This Row],[Parameter]]=\"XP\",tblAnforderungen[[#This Row],[Min]]*1.3,IF(tblAnforderungen[[#This Row],[Parameter]]=\"Lysin_gkg\",tblAnforderungen[[#This Row],[Min]]*1.25,IF(tblAnforderungen[[#This Row],[Parameter]]=\"Methionin_gkg\",tblAnforderungen[[#This Row],[Min]]*1.25,IF(tblAnforderungen[[#This Row],[Parameter]]=\"MetCys_gkg\",tblAnforderungen[[#This Row],[Min]]*1.25,IF(tblAnforderungen[[#This Row],[Parameter]]=\"Rohfett_gkg\",tblAnforderungen[[#This Row],[Min]]*2,IF(tblAnforderungen[[#This Row],[Parameter]]=\"Rohfaser_gkg\",tblAnforderungen[[#This Row],[Min]]*2,IF(tblAnforderungen[[#This Row],[Parameter]]=\"Ca_gkg\",tblAnforderungen[[#This Row],[Min]]*1.4,IF(tblAnforderungen[[#This Row],[Parameter]]=\"Pverd_gkg\",tblAnforderungen[[#This Row],[Min]]*1.3,IF(tblAnforderungen[[#This Row],[Parameter]]=\"Na_gkg\",tblAnforderungen[[#This Row],[Min]]*1.3,tblAnforderungen[[#This Row],[Min]]*1.3)))))))))))","v":11.875}]
["Pute","Finisher 1",9,12,"Ca_gkg","g/kg",7,8.5]
["Pute","Finisher 1",9,12,"Pverd_gkg","g/kg",4,{"$f":"IF(tblAnforderungen[[#This Row],[Min]]=\"\",\"\",IF(tblAnforderungen[[#This Row],[Parameter]]=\"ME\",tblAnforderungen[[#This Row],[Min]]+0.7,IF(tblAnforderungen[[#This Row],[Parameter]]=\"XP\",tblAnforderungen[[#This Row],[Min]]*1.3,IF(tblAnforderungen[[#This Row],[Parameter]]=\"Lysin_gkg\",tblAnforderungen[[#This Row],[Min]]*1.25,IF(tblAnforderungen[[#This Row],[Parameter]]=\"Methionin_gkg\",tblAnforderungen[[#This Row],[Min]]*1.25,IF(tblAnforderungen[[#This Row],[Parameter]]=\"MetCys_gkg\",tblAnforderungen[[#This Row],[Min]]*1.25,IF(tblAnforderungen[[#This Row],[Parameter]]=\"Rohfett_gkg\",tblAnforderungen[[#This Row],[Min]]*2,IF(tblAnforderungen[[#This Row],[Parameter]]=\"Rohfaser_gkg\",tblAnforderungen[[#This Row],[Min]]*2,IF(tblAnforderungen[[#This Row],[Parameter]]=\"Ca_gkg\",tblAnforderungen[[#This Row],[Min]]*1.4,IF(tblAnforderungen[[#This Row],[Parameter]]=\"Pverd_gkg\",tblAnforderungen[[#This Row],[Min]]*1.3,IF(tblAnforderungen[[#This Row],[Parameter]]=\"Na_gkg\",tblAnforderungen[[#This Row],[Min]]*1.3,tblAnforderungen[[#This Row],[Min]]*1.3)))))))))))","v":5.2}]
["Pute","Finisher 1",9,12,"Na_gkg","g/kg",1.5,1.8]
["Pute","Finisher 1",9,12,"Rohfett_gkg","g/kg",null,80]
["Pute","Finisher 1",9,12,"Rohfaser_gkg","g/kg",null,60]
["Pute","Finisher 2",12,20,"ME","MJ/kg",11.8,{"$f":"IF(tblAnforderungen[[#This Row],[Min]]=\"\",\"\",IF(tblAnforderungen[[#This Row],[Parameter]]=\"ME\",tblAnforderungen[[#This Row],[Min]]+0.7,IF(tblAnforderungen[[#This Row],[Parameter]]=\"XP\",tblAnforderungen[[#This Row],[Min]]*1.3,IF(tblAnforderungen[[#This Row],[Parameter]]=\"Lysin_gkg\",tblAnforderungen[[#This Row],[Min]]*1.25,IF(tblAnforderungen[[#This Row],[Parameter]]=\"Methionin_gkg\",tblAnforderungen[[#This Row],[Min]]*1.25,IF(tblAnforderungen[[#This Row],[Parameter]]=\"MetCys_gkg\",tblAnforderungen[[#This Row],[Min]]*1.25,IF(tblAnforderungen[[#This Row],[Parameter]]=\"Rohfett_gkg\",tblAnforderungen[[#This Row],[Min]]*2,IF(tblAnforderungen[[#This Row],[Parameter]]=\"Rohfaser_gkg\",tblAnforderungen[[#This Row],[Min]]*2,IF(tblAnforderungen[[#This Row],[Parameter]]=\"Ca_gkg\",tblAnforderungen[[#This Row],[Min]]*1.4,IF(tblAnforderungen[[#This Row],[Parameter]]=\"Pverd_gkg\",tblAnforderungen[[#This Row],[Min]]*1.3,IF(tblAnforderungen[[#This Row],[Parameter]]=\"Na_gkg\",tblAnforderungen[[#This Row],[Min]]*1.3,tblAnforderungen[[#This Row],[Min]]*1.3)))))))))))","v":12.5}]
["Pute","Finisher 2",12,20,"XP","g/kg",175,{"$f":"IF(tblAnforderungen[[#This Row],[Min]]=\"\",\"\",IF(tblAnforderungen[[#This Row],[Parameter]]=\"ME\",tblAnforderungen[[#This Row],[Min]]+0.7,IF(tblAnforderungen[[#This Row],[Parameter]]=\"XP\",tblAnforderungen[[#This Row],[Min]]*1.3,IF(tblAnforderungen[[#This Row],[Parameter]]=\"Lysin_gkg\",tblAnforderungen[[#This Row],[Min]]*1.25,IF(tblAnforderungen[[#This Row],[Parameter]]=\"Methionin_gkg\",tblAnforderungen[[#This Row],[Min]]*1.25,IF(tblAnforderungen[[#This Row],[Parameter]]=\"MetCys_gkg\",tblAnforderungen[[#This Row],[Min]]*1.25,IF(tblAnforderungen[[#This Row],[Parameter]]=\"Rohfett_gkg\",tblAnforderungen[[#This Row],[Min]]*2,IF(tblAnforderungen[[#This Row],[Parameter]]=\"Rohfaser_gkg\",tblAnforderungen[[#This Row],[Min]]*2,IF(tblAnforderungen[[#This Row],[Parameter]]=\"Ca_gkg\",tblAnforderungen[[#This Row],[Min]]*1.4,IF(tblAnforderungen[[#This Row],[Parameter]]=\"Pverd_gkg\",tblAnforderungen[[#This Row],[Min]]*1.3,IF(tblAnforderungen[[#This Row],[Parameter]]=\"Na_gkg\",tblAnforderungen[[#This Row],[Min]]*1.3,tblAnforderungen[[#This Row],[Min]]*1.3)))))))))))","v":227.5}]
["Pute","Finisher 2",12,20,"Lysin_gkg","g/kg",11,{"$f":"IF(tblAnforderungen[[#This Row],[Min]]=\"\",\"\",IF(tblAnforderungen[[#This Row],[Parameter]]=\"ME\",tblAnforderungen[[#This Row],[Min]]+0.7,IF(tblAnforderungen[[#This Row],[Parameter]]=\"XP\",tblAnforderungen[[#This Row],[Min]]*1.3,IF(tblAnforderungen[[#This Row],[Parameter]]=\"Lysin_gkg\",tblAnforderungen[[#This Row],[Min]]*1.25,IF(tblAnforderungen[[#This Row],[Parameter]]=\"Methionin_gkg\",tblAnforderungen[[#This Row],[Min]]*1.25,IF(tblAnforderungen[[#This Row],[Parameter]]=\"MetCys_gkg\",tblAnforderungen[[#This Row],[Min]]*1.25,IF(tblAnforderungen[[#This Row],[Parameter]]=\"Rohfett_gkg\",tblAnforderungen[[#This Row],[Min]]*2,IF(tblAnforderungen[[#This Row],[Parameter]]=\"Rohfaser_gkg\",tblAnforderungen[[#This Row],[Min]]*2,IF(tblAnforderungen[[#This Row],[Parameter]]=\"Ca_gkg\",tblAnforderungen[[#This Row],[Min]]*1.4,IF(tblAnforderungen[[#This Row],[Parameter]]=\"Pverd_gkg\",tblAnforderungen[[#This Row],[Min]]*1.3,IF(tblAnforderungen[[#This Row],[Parameter]]=\"Na_gkg\",tblAnforderungen[[#This Row],[Min]]*1.3,tblAnforderungen[[#This Row],[Min]]*1.3)))))))))))","v":13.75}]
["Pute","Finisher 2",12,20,"MetCys_gkg","g/kg",9,{"$f":"IF(tblAnforderungen[[#This Row],[Min]]=\"\",\"\",IF(tblAnforderungen[[#This Row],[Parameter]]=\"ME\",tblAnforderungen[[#This Row],[Min]]+0.7,IF(tblAnforderungen[[#This Row],[Parameter]]=\"XP\",tblAnforderungen[[#This Row],[Min]]*1.3,IF(tblAnforderungen[[#This Row],[Parameter]]=\"Lysin_gkg\",tblAnforderungen[[#This Row],[Min]]*1.25,IF(tblAnforderungen[[#This Row],[Parameter]]=\"Methionin_gkg\",tblAnforderungen[[#This Row],[Min]]*1.25,IF(tblAnforderungen[[#This Row],[Parameter]]=\"MetCys_gkg\",tblAnforderungen[[#This Row],[Min]]*1.25,IF(tblAnforderungen[[#This Row],[Parameter]]=\"Rohfett_gkg\",tblAnforderungen[[#This Row],[Min]]*2,IF(tblAnforderungen[[#This Row],[Parameter]]=\"Rohfaser_gkg\",tblAnforderungen[[#This Row],[Min]]*2,IF(tblAnforderungen[[#This Row],[Parameter]]=\"Ca_gkg\",tblAnforderungen[[#This Row],[Min]]*1.4,IF(tblAnforderungen[[#This Row],[Parameter]]=\"Pverd_gkg\",tblAnforderungen[[#This Row],[Min]]*1.3,IF(tblAnforderungen[[#This Row],[Parameter]]=\"Na_gkg\",tblAnforderungen[[#This Row],[Min]]*1.3,tblAnforderungen[[#This Row],[Min]]*1.3)))))))))))","v":11.25}]
["Pute","Finisher 2",12,20,"Ca_gkg","g/kg",6.5,8]
["Pute","Finisher 2",12,20,"Pverd_gkg","g/kg",3.8,{"$f":"IF(tblAnforderungen[[#This Row],[Min]]=\"\",\"\",IF(tblAnforderungen[[#This Row],[Parameter]]=\"ME\",tblAnforderungen[[#This Row],[Min]]+0.7,IF(tblAnforderungen[[#This Row],[Parameter]]=\"XP\",tblAnforderungen[[#This Row],[Min]]*1.3,IF(tblAnforderungen[[#This Row],[Parameter]]=\"Lysin_gkg\",tblAnforderungen[[#This Row],[Min]]*1.25,IF(tblAnforderungen[[#This Row],[Parameter]]=\"Methionin_gkg\",tblAnforderungen[[#This Row],[Min]]*1.25,IF(tblAnforderungen[[#This Row],[Parameter]]=\"MetCys_gkg\",tblAnforderungen[[#This Row],[Min]]*1.25,IF(tblAnforderungen[[#This Row],[Parameter]]=\"Rohfett_gkg\",tblAnforderungen[[#This Row],[Min]]*2,IF(tblAnforderungen[[#This Row],[Parameter]]=\"Rohfaser_gkg\",tblAnforderungen[[#This Row],[Min]]*2,IF(tblAnforderungen[[#This Row],[Parameter]]=\"Ca_gkg\",tblAnforderungen[[#This Row],[Min]]*1.4,IF(tblAnforderungen[[#This Row],[Parameter]]=\"Pverd_gkg\",tblAnforderungen[[#This Row],[Min]]*1.3,IF(tblAnforderungen[[#This Row],[Parameter]]=\"Na_gkg\",tblAnforderungen[[#This Row],[Min]]*1.3,tblAnforderungen[[#This Row],[Min]]*1.3)))))))))))","v":4.9399999999999995}]
["Pute","Finisher 2",12,20,"Na_gkg","g/kg",1.4,1.7]
["Pute","Finisher 2",12,20,"Rohfett_gkg","g/kg",null,80]
["Pute","Finisher 2",12,20,"Rohfaser_gkg","g/kg",null,65]
["Broiler","Vorstarter",0,1,"ME","MJ/kg",12.6,{"$f":"IF(tblAnforderungen[[#This Row],[Min]]=\"\",\"\",IF(tblAnforderungen[[#This Row],[Parameter]]=\"ME\",tblAnforderungen[[#This Row],[Min]]+0.7,IF(tblAnforderungen[[#This Row],[Parameter]]=\"XP\",tblAnforderungen[[#This Row],[Min]]*1.3,IF(tblAnforderungen[[#This Row],[Parameter]]=\"Lysin_gkg\",tblAnforderungen[[#This Row],[Min]]*1.25,IF(tblAnforderungen[[#This Row],[Parameter]]=\"Methionin_gkg\",tblAnforderungen[[#This Row],[Min]]*1.25,IF(tblAnforderungen[[#This Row],[Parameter]]=\"MetCys_gkg\",tblAnforderungen[[#This Row],[Min]]*1.25,IF(tblAnforderungen[[#This Row],[Parameter]]=\"Rohfett_gkg\",tblAnforderungen[[#This Row],[Min]]*2,IF(tblAnforderungen[[#This Row],[Parameter]]=\"Rohfaser_gkg\",tblAnforderungen[[#This Row],[Min]]*2,IF(tblAnforderungen[[#This Row],[Parameter]]=\"Ca_gkg\",tblAnforderungen[[#This Row],[Min]]*1.4,IF(tblAnforderungen[[#This Row],[Parameter]]=\"Pverd_gkg\",tblAnforderungen[[#This Row],[Min]]*1.3,IF(tblAnforderungen[[#This Row],[Parameter]]=\"Na_gkg\",tblAnforderungen[[#This Row],[Min]]*1.3,tblAnforderungen[[#This Row],[Min]]*1.3)))))))))))","v":13.299999999999999}]
["Broiler","Vorstarter",0,1,"XP","g/kg",220,{"$f":"IF(tblAnforderungen[[#This Row],[Min]]=\"\",\"\",IF(tblAnforderungen[[#This Row],[Parameter]]=\"ME\",tblAnforderungen[[#This Row],[Min]]+0.7,IF(tblAnforderungen[[#This Row],[Parameter]]=\"XP\",tblAnforderungen[[#This Row],[Min]]*1.3,IF(tblAnforderungen[[#This Row],[Parameter]]=\"Lysin_gkg\",tblAnforderungen[[#This Row],[Min]]*1.25,IF(tblAnforderungen[[#This Row],[Parameter]]=\"Methionin_gkg\",tblAnforderungen[[#This Row],[Min]]*1.25,IF(tblAnforderungen[[#This Row],[Parameter]]=\"MetCys_gkg\",tblAnforderungen[[#This Row],[Min]]*1.25,IF(tblAnforderungen[[#This Row],[Parameter]]=\"Rohfett_gkg\",tblAnforderungen[[#This Row],[Min]]*2,IF(tblAnforderungen[[#This Row],[Parameter]]=\"Rohfaser_gkg\",tblAnforderungen[[#This Row],[Min]]*2,IF(tblAnforderungen[[#This Row],[Parameter]]=\"Ca_gkg\",tblAnforderungen[[#This Row],[Min]]*1.4,IF(tblAnforderungen[[#This Row],[Parameter]]=\"Pverd_gkg\",tblAnforderungen[[#This Row],[Min]]*1.3,IF(tblAnforderungen[[#This Row],[Parameter]]=\"Na_gkg\",tblAnforderungen[[#This Row],[Min]]*1.3,tblAnforderungen[[#This Row],[Min]]*1.3)))))))))))","v":286}]
["Broiler","Vorstarter",0,1,"Lysin_gkg","g/kg",13,{"$f":"IF(tblAnforderungen[[#This Row],[Min]]=\"\",\"\",IF(tblAnforderungen[[#This Row],[Parameter]]=\"ME\",tblAnforderungen[[#This Row],[Min]]+0.7,IF(tblAnforderungen[[#This Row],[Parameter]]=\"XP\",tblAnforderungen[[#This Row],[Min]]*1.3,IF(tblAnforderungen[[#This Row],[Parameter]]=\"Lysin_gkg\",tblAnforderungen[[#This Row],[Min]]*1.25,IF(tblAnforderungen[[#This Row],[Parameter]]=\"Methionin_gkg\",tblAnforderungen[[#This Row],[Min]]*1.25,IF(tblAnforderungen[[#This Row],[Parameter]]=\"MetCys_gkg\",tblAnforderungen[[#This Row],[Min]]*1.25,IF(tblAnforderungen[[#This Row],[Parameter]]=\"Rohfett_gkg\",tblAnforderungen[[#This Row],[Min]]*2,IF(tblAnforderungen[[#This Row],[Parameter]]=\"Rohfaser_gkg\",tblAnforderungen[[#This Row],[Min]]*2,IF(tblAnforderungen[[#This Row],[Parameter]]=\"Ca_gkg\",tblAnforderungen[[#This Row],[Min]]*1.4,IF(tblAnforderungen[[#This Row],[Parameter]]=\"Pverd_gkg\",tblAnforderungen[[#This Row],[Min]]*1.3,IF(tblAnforderungen[[#This Row],[Parameter]]=\"Na_gkg\",tblAnforderungen[[#This Row],[Min]]*1.3,tblAnforderungen[[#This Row],[Min]]*1.3)))))))))))","v":16.25}]
["Broiler","Vorstarter",0,1,"MetCys_gkg","g/kg",10.5,{"$f":"IF(tblAnforderungen[[#This Row],[Min]]=\"\",\"\",IF(tblAnforderungen[[#This Row],[Parameter]]=\"ME\",tblAnforderungen[[#This Row],[Min]]+0.7,IF(tblAnforderungen[[#This Row],[Parameter]]=\"XP\",tblAnforderungen[[#This Row],[Min]]*1.3,IF(tblAnforderungen[[#This Row],[Parameter]]=\"Lysin_gkg\",tblAnforderungen[[#This Row],[Min]]*1.25,IF(tblAnforderungen[[#This Row],[Parameter]]=\"Methionin_gkg\",tblAnforderungen[[#This Row],[Min]]*1.25,IF(tblAnforderungen[[#This Row],[Parameter]]=\"MetCys_gkg\",tblAnforderungen[[#This Row],[Min]]*1.25,IF(tblAnforderungen[[#This Row],[Parameter]]=\"Rohfett_gkg\",tblAnforderungen[[#This Row],[Min]]*2,IF(tblAnforderungen[[#This Row],[Parameter]]=\"Rohfaser_gkg\",tblAnforderungen[[#This Row],[Min]]*2,IF(tblAnforderungen[[#This Row],[Parameter]]=\"Ca_gkg\",tblAnforderungen[[#This Row],[Min]]*1.4,IF(tblAnforderungen[[#This Row],[Parameter]]=\"Pverd_gkg\",tblAnforderungen[[#This Row],[Min]]*1.3,IF(tblAnforderungen[[#This Row],[Parameter]]=\"Na_gkg\",tblAnforderungen[[#This Row],[Min]]*1.3,tblAnforderungen[[#This Row],[Min]]*1.3)))))))))))","v":13.125}]
["Broiler","Vorstarter",0,1,"Ca_gkg","g/kg",8,10]
["Broiler","Vorstarter",0,1,"Pverd_gkg","g/kg",4.2,{"$f":"IF(tblAnforderungen[[#This Row],[Min]]=\"\",\"\",IF(tblAnforderungen[[#This Row],[Parameter]]=\"ME\",tblAnforderungen[[#This Row],[Min]]+0.7,IF(tblAnforderungen[[#This Row],[Parameter]]=\"XP\",tblAnforderungen[[#This Row],[Min]]*1.3,IF(tblAnforderungen[[#This Row],[Parameter]]=\"Lysin_gkg\",tblAnforderungen[[#This Row],[Min]]*1.25,IF(tblAnforderungen[[#This Row],[Parameter]]=\"Methionin_gkg\",tblAnforderungen[[#This Row],[Min]]*1.25,IF(tblAnforderungen[[#This Row],[Parameter]]=\"MetCys_gkg\",tblAnforderungen[[#This Row],[Min]]*1.25,IF(tblAnforderungen[[#This Row],[Parameter]]=\"Rohfett_gkg\",tblAnforderungen[[#This Row],[Min]]*2,IF(tblAnforderungen[[#This Row],[Parameter]]=\"Rohfaser_gkg\",tblAnforderungen[[#This Row],[Min]]*2,IF(tblAnforderungen[[#This Row],[Parameter]]=\"Ca_gkg\",tblAnforderungen[[#This Row],[Min]]*1.4,IF(tblAnforderungen[[#This Row],[Parameter]]=\"Pverd_gkg\",tblAnforderungen[[#This Row],[Min]]*1.3,IF(tblAnforderungen[[#This Row],[Parameter]]=\"Na_gkg\",tblAnforderungen[[#This Row],[Min]]*1.3,tblAnforderungen[[#This Row],[Min]]*1.3)))))))))))","v":5.4600000000000009}]
["Broiler","Vorstarter",0,1,"Na_gkg","g/kg",1.6,2]
["Broiler","Vorstarter",0,1,"Rohfett_gkg","g/kg",null,80]
["Broiler","Vorstarter",0,1,"Rohfaser_gkg","g/kg",null,40]
["Broiler","Starter",1,3,"ME","MJ/kg",12.4,{"$f":"IF(tblAnforderungen[[#This Row],[Min]]=\"\",\"\",IF(tblAnforderungen[[#This Row],[Parameter]]=\"ME\",tblAnforderungen[[#This Row],[Min]]+0.7,IF(tblAnforderungen[[#This Row],[Parameter]]=\"XP\",tblAnforderungen[[#This Row],[Min]]*1.3,IF(tblAnforderungen[[#This Row],[Parameter]]=\"Lysin_gkg\",tblAnforderungen[[#This Row],[Min]]*1.25,IF(tblAnforderungen[[#This Row],[Parameter]]=\"Methionin_gkg\",tblAnforderungen[[#This Row],[Min]]*1.25,IF(tblAnforderungen[[#This Row],[Parameter]]=\"MetCys_gkg\",tblAnforderungen[[#This Row],[Min]]*1.25,IF(tblAnforderungen[[#This Row],[Parameter]]=\"Rohfett_gkg\",tblAnforderungen[[#This Row],[Min]]*2,IF(tblAnforderungen[[#This Row],[Parameter]]=\"Rohfaser_gkg\",tblAnforderungen[[#This Row],[Min]]*2,IF(tblAnforderungen[[#This Row],[Parameter]]=\"Ca_gkg\",tblAnforderungen[[#This Row],[Min]]*1.4,IF(tblAnforderungen[[#This Row],[Parameter]]=\"Pverd_gkg\",tblAnforderungen[[#This Row],[Min]]*1.3,IF(tblAnforderungen[[#This Row],[Parameter]]=\"Na_gkg\",tblAnforderungen[[#This Row],[Min]]*1.3,tblAnforderungen[[#This Row],[Min]]*1.3)))))))))))","v":13.1}]
["Broiler","Starter",1,3,"XP","g/kg",210,{"$f":"IF(tblAnforderungen[[#This Row],[Min]]=\"\",\"\",IF(tblAnforderungen[[#This Row],[Parameter]]=\"ME\",tblAnforderungen[[#This Row],[Min]]+0.7,IF(tblAnforderungen[[#This Row],[Parameter]]=\"XP\",tblAnforderungen[[#This Row],[Min]]*1.3,IF(tblAnforderungen[[#This Row],[Parameter]]=\"Lysin_gkg\",tblAnforderungen[[#This Row],[Min]]*1.25,IF(tblAnforderungen[[#This Row],[Parameter]]=\"Methionin_gkg\",tblAnforderungen[[#This Row],[Min]]*1.25,IF(tblAnforderungen[[#This Row],[Parameter]]=\"MetCys_gkg\",tblAnforderungen[[#This Row],[Min]]*1.25,IF(tblAnforderungen[[#This Row],[Parameter]]=\"Rohfett_gkg\",tblAnforderungen[[#This Row],[Min]]*2,IF(tblAnforderungen[[#This Row],[Parameter]]=\"Rohfaser_gkg\",tblAnforderungen[[#This Row],[Min]]*2,IF(tblAnforderungen[[#This Row],[Parameter]]=\"Ca_gkg\",tblAnforderungen[[#This Row],[Min]]*1.4,IF(tblAnforderungen[[#This Row],[Parameter]]=\"Pverd_gkg\",tblAnforderungen[[#This Row],[Min]]*1.3,IF(tblAnforderungen[[#This Row],[Parameter]]=\"Na_gkg\",tblAnforderungen[[#This Row],[Min]]*1.3,tblAnforderungen[[#This Row],[Min]]*1.3)))))))))))","v":273}]
["Broiler","Starter",1,3,"Lysin_gkg","g/kg",12,{"$f":"IF(tblAnforderungen[[#This Row],[Min]]=\"\",\"\",IF(tblAnforderungen[[#This Row],[Parameter]]=\"ME\",tblAnforderungen[[#This Row],[Min]]+0.7,IF(tblAnforderungen[[#This Row],[Parameter]]=\"XP\",tblAnforderungen[[#This Row],[Min]]*1.3,IF(tblAnforderungen[[#This Row],[Parameter]]=\"Lysin_gkg\",tblAnforderungen[[#This Row],[Min]]*1.25,IF(tblAnforderungen[[#This Row],[Parameter]]=\"Methionin_gkg\",tblAnforderungen[[#This Row],[Min]]*1.25,IF(tblAnforderungen[[#This Row],[Parameter]]=\"MetCys_gkg\",tblAnforderungen[[#This Row],[Min]]*1.25,IF(tblAnforderungen[[#This Row],[Parameter]]=\"Rohfett_gkg\",tblAnforderungen[[#This Row],[Min]]*2,IF(tblAnforderungen[[#This Row],[Parameter]]=\"Rohfaser_gkg\",tblAnforderungen[[#This Row],[Min]]*2,IF(tblAnforderungen[[#This Row],[Parameter]]=\"Ca_gkg\",tblAnforderungen[[#This Row],[Min]]*1.4,IF(tblAnforderungen[[#This Row],[Parameter]]=\"Pverd_gkg\",tblAnforderungen[[#This Row],[Min]]*1.3,IF(tblAnforderungen[[#This Row],[Parameter]]=\"Na_gkg\",tblAnforderungen[[#This Row],[Min]]*1.3,tblAnforderungen[[#This Row],[Min]]*1.3)))))))))))","v":15}]
["Broiler","Starter",1,3,"MetCys_gkg","g/kg",10,{"$f":"IF(tblAnforderungen[[#This Row],[Min]]=\"\",\"\",IF(tblAnforderungen[[#This Row],[Parameter]]=\"ME\",tblAnforderungen[[#This Row],[Min]]+0.7,IF(tblAnforderungen[[#This Row],[Parameter]]=\"XP\",tblAnforderungen[[#This Row],[Min]]*1.3,IF(tblAnforderungen[[#This Row],[Parameter]]=\"Lysin_gkg\",tblAnforderungen[[#This Row],[Min]]*1.25,IF(tblAnforderungen[[#This Row],[Parameter]]=\"Methionin_gkg\",tblAnforderungen[[#This Row],[Min]]*1.25,IF(tblAnforderungen[[#This Row],[Parameter]]=\"MetCys_gkg\",tblAnforderungen[[#This Row],[Min]]*1.25,IF(tblAnforderungen[[#This Row],[Parameter]]=\"Rohfett_gkg\",tblAnforderungen[[#This Row],[Min]]*2,IF(tblAnforderungen[[#This Row],[Parameter]]=\"Rohfaser_gkg\",tblAnforderungen[[#This Row],[Min]]*2,IF(tblAnforderungen[[#This Row],[Parameter]]=\"Ca_gkg\",tblAnforderungen[[#This Row],[Min]]*1.4,IF(tblAnforderungen[[#This Row],[Parameter]]=\"Pverd_gkg\",tblAnforderungen[[#This Row],[Min]]*1.3,IF(tblAnforderungen[[#This Row],[Parameter]]=\"Na_gkg\",tblAnforderungen[[#This Row],[Min]]*1.3,tblAnforderungen[[#This Row],[Min]]*1.3)))))))))))","v":12.5}]
["Broiler","Starter",1,3,"Ca_gkg","g/kg",7,9]
["Broiler","Starter",1,3,"Pverd_gkg","g/kg",4,{"$f":"IF(tblAnforderungen[[#This Row],[Min]]=\"\",\"\",IF(tblAnforderungen[[#This Row],[Parameter]]=\"ME\",tblAnforderungen[[#This Row],[Min]]+0.7,IF(tblAnforderungen[[#This Row],[Parameter]]=\"XP\",tblAnforderungen[[#This Row],[Min]]*1.3,IF(tblAnforderungen[[#This Row],[Parameter]]=\"Lysin_gkg\",tblAnforderungen[[#This Row],[Min]]*1.25,IF(tblAnforderungen[[#This Row],[Parameter]]=\"Methionin_gkg\",tblAnforderungen[[#This Row],[Min]]*1.25,IF(tblAnforderungen[[#This Row],[Parameter]]=\"MetCys_gkg\",tblAnforderungen[[#This Row],[Min]]*1.25,IF(tblAnforderungen[[#This Row],[Parameter]]=\"Rohfett_gkg\",tblAnforderungen[[#This Row],[Min]]*2,IF(tblAnforderungen[[#This Row],[Parameter]]=\"Rohfaser_gkg\",tblAnforderungen[[#This Row],[Min]]*2,IF(tblAnforderungen[[#This Row],[Parameter]]=\"Ca_gkg\",tblAnforderungen[[#This Row],[Min]]*1.4,IF(tblAnforderungen[[#This Row],[Parameter]]=\"Pverd_gkg\",tblAnforderungen[[#This Row],[Min]]*1.3,IF(tblAnforderungen[[#This Row],[Parameter]]=\"Na_gkg\",tblAnforderungen[[#This Row],[Min]]*1.3,tblAnforderungen[[#This Row],[Min]]*1.3)))))))))))","v":5.2}]
["Broiler","Starter",1,3,"Na_gkg","g/kg",1.5,1.8]
["Broiler","Starter",1,3,"Rohfett_gkg","g/kg",null,80]
["Broiler","Starter",1,3,"Rohfaser_gkg","g/kg",null,45]
["Broiler","Grower",3,5,"ME","MJ/kg",12.3,{"$f":"IF(tblAnforderungen[[#This Row],[Min]]=\"\",\"\",IF(tblAnforderungen[[#This Row],[Parameter]]=\"ME\",tblAnforderungen[[#This Row],[Min]]+0.7,IF(tblAnforderungen[[#This Row],[Parameter]]=\"XP\",tblAnforderungen[[#This Row],[Min]]*1.3,IF(tblAnforderungen[[#This Row],[Parameter]]=\"Lysin_gkg\",tblAnforderungen[[#This Row],[Min]]*1.25,IF(tblAnforderungen[[#This Row],[Parameter]]=\"Methionin_gkg\",tblAnforderungen[[#This Row],[Min]]*1.25,IF(tblAnforderungen[[#This Row],[Parameter]]=\"MetCys_gkg\",tblAnforderungen[[#This Row],[Min]]*1.25,IF(tblAnforderungen[[#This Row],[Parameter]]=\"Rohfett_gkg\",tblAnforderungen[[#This Row],[Min]]*2,IF(tblAnforderungen[[#This Row],[Parameter]]=\"Rohfaser_gkg\",tblAnforderungen[[#This Row],[Min]]*2,IF(tblAnforderungen[[#This Row],[Parameter]]=\"Ca_gkg\",tblAnforderungen[[#This Row],[Min]]*1.4,IF(tblAnforderungen[[#This Row],[Parameter]]=\"Pverd_gkg\",tblAnforderungen[[#This Row],[Min]]*1.3,IF(tblAnforderungen[[#This Row],[Parameter]]=\"Na_gkg\",tblAnforderungen[[#This Row],[Min]]*1.3,tblAnforderungen[[#This Row],[Min]]*1.3)))))))))))","v":13}]
["Broiler","Grower",3,5,"XP","g/kg",190,{"$f":"IF(tblAnforderungen[[#This Row],[Min]]=\"\",\"\",IF(tblAnforderungen[[#This Row],[Parameter]]=\"ME\",tblAnforderungen[[#This Row],[Min]]+0.7,IF(tblAnforderungen[[#This Row],[Parameter]]=\"XP\",tblAnforderungen[[#This Row],[Min]]*1.3,IF(tblAnforderungen[[#This Row],[Parameter]]=\"Lysin_gkg\",tblAnforderungen[[#This Row],[Min]]*1.25,IF(tblAnforderungen[[#This Row],[Parameter]]=\"Methionin_gkg\",tblAnforderungen[[#This Row],[Min]]*1.25,IF(tblAnforderungen[[#This Row],[Parameter]]=\"MetCys_gkg\",tblAnforderungen[[#This Row],[Min]]*1.25,IF(tblAnforderungen[[#This Row],[Parameter]]=\"Rohfett_gkg\",tblAnforderungen[[#This Row],[Min]]*2,IF(tblAnforderungen[[#This Row],[Parameter]]=\"Rohfaser_gkg\",tblAnforderungen[[#This Row],[Min]]*2,IF(tblAnforderungen[[#This Row],[Parameter]]=\"Ca_gkg\",tblAnforderungen[[#This Row],[Min]]*1.4,IF(tblAnforderungen[[#This Row],[Parameter]]=\"Pverd_gkg\",tblAnforderungen[[#This Row],[Min]]*1.3,IF(tblAnforderungen[[#This Row],[Parameter]]=\"Na_gkg\",tblAnforderungen[[#This Row],[Min]]*1.3,tblAnforderungen[[#This Row],[Min]]*1.3)))))))))))","v":247}]
["Broiler","Grower",3,5,"Lysin_gkg","g/kg",11,{"$f":"IF(tblAnforderungen[[#This Row],[Min]]=\"\",\"\",IF(tblAnforderungen[[#This Row],[Parameter]]=\"ME\",tblAnforderungen[[#This Row],[Min]]+0.7,IF(tblAnforderungen[[#This Row],[Parameter]]=\"XP\",tblAnforderungen[[#This Row],[Min]]*1.3,IF(tblAnforderungen[[#This Row],[Parameter]]=\"Lysin_gkg\",tblAnforderungen[[#This Row],[Min]]*1.25,IF(tblAnforderungen[[#This Row],[Parameter]]=\"Methionin_gkg\",tblAnforderungen[[#This Row],[Min]]*1.25,IF(tblAnforderungen[[#This Row],[Parameter]]=\"MetCys_gkg\",tblAnforderungen[[#This Row],[Min]]*1.25,IF(tblAnforderungen[[#This Row],[Parameter]]=\"Rohfett_gkg\",tblAnforderungen[[#This Row],[Min]]*2,IF(tblAnforderungen[[#This Row],[Parameter]]=\"Rohfaser_gkg\",tblAnforderungen[[#This Row],[Min]]*2,IF(tblAnforderungen[[#This Row],[Parameter]]=\"Ca_gkg\",tblAnforderungen[[#This Row],[Min]]*1.4,IF(tblAnforderungen[[#This Row],[Parameter]]=\"Pverd_gkg\",tblAnforderungen[[#This Row],[Min]]*1.3,IF(tblAnforderungen[[#This Row],[Parameter]]=\"Na_gkg\",tblAnforderungen[[#This Row],[Min]]*1.3,tblAnforderungen[[#This Row],[Min]]*1.3)))))))))))","v":13.75}]
["Broiler","Grower",3,5,"MetCys_gkg","g/kg",9,{"$f":"IF(tblAnforderungen[[#This Row],[Min]]=\"\",\"\",IF(tblAnforderungen[[#This Row],[Parameter]]=\"ME\",tblAnforderungen[[#This Row],[Min]]+0.7,IF(tblAnforderungen[[#This Row],[Parameter]]=\"XP\",tblAnforderungen[[#This Row],[Min]]*1.3,IF(tblAnforderungen[[#This Row],[Parameter]]=\"Lysin_gkg\",tblAnforderungen[[#This Row],[Min]]*1.25,IF(tblAnforderungen[[#This Row],[Parameter]]=\"Methionin_gkg\",tblAnforderungen[[#This Row],[Min]]*1.25,IF(tblAnforderungen[[#This Row],[Parameter]]=\"MetCys_gkg\",tblAnforderungen[[#This Row],[Min]]*1.25,IF(tblAnforderungen[[#This Row],[Parameter]]=\"Rohfett_gkg\",tblAnforderungen[[#This Row],[Min]]*2,IF(tblAnforderungen[[#This Row],[Parameter]]=\"Rohfaser_gkg\",tblAnforderungen[[#This Row],[Min]]*2,IF(tblAnforderungen[[#This Row],[Parameter]]=\"Ca_gkg\",tblAnforderungen[[#This Row],[Min]]*1.4,IF(tblAnforderungen[[#This Row],[Parameter]]=\"Pverd_gkg\",tblAnforderungen[[#This Row],[Min]]*1.3,IF(tblAnforderungen[[#This Row],[Parameter]]=\"Na_gkg\",tblAnforderungen[[#This Row],[Min]]*1.3,tblAnforderungen[[#This Row],[Min]]*1.3)))))))))))","v":11.25}]
["Broiler","Grower",3,5,"Ca_gkg","g/kg",6.5,8]
["Broiler","Grower",3,5,"Pverd_gkg","g/kg",3.6,{"$f":"IF(tblAnforderungen[[#This Row],[Min]]=\"\",\"\",IF(tblAnforderungen[[#This Row],[Parameter]]=\"ME\",tblAnforderungen[[#This Row],[Min]]+0.7,IF(tblAnforderungen[[#This Row],[Parameter]]=\"XP\",tblAnforderungen[[#This Row],[Min]]*1.3,IF(tblAnforderungen[[#This Row],[Parameter]]=\"Lysin_gkg\",tblAnforderungen[[#This Row],[Min]]*1.25,IF(tblAnforderungen[[#This Row],[Parameter]]=\"Methionin_gkg\",tblAnforderungen[[#This Row],[Min]]*1.25,IF(tblAnforderungen[[#This Row],[Parameter]]=\"MetCys_gkg\",tblAnforderungen[[#This Row],[Min]]*1.25,IF(tblAnforderungen[[#This Row],[Parameter]]=\"Rohfett_gkg\",tblAnforderungen[[#This Row],[Min]]*2,IF(tblAnforderungen[[#This Row],[Parameter]]=\"Rohfaser_gkg\",tblAnforderungen[[#This Row],[Min]]*2,IF(tblAnforderungen[[#This Row],[Parameter]]=\"Ca_gkg\",tblAnforderungen[[#This Row],[Min]]*1.4,IF(tblAnforderungen[[#This Row],[Parameter]]=\"Pverd_gkg\",tblAnforderungen[[#This Row],[Min]]*1.3,IF(tblAnforderungen[[#This Row],[Parameter]]=\"Na_gkg\",tblAnforderungen[[#This Row],[Min]]*1.3,tblAnforderungen[[#This Row],[Min]]*1.3)))))))))))","v":4.6800000000000006}]
["Broiler","Grower",3,5,"Na_gkg","g/kg",1.4,1.7]
["Broiler","Grower",3,5,"Rohfett_gkg","g/kg",null,80]
["Broiler","Grower",3,5,"Rohfaser_gkg","g/kg",null,50]
["Broiler","Finisher",5,6,"ME","MJ/kg",12.1,{"$f":"IF(tblAnforderungen[[#This Row],[Min]]=\"\",\"\",IF(tblAnforderungen[[#This Row],[Parameter]]=\"ME\",tblAnforderungen[[#This Row],[Min]]+0.7,IF(tblAnforderungen[[#This Row],[Parameter]]=\"XP\",tblAnforderungen[[#This Row],[Min]]*1.3,IF(tblAnforderungen[[#This Row],[Parameter]]=\"Lysin_gkg\",tblAnforderungen[[#This Row],[Min]]*1.25,IF(tblAnforderungen[[#This Row],[Parameter]]=\"Methionin_gkg\",tblAnforderungen[[#This Row],[Min]]*1.25,IF(tblAnforderungen[[#This Row],[Parameter]]=\"MetCys_gkg\",tblAnforderungen[[#This Row],[Min]]*1.25,IF(tblAnforderungen[[#This Row],[Parameter]]=\"Rohfett_gkg\",tblAnforderungen[[#This Row],[Min]]*2,IF(tblAnforderungen[[#This Row],[Parameter]]=\"Rohfaser_gkg\",tblAnforderungen[[#This Row],[Min]]*2,IF(tblAnforderungen[[#This Row],[Parameter]]=\"Ca_gkg\",tblAnforderungen[[#This Row],[Min]]*1.4,IF(tblAnforderungen[[#This Row],[Parameter]]=\"Pverd_gkg\",tblAnforderungen[[#This Row],[Min]]*1.3,IF(tblAnforderungen[[#This Row],[Parameter]]=\"Na_gkg\",tblAnforderungen[[#This Row],[Min]]*1.3,tblAnforderungen[[#This Row],[Min]]*1.3)))))))))))","v":12.799999999999999}]
["Broiler","Finisher",5,6,"XP","g/kg",180,{"$f":"IF(tblAnforderungen[[#This Row],[Min]]=\"\",\"\",IF(tblAnforderungen[[#This Row],[Parameter]]=\"ME\",tblAnforderungen[[#This Row],[Min]]+0.7,IF(tblAnforderungen[[#This Row],[Parameter]]=\"XP\",tblAnforderungen[[#This Row],[Min]]*1.3,IF(tblAnforderungen[[#This Row],[Parameter]]=\"Lysin_gkg\",tblAnforderungen[[#This Row],[Min]]*1.25,IF(tblAnforderungen[[#This Row],[Parameter]]=\"Methionin_gkg\",tblAnforderungen[[#This Row],[Min]]*1.25,IF(tblAnforderungen[[#This Row],[Parameter]]=\"MetCys_gkg\",tblAnforderungen[[#This Row],[Min]]*1.25,IF(tblAnforderungen[[#This Row],[Parameter]]=\"Rohfett_gkg\",tblAnforderungen[[#This Row],[Min]]*2,IF(tblAnforderungen[[#This Row],[Parameter]]=\"Rohfaser_gkg\",tblAnforderungen[[#This Row],[Min]]*2,IF(tblAnforderungen[[#This Row],[Parameter]]=\"Ca_gkg\",tblAnforderungen[[#This Row],[Min]]*1.4,IF(tblAnforderungen[[#This Row],[Parameter]]=\"Pverd_gkg\",tblAnforderungen[[#This Row],[Min]]*1.3,IF(tblAnforderungen[[#This Row],[Parameter]]=\"Na_gkg\",tblAnforderungen[[#This Row],[Min]]*1.3,tblAnforderungen[[#This Row],[Min]]*1.3)))))))))))","v":234}]
["Broiler","Finisher",5,6,"Lysin_gkg","g/kg",10,{"$f":"IF(tblAnforderungen[[#This Row],[Min]]=\"\",\"\",IF(tblAnforderungen[[#This Row],[Parameter]]=\"ME\",tblAnforderungen[[#This Row],[Min]]+0.7,IF(tblAnforderungen[[#This Row],[Parameter]]=\"XP\",tblAnforderungen[[#This Row],[Min]]*1.3,IF(tblAnforderungen[[#This Row],[Parameter]]=\"Lysin_gkg\",tblAnforderungen[[#This Row],[Min]]*1.25,IF(tblAnforderungen[[#This Row],[Parameter]]=\"Methionin_gkg\",tblAnforderungen[[#This Row],[Min]]*1.25,IF(tblAnforderungen[[#This Row],[Parameter]]=\"MetCys_gkg\",tblAnforderungen[[#This Row],[Min]]*1.25,IF(tblAnforderungen[[#This Row],[Parameter]]=\"Rohfett_gkg\",tblAnforderungen[[#This Row],[Min]]*2,IF(tblAnforderungen[[#This Row],[Parameter]]=\"Rohfaser_gkg\",tblAnforderungen[[#This Row],[Min]]*2,IF(tblAnforderungen[[#This Row],[Parameter]]=\"Ca_gkg\",tblAnforderungen[[#This Row],[Min]]*1.4,IF(tblAnforderungen[[#This Row],[Parameter]]=\"Pverd_gkg\",tblAnforderungen[[#This Row],[Min]]*1.3,IF(tblAnforderungen[[#This Row],[Parameter]]=\"Na_gkg\",tblAnforderungen[[#This Row],[Min]]*1.3,tblAnforderungen[[#This Row],[Min]]*1.3)))))))))))","v":12.5}]
["Broiler","Finisher",5,6,"MetCys_gkg","g/kg",8,{"$f":"IF(tblAnforderungen[[#This Row],[Min]]=\"\",\"\",IF(tblAnforderungen[[#This Row],[Parameter]]=\"ME\",tblAnforderungen[[#This Row],[Min]]+0.7,IF(tblAnforderungen[[#This Row],[Parameter]]=\"XP\",tblAnforderungen[[#This Row],[Min]]*1.3,IF(tblAnforderungen[[#This Row],[Parameter]]=\"Lysin_gkg\",tblAnforderungen[[#This Row],[Min]]*1.25,IF(tblAnforderungen[[#This Row],[Parameter]]=\"Methionin_gkg\",tblAnforderungen[[#This Row],[Min]]*1.25,IF(tblAnforderungen[[#This Row],[Parameter]]=\"MetCys_gkg\",tblAnforderungen[[#This Row],[Min]]*1.25,IF(tblAnforderungen[[#This Row],[Parameter]]=\"Rohfett_gkg\",tblAnforderungen[[#This Row],[Min]]*2,IF(tblAnforderungen[[#This Row],[Parameter]]=\"Rohfaser_gkg\",tblAnforderungen[[#This Row],[Min]]*2,IF(tblAnforderungen[[#This Row],[Parameter]]=\"Ca_gkg\",tblAnforderungen[[#This Row],[Min]]*1.4,IF(tblAnforderungen[[#This Row],[Parameter]]=\"Pverd_gkg\",tblAnforderungen[[#This Row],[Min]]*1.3,IF(tblAnforderungen[[#This Row],[Parameter]]=\"Na_gkg\",tblAnforderungen[[#This Row],[Min]]*1.3,tblAnforderungen[[#This Row],[Min]]*1.3)))))))))))","v":10}]
["Broiler","Finisher",5,6,"Ca_gkg","g/kg",6,7.5]
["Broiler","Finisher",5,6,"Pverd_gkg","g/kg",3.4,{"$f":"IF(tblAnforderungen[[#This Row],[Min]]=\"\",\"\",IF(tblAnforderungen[[#This Row],[Parameter]]=\"ME\",tblAnforderungen[[#This Row],[Min]]+0.7,IF(tblAnforderungen[[#This Row],[Parameter]]=\"XP\",tblAnforderungen[[#This Row],[Min]]*1.3,IF(tblAnforderungen[[#This Row],[Parameter]]=\"Lysin_gkg\",tblAnforderungen[[#This Row],[Min]]*1.25,IF(tblAnforderungen[[#This Row],[Parameter]]=\"Methionin_gkg\",tblAnforderungen[[#This Row],[Min]]*1.25,IF(tblAnforderungen[[#This Row],[Parameter]]=\"MetCys_gkg\",tblAnforderungen[[#This Row],[Min]]*1.25,IF(tblAnforderungen[[#This Row],[Parameter]]=\"Rohfett_gkg\",tblAnforderungen[[#This Row],[Min]]*2,IF(tblAnforderungen[[#This Row],[Parameter]]=\"Rohfaser_gkg\",tblAnforderungen[[#This Row],[Min]]*2,IF(tblAnforderungen[[#This Row],[Parameter]]=\"Ca_gkg\",tblAnforderungen[[#This Row],[Min]]*1.4,IF(tblAnforderungen[[#This Row],[Parameter]]=\"Pverd_gkg\",tblAnforderungen[[#This Row],[Min]]*1.3,IF(tblAnforderungen[[#This Row],[Parameter]]=\"Na_gkg\",tblAnforderungen[[#This Row],[Min]]*1.3,tblAnforderungen[[#This Row],[Min]]*1.3)))))))))))","v":4.42}]
["Broiler","Finisher",5,6,"Na_gkg","g/kg",1.3,1.5]
["Broiler","Finisher",5,6,"Rohfett_gkg","g/kg",null,80]
["Broiler","Finisher",5,6,"Rohfaser_gkg","g/kg",null,55]
["Legehenne","Aufzucht 1",0,6,"ME","MJ/kg",11.5,{"$f":"IF(tblAnforderungen[[#This Row],[Min]]=\"\",\"\",IF(tblAnforderungen[[#This Row],[Parameter]]=\"ME\",tblAnforderungen[[#This Row],[Min]]+0.7,IF(tblAnforderungen[[#This Row],[Parameter]]=\"XP\",tblAnforderungen[[#This Row],[Min]]*1.3,IF(tblAnforderungen[[#This Row],[Parameter]]=\"Lysin_gkg\",tblAnforderungen[[#This Row],[Min]]*1.25,IF(tblAnforderungen[[#This Row],[Parameter]]=\"Methionin_gkg\",tblAnforderungen[[#This Row],[Min]]*1.25,IF(tblAnforderungen[[#This Row],[Parameter]]=\"MetCys_gkg\",tblAnforderungen[[#This Row],[Min]]*1.25,IF(tblAnforderungen[[#This Row],[Parameter]]=\"Rohfett_gkg\",tblAnforderungen[[#This Row],[Min]]*2,IF(tblAnforderungen[[#This Row],[Parameter]]=\"Rohfaser_gkg\",tblAnforderungen[[#This Row],[Min]]*2,IF(tblAnforderungen[[#This Row],[Parameter]]=\"Ca_gkg\",tblAnforderungen[[#This Row],[Min]]*1.4,IF(tblAnforderungen[[#This Row],[Parameter]]=\"Pverd_gkg\",tblAnforderungen[[#This Row],[Min]]*1.3,IF(tblAnforderungen[[#This Row],[Parameter]]=\"Na_gkg\",tblAnforderungen[[#This Row],[Min]]*1.3,tblAnforderungen[[#This Row],[Min]]*1.3)))))))))))","v":12.2}]
["Legehenne","Aufzucht 1",0,6,"XP","g/kg",180,{"$f":"IF(tblAnforderungen[[#This Row],[Min]]=\"\",\"\",IF(tblAnforderungen[[#This Row],[Parameter]]=\"ME\",tblAnforderungen[[#This Row],[Min]]+0.7,IF(tblAnforderungen[[#This Row],[Parameter]]=\"XP\",tblAnforderungen[[#This Row],[Min]]*1.3,IF(tblAnforderungen[[#This Row],[Parameter]]=\"Lysin_gkg\",tblAnforderungen[[#This Row],[Min]]*1.25,IF(tblAnforderungen[[#This Row],[Parameter]]=\"Methionin_gkg\",tblAnforderungen[[#This Row],[Min]]*1.25,IF(tblAnforderungen[[#This Row],[Parameter]]=\"MetCys_gkg\",tblAnforderungen[[#This Row],[Min]]*1.25,IF(tblAnforderungen[[#This Row],[Parameter]]=\"Rohfett_gkg\",tblAnforderungen[[#This Row],[Min]]*2,IF(tblAnforderungen[[#This Row],[Parameter]]=\"Rohfaser_gkg\",tblAnforderungen[[#This Row],[Min]]*2,IF(tblAnforderungen[[#This Row],[Parameter]]=\"Ca_gkg\",tblAnforderungen[[#This Row],[Min]]*1.4,IF(tblAnforderungen[[#This Row],[Parameter]]=\"Pverd_gkg\",tblAnforderungen[[#This Row],[Min]]*1.3,IF(tblAnforderungen[[#This Row],[Parameter]]=\"Na_gkg\",tblAnforderungen[[#This Row],[Min]]*1.3,tblAnforderungen[[#This Row],[Min]]*1.3)))))))))))","v":234}]
["Legehenne","Aufzucht 1",0,6,"Lysin_gkg","g/kg",8,{"$f":"IF(tblAnforderungen[[#This Row],[Min]]=\"\",\"\",IF(tblAnforderungen[[#This Row],[Parameter]]=\"ME\",tblAnforderungen[[#This Row],[Min]]+0.7,IF(tblAnforderungen[[#This Row],[Parameter]]=\"XP\",tblAnforderungen[[#This Row],[Min]]*1.3,IF(tblAnforderungen[[#This Row],[Parameter]]=\"Lysin_gkg\",tblAnforderungen[[#This Row],[Min]]*1.25,IF(tblAnforderungen[[#This Row],[Parameter]]=\"Methionin_gkg\",tblAnforderungen[[#This Row],[Min]]*1.25,IF(tblAnforderungen[[#This Row],[Parameter]]=\"MetCys_gkg\",tblAnforderungen[[#This Row],[Min]]*1.25,IF(tblAnforderungen[[#This Row],[Parameter]]=\"Rohfett_gkg\",tblAnforderungen[[#This Row],[Min]]*2,IF(tblAnforderungen[[#This Row],[Parameter]]=\"Rohfaser_gkg\",tblAnforderungen[[#This Row],[Min]]*2,IF(tblAnforderungen[[#This Row],[Parameter]]=\"Ca_gkg\",tblAnforderungen[[#This Row],[Min]]*1.4,IF(tblAnforderungen[[#This Row],[Parameter]]=\"Pverd_gkg\",tblAnforderungen[[#This Row],[Min]]*1.3,IF(tblAnforderungen[[#This Row],[Parameter]]=\"Na_gkg\",tblAnforderungen[[#This Row],[Min]]*1.3,tblAnforderungen[[#This Row],[Min]]*1.3)))))))))))","v":10}]
["Legehenne","Aufzucht 1",0,6,"MetCys_gkg","g/kg",6,{"$f":"IF(tblAnforderungen[[#This Row],[Min]]=\"\",\"\",IF(tblAnforderungen[[#This Row],[Parameter]]=\"ME\",tblAnforderungen[[#This Row],[Min]]+0.7,IF(tblAnforderungen[[#This Row],[Parameter]]=\"XP\",tblAnforderungen[[#This Row],[Min]]*1.3,IF(tblAnforderungen[[#This Row],[Parameter]]=\"Lysin_gkg\",tblAnforderungen[[#This Row],[Min]]*1.25,IF(tblAnforderungen[[#This Row],[Parameter]]=\"Methionin_gkg\",tblAnforderungen[[#This Row],[Min]]*1.25,IF(tblAnforderungen[[#This Row],[Parameter]]=\"MetCys_gkg\",tblAnforderungen[[#This Row],[Min]]*1.25,IF(tblAnforderungen[[#This Row],[Parameter]]=\"Rohfett_gkg\",tblAnforderungen[[#This Row],[Min]]*2,IF(tblAnforderungen[[#This Row],[Parameter]]=\"Rohfaser_gkg\",tblAnforderungen[[#This Row],[Min]]*2,IF(tblAnforderungen[[#This Row],[Parameter]]=\"Ca_gkg\",tblAnforderungen[[#This Row],[Min]]*1.4,IF(tblAnforderungen[[#This Row],[Parameter]]=\"Pverd_gkg\",tblAnforderungen[[#This Row],[Min]]*1.3,IF(tblAnforderungen[[#This Row],[Parameter]]=\"Na_gkg\",tblAnforderungen[[#This Row],[Min]]*1.3,tblAnforderungen[[#This Row],[Min]]*1.3)))))))))))","v":7.5}]
["Legehenne","Aufzucht 1",0,6,"Ca_gkg","g/kg",9,12]
["Legehenne","Aufzucht 1",0,6,"Pverd_gkg","g/kg",4,{"$f":"IF(tblAnforderungen[[#This Row],[Min]]=\"\",\"\",IF(tblAnforderungen[[#This Row],[Parameter]]=\"ME\",tblAnforderungen[[#This Row],[Min]]+0.7,IF(tblAnforderungen[[#This Row],[Parameter]]=\"XP\",tblAnforderungen[[#This Row],[Min]]*1.3,IF(tblAnforderungen[[#This Row],[Parameter]]=\"Lysin_gkg\",tblAnforderungen[[#This Row],[Min]]*1.25,IF(tblAnforderungen[[#This Row],[Parameter]]=\"Methionin_gkg\",tblAnforderungen[[#This Row],[Min]]*1.25,IF(tblAnforderungen[[#This Row],[Parameter]]=\"MetCys_gkg\",tblAnforderungen[[#This Row],[Min]]*1.25,IF(tblAnforderungen[[#This Row],[Parameter]]=\"Rohfett_gkg\",tblAnforderungen[[#This Row],[Min]]*2,IF(tblAnforderungen[[#This Row],[Parameter]]=\"Rohfaser_gkg\",tblAnforderungen[[#This Row],[Min]]*2,IF(tblAnforderungen[[#This Row],[Parameter]]=\"Ca_gkg\",tblAnforderungen[[#This Row],[Min]]*1.4,IF(tblAnforderungen[[#This Row],[Parameter]]=\"Pverd_gkg\",tblAnforderungen[[#This Row],[Min]]*1.3,IF(tblAnforderungen[[#This Row],[Parameter]]=\"Na_gkg\",tblAnforderungen[[#This Row],[Min]]*1.3,tblAnforderungen[[#This Row],[Min]]*1.3)))))))))))","v":5.2}]
["Legehenne","Aufzucht 1",0,6,"Na_gkg","g/kg",1.4,1.8]
["Legehenne","Aufzucht 1",0,6,"Rohfett_gkg","g/kg",null,80]
["Legehenne","Aufzucht 1",0,6,"Rohfaser_gkg","g/kg",null,55]
["Legehenne","Aufzucht 2",6,16,"ME","MJ/kg",11.3,{"$f":"IF(tblAnforderungen[[#This Row],[Min]]=\"\",\"\",IF(tblAnforderungen[[#This Row],[Parameter]]=\"ME\",tblAnforderungen[[#This Row],[Min]]+0.7,IF(tblAnforderungen[[#This Row],[Parameter]]=\"XP\",tblAnforderungen[[#This Row],[Min]]*1.3,IF(tblAnforderungen[[#This Row],[Parameter]]=\"Lysin_gkg\",tblAnforderungen[[#This Row],[Min]]*1.25,IF(tblAnforderungen[[#This Row],[Parameter]]=\"Methionin_gkg\",tblAnforderungen[[#This Row],[Min]]*1.25,IF(tblAnforderungen[[#This Row],[Parameter]]=\"MetCys_gkg\",tblAnforderungen[[#This Row],[Min]]*1.25,IF(tblAnforderungen[[#This Row],[Parameter]]=\"Rohfett_gkg\",tblAnforderungen[[#This Row],[Min]]*2,IF(tblAnforderungen[[#This Row],[Parameter]]=\"Rohfaser_gkg\",tblAnforderungen[[#This Row],[Min]]*2,IF(tblAnforderungen[[#This Row],[Parameter]]=\"Ca_gkg\",tblAnforderungen[[#This Row],[Min]]*1.4,IF(tblAnforderungen[[#This Row],[Parameter]]=\"Pverd_gkg\",tblAnforderungen[[#This Row],[Min]]*1.3,IF(tblAnforderungen[[#This Row],[Parameter]]=\"Na_gkg\",tblAnforderungen[[#This Row],[Min]]*1.3,tblAnforderungen[[#This Row],[Min]]*1.3)))))))))))","v":12}]
["Legehenne","Aufzucht 2",6,16,"XP","g/kg",160,{"$f":"IF(tblAnforderungen[[#This Row],[Min]]=\"\",\"\",IF(tblAnforderungen[[#This Row],[Parameter]]=\"ME\",tblAnforderungen[[#This Row],[Min]]+0.7,IF(tblAnforderungen[[#This Row],[Parameter]]=\"XP\",tblAnforderungen[[#This Row],[Min]]*1.3,IF(tblAnforderungen[[#This Row],[Parameter]]=\"Lysin_gkg\",tblAnforderungen[[#This Row],[Min]]*1.25,IF(tblAnforderungen[[#This Row],[Parameter]]=\"Methionin_gkg\",tblAnforderungen[[#This Row],[Min]]*1.25,IF(tblAnforderungen[[#This Row],[Parameter]]=\"MetCys_gkg\",tblAnforderungen[[#This Row],[Min]]*1.25,IF(tblAnforderungen[[#This Row],[Parameter]]=\"Rohfett_gkg\",tblAnforderungen[[#This Row],[Min]]*2,IF(tblAnforderungen[[#This Row],[Parameter]]=\"Rohfaser_gkg\",tblAnforderungen[[#This Row],[Min]]*2,IF(tblAnforderungen[[#This Row],[Parameter]]=\"Ca_gkg\",tblAnforderungen[[#This Row],[Min]]*1.4,IF(tblAnforderungen[[#This Row],[Parameter]]=\"Pverd_gkg\",tblAnforderungen[[#This Row],[Min]]*1.3,IF(tblAnforderungen[[#This Row],[Parameter]]=\"Na_gkg\",tblAnforderungen[[#This Row],[Min]]*1.3,tblAnforderungen[[#This Row],[Min]]*1.3)))))))))))","v":208}]
["Legehenne","Aufzucht 2",6,16,"Lysin_gkg","g/kg",7,{"$f":"IF(tblAnforderungen[[#This Row],[Min]]=\"\",\"\",IF(tblAnforderungen[[#This Row],[Parameter]]=\"ME\",tblAnforderungen[[#This Row],[Min]]+0.7,IF(tblAnforderungen[[#This Row],[Parameter]]=\"XP\",tblAnforderungen[[#This Row],[Min]]*1.3,IF(tblAnforderungen[[#This Row],[Parameter]]=\"Lysin_gkg\",tblAnforderungen[[#This Row],[Min]]*1.25,IF(tblAnforderungen[[#This Row],[Parameter]]=\"Methionin_gkg\",tblAnforderungen[[#This Row],[Min]]*1.25,IF(tblAnforderungen[[#This Row],[Parameter]]=\"MetCys_gkg\",tblAnforderungen[[#This Row],[Min]]*1.25,IF(tblAnforderungen[[#This Row],[Parameter]]=\"Rohfett_gkg\",tblAnforderungen[[#This Row],[Min]]*2,IF(tblAnforderungen[[#This Row],[Parameter]]=\"Rohfaser_gkg\",tblAnforderungen[[#This Row],[Min]]*2,IF(tblAnforderungen[[#This Row],[Parameter]]=\"Ca_gkg\",tblAnforderungen[[#This Row],[Min]]*1.4,IF(tblAnforderungen[[#This Row],[Parameter]]=\"Pverd_gkg\",tblAnforderungen[[#This Row],[Min]]*1.3,IF(tblAnforderungen[[#This Row],[Parameter]]=\"Na_gkg\",tblAnforderungen[[#This Row],[Min]]*1.3,tblAnforderungen[[#This Row],[Min]]*1.3)))))))))))","v":8.75}]
["Legehenne","Aufzucht 2",6,16,"MetCys_gkg","g/kg",5.5,{"$f":"IF(tblAnforderungen[[#This Row],[Min]]=\"\",\"\",IF(tblAnforderungen[[#This Row],[Parameter]]=\"ME\",tblAnforderungen[[#This Row],[Min]]+0.7,IF(tblAnforderungen[[#This Row],[Parameter]]=\"XP\",tblAnforderungen[[#This Row],[Min]]*1.3,IF(tblAnforderungen[[#This Row],[Parameter]]=\"Lysin_gkg\",tblAnforderungen[[#This Row],[Min]]*1.25,IF(tblAnforderungen[[#This Row],[Parameter]]=\"Methionin_gkg\",tblAnforderungen[[#This Row],[Min]]*1.25,IF(tblAnforderungen[[#This Row],[Parameter]]=\"MetCys_gkg\",tblAnforderungen[[#This Row],[Min]]*1.25,IF(tblAnforderungen[[#This Row],[Parameter]]=\"Rohfett_gkg\",tblAnforderungen[[#This Row],[Min]]*2,IF(tblAnforderungen[[#This Row],[Parameter]]=\"Rohfaser_gkg\",tblAnforderungen[[#This Row],[Min]]*2,IF(tblAnforderungen[[#This Row],[Parameter]]=\"Ca_gkg\",tblAnforderungen[[#This Row],[Min]]*1.4,IF(tblAnforderungen[[#This Row],[Parameter]]=\"Pverd_gkg\",tblAnforderungen[[#This Row],[Min]]*1.3,IF(tblAnforderungen[[#This Row],[Parameter]]=\"Na_gkg\",tblAnforderungen[[#This Row],[Min]]*1.3,tblAnforderungen[[#This Row],[Min]]*1.3)))))))))))","v":6.875}]
["Legehenne","Aufzucht 2",6,16,"Ca_gkg","g/kg",9,12]
["Legehenne","Aufzucht 2",6,16,"Pverd_gkg","g/kg",3.5,{"$f":"IF(tblAnforderungen[[#This Row],[Min]]=\"\",\"\",IF(tblAnforderungen[[#This Row],[Parameter]]=\"ME\",tblAnforderungen[[#This Row],[Min]]+0.7,IF(tblAnforderungen[[#This Row],[Parameter]]=\"XP\",tblAnforderungen[[#This Row],[Min]]*1.3,IF(tblAnforderungen[[#This Row],[Parameter]]=\"Lysin_gkg\",tblAnforderungen[[#This Row],[Min]]*1.25,IF(tblAnforderungen[[#This Row],[Parameter]]=\"Methionin_gkg\",tblAnforderungen[[#This Row],[Min]]*1.25,IF(tblAnforderungen[[#This Row],[Parameter]]=\"MetCys_gkg\",tblAnforderungen[[#This Row],[Min]]*1.25,IF(tblAnforderungen[[#This Row],[Parameter]]=\"Rohfett_gkg\",tblAnforderungen[[#This Row],[Min]]*2,IF(tblAnforderungen[[#This Row],[Parameter]]=\"Rohfaser_gkg\",tblAnforderungen[[#This Row],[Min]]*2,IF(tblAnforderungen[[#This Row],[Parameter]]=\"Ca_gkg\",tblAnforderungen[[#This Row],[Min]]*1.4,IF(tblAnforderungen[[#This Row],[Parameter]]=\"Pverd_gkg\",tblAnforderungen[[#This Row],[Min]]*1.3,IF(tblAnforderungen[[#This Row],[Parameter]]=\"Na_gkg\",tblAnforderungen[[#This Row],[Min]]*1.3,tblAnforderungen[[#This Row],[Min]]*1.3)))))))))))","v":4.55}]
["Legehenne","Aufzucht 2",6,16,"Na_gkg","g/kg",1.3,1.7]
["Legehenne","Aufzucht 2",6,16,"Rohfett_gkg","g/kg",null,90]
["Legehenne","Aufzucht 2",6,16,"Rohfaser_gkg","g/kg",null,60]
["Legehenne","Legephase",16,80,"ME","MJ/kg",11.5,{"$f":"IF(tblAnforderungen[[#This Row],[Min]]=\"\",\"\",IF(tblAnforderungen[[#This Row],[Parameter]]=\"ME\",tblAnforderungen[[#This Row],[Min]]+0.7,IF(tblAnforderungen[[#This Row],[Parameter]]=\"XP\",tblAnforderungen[[#This Row],[Min]]*1.3,IF(tblAnforderungen[[#This Row],[Parameter]]=\"Lysin_gkg\",tblAnforderungen[[#This Row],[Min]]*1.25,IF(tblAnforderungen[[#This Row],[Parameter]]=\"Methionin_gkg\",tblAnforderungen[[#This Row],[Min]]*1.25,IF(tblAnforderungen[[#This Row],[Parameter]]=\"MetCys_gkg\",tblAnforderungen[[#This Row],[Min]]*1.25,IF(tblAnforderungen[[#This Row],[Parameter]]=\"Rohfett_gkg\",tblAnforderungen[[#This Row],[Min]]*2,IF(tblAnforderungen[[#This Row],[Parameter]]=\"Rohfaser_gkg\",tblAnforderungen[[#This Row],[Min]]*2,IF(tblAnforderungen[[#This Row],[Parameter]]=\"Ca_gkg\",tblAnforderungen[[#This Row],[Min]]*1.4,IF(tblAnforderungen[[#This Row],[Parameter]]=\"Pverd_gkg\",tblAnforderungen[[#This Row],[Min]]*1.3,IF(tblAnforderungen[[#This Row],[Parameter]]=\"Na_gkg\",tblAnforderungen[[#This Row],[Min]]*1.3,tblAnforderungen[[#This Row],[Min]]*1.3)))))))))))","v":12.2}]
["Legehenne","Legephase",16,80,"XP","g/kg",170,{"$f":"IF(tblAnforderungen[[#This Row],[Min]]=\"\",\"\",IF(tblAnforderungen[[#This Row],[Parameter]]=\"ME\",tblAnforderungen[[#This Row],[Min]]+0.7,IF(tblAnforderungen[[#This Row],[Parameter]]=\"XP\",tblAnforderungen[[#This Row],[Min]]*1.3,IF(tblAnforderungen[[#This Row],[Parameter]]=\"Lysin_gkg\",tblAnforderungen[[#This Row],[Min]]*1.25,IF(tblAnforderungen[[#This Row],[Parameter]]=\"Methionin_gkg\",tblAnforderungen[[#This Row],[Min]]*1.25,IF(tblAnforderungen[[#This Row],[Parameter]]=\"MetCys_gkg\",tblAnforderungen[[#This Row],[Min]]*1.25,IF(tblAnforderungen[[#This Row],[Parameter]]=\"Rohfett_gkg\",tblAnforderungen[[#This Row],[Min]]*2,IF(tblAnforderungen[[#This Row],[Parameter]]=\"Rohfaser_gkg\",tblAnforderungen[[#This Row],[Min]]*2,IF(tblAnforderungen[[#This Row],[Parameter]]=\"Ca_gkg\",tblAnforderungen[[#This Row],[Min]]*1.4,IF(tblAnforderungen[[#This Row],[Parameter]]=\"Pverd_gkg\",tblAnforderungen[[#This Row],[Min]]*1.3,IF(tblAnforderungen[[#This Row],[Parameter]]=\"Na_gkg\",tblAnforderungen[[#This Row],[Min]]*1.3,tblAnforderungen[[#This Row],[Min]]*1.3)))))))))))","v":221}]
["Legehenne","Legephase",16,80,"Lysin_gkg","g/kg",8,{"$f":"IF(tblAnforderungen[[#This Row],[Min]]=\"\",\"\",IF(tblAnforderungen[[#This Row],[Parameter]]=\"ME\",tblAnforderungen[[#This Row],[Min]]+0.7,IF(tblAnforderungen[[#This Row],[Parameter]]=\"XP\",tblAnforderungen[[#This Row],[Min]]*1.3,IF(tblAnforderungen[[#This Row],[Parameter]]=\"Lysin_gkg\",tblAnforderungen[[#This Row],[Min]]*1.25,IF(tblAnforderungen[[#This Row],[Parameter]]=\"Methionin_gkg\",tblAnforderungen[[#This Row],[Min]]*1.25,IF(tblAnforderungen[[#This Row],[Parameter]]=\"MetCys_gkg\",tblAnforderungen[[#This Row],[Min]]*1.25,IF(tblAnforderungen[[#This Row],[Parameter]]=\"Rohfett_gkg\",tblAnforderungen[[#This Row],[Min]]*2,IF(tblAnforderungen[[#This Row],[Parameter]]=\"Rohfaser_gkg\",tblAnforderungen[[#This Row],[Min]]*2,IF(tblAnforderungen[[#This Row],[Parameter]]=\"Ca_gkg\",tblAnforderungen[[#This Row],[Min]]*1.4,IF(tblAnforderungen[[#This Row],[Parameter]]=\"Pverd_gkg\",tblAnforderungen[[#This Row],[Min]]*1.3,IF(tblAnforderungen[[#This Row],[Parameter]]=\"Na_gkg\",tblAnforderungen[[#This Row],[Min]]*1.3,tblAnforderungen[[#This Row],[Min]]*1.3)))))))))))","v":10}]
["Legehenne","Legephase",16,80,"MetCys_gkg","g/kg",6.5,{"$f":"IF(tblAnforderungen[[#This Row],[Min]]=\"\",\"\",IF(tblAnforderungen[[#This Row],[Parameter]]=\"ME\",tblAnforderungen[[#This Row],[Min]]+0.7,IF(tblAnforderungen[[#This Row],[Parameter]]=\"XP\",tblAnforderungen[[#This Row],[Min]]*1.3,IF(tblAnforderungen[[#This Row],[Parameter]]=\"Lysin_gkg\",tblAnforderungen[[#This Row],[Min]]*1.25,IF(tblAnforderungen[[#This Row],[Parameter]]=\"Methionin_gkg\",tblAnforderungen[[#This Row],[Min]]*1.25,IF(tblAnforderungen[[#This Row],[Parameter]]=\"MetCys_gkg\",tblAnforderungen[[#This Row],[Min]]*1.25,IF(tblAnforderungen[[#This Row],[Parameter]]=\"Rohfett_gkg\",tblAnforderungen[[#This Row],[Min]]*2,IF(tblAnforderungen[[#This Row],[Parameter]]=\"Rohfaser_gkg\",tblAnforderungen[[#This Row],[Min]]*2,IF(tblAnforderungen[[#This Row],[Parameter]]=\"Ca_gkg\",tblAnforderungen[[#This Row],[Min]]*1.4,IF(tblAnforderungen[[#This Row],[Parameter]]=\"Pverd_gkg\",tblAnforderungen[[#This Row],[Min]]*1.3,IF(tblAnforderungen[[#This Row],[Parameter]]=\"Na_gkg\",tblAnforderungen[[#This Row],[Min]]*1.3,tblAnforderungen[[#This Row],[Min]]*1.3)))))))))))","v":8.125}]
["Legehenne","Legephase",16,80,"Ca_gkg","g/kg",33,42]
["Legehenne","Legephase",16,80,"Pverd_gkg","g/kg",3.8,{"$f":"IF(tblAnforderungen[[#This Row],[Min]]=\"\",\"\",IF(tblAnforderungen[[#This Row],[Parameter]]=\"ME\",tblAnforderungen[[#This Row],[Min]]+0.7,IF(tblAnforderungen[[#This Row],[Parameter]]=\"XP\",tblAnforderungen[[#This Row],[Min]]*1.3,IF(tblAnforderungen[[#This Row],[Parameter]]=\"Lysin_gkg\",tblAnforderungen[[#This Row],[Min]]*1.25,IF(tblAnforderungen[[#This Row],[Parameter]]=\"Methionin_gkg\",tblAnforderungen[[#This Row],[Min]]*1.25,IF(tblAnforderungen[[#This Row],[Parameter]]=\"MetCys_gkg\",tblAnforderungen[[#This Row],[Min]]*1.25,IF(tblAnforderungen[[#This Row],[Parameter]]=\"Rohfett_gkg\",tblAnforderungen[[#This Row],[Min]]*2,IF(tblAnforderungen[[#This Row],[Parameter]]=\"Rohfaser_gkg\",tblAnforderungen[[#This Row],[Min]]*2,IF(tblAnforderungen[[#This Row],[Parameter]]=\"Ca_gkg\",tblAnforderungen[[#This Row],[Min]]*1.4,IF(tblAnforderungen[[#This Row],[Parameter]]=\"Pverd_gkg\",tblAnforderungen[[#This Row],[Min]]*1.3,IF(tblAnforderungen[[#This Row],[Parameter]]=\"Na_gkg\",tblAnforderungen[[#This Row],[Min]]*1.3,tblAnforderungen[[#This Row],[Min]]*1.3)))))))))))","v":4.9399999999999995}]
["Legehenne","Legephase",16,80,"Na_gkg","g/kg",1.5,2]
["Legehenne","Legephase",16,80,"Rohfett_gkg","g/kg",null,90]
["Legehenne","Legephase",16,80,"Rohfaser_gkg","g/kg",null,65]
["Schwein","Vorstarter",0,4,"ME","MJ/kg",14.2,{"$f":"IF(tblAnforderungen[[#This Row],[Min]]=\"\",\"\",IF(tblAnforderungen[[#This Row],[Parameter]]=\"ME\",tblAnforderungen[[#This Row],[Min]]+0.7,IF(tblAnforderungen[[#This Row],[Parameter]]=\"XP\",tblAnforderungen[[#This Row],[Min]]*1.3,IF(tblAnforderungen[[#This Row],[Parameter]]=\"Lysin_gkg\",tblAnforderungen[[#This Row],[Min]]*1.25,IF(tblAnforderungen[[#This Row],[Parameter]]=\"Methionin_gkg\",tblAnforderungen[[#This Row],[Min]]*1.25,IF(tblAnforderungen[[#This Row],[Parameter]]=\"MetCys_gkg\",tblAnforderungen[[#This Row],[Min]]*1.25,IF(tblAnforderungen[[#This Row],[Parameter]]=\"Rohfett_gkg\",tblAnforderungen[[#This Row],[Min]]*2,IF(tblAnforderungen[[#This Row],[Parameter]]=\"Rohfaser_gkg\",tblAnforderungen[[#This Row],[Min]]*2,IF(tblAnforderungen[[#This Row],[Parameter]]=\"Ca_gkg\",tblAnforderungen[[#This Row],[Min]]*1.4,IF(tblAnforderungen[[#This Row],[Parameter]]=\"Pverd_gkg\",tblAnforderungen[[#This Row],[Min]]*1.3,IF(tblAnforderungen[[#This Row],[Parameter]]=\"Na_gkg\",tblAnforderungen[[#This Row],[Min]]*1.3,tblAnforderungen[[#This Row],[Min]]*1.3)))))))))))","v":14.899999999999999}]
["Schwein","Vorstarter",0,4,"XP","g/kg",190,{"$f":"IF(tblAnforderungen[[#This Row],[Min]]=\"\",\"\",IF(tblAnforderungen[[#This Row],[Parameter]]=\"ME\",tblAnforderungen[[#This Row],[Min]]+0.7,IF(tblAnforderungen[[#This Row],[Parameter]]=\"XP\",tblAnforderungen[[#This Row],[Min]]*1.3,IF(tblAnforderungen[[#This Row],[Parameter]]=\"Lysin_gkg\",tblAnforderungen[[#This Row],[Min]]*1.25,IF(tblAnforderungen[[#This Row],[Parameter]]=\"Methionin_gkg\",tblAnforderungen[[#This Row],[Min]]*1.25,IF(tblAnforderungen[[#This Row],[Parameter]]=\"MetCys_gkg\",tblAnforderungen[[#This Row],[Min]]*1.25,IF(tblAnforderungen[[#This Row],[Parameter]]=\"Rohfett_gkg\",tblAnforderungen[[#This Row],[Min]]*2,IF(tblAnforderungen[[#This Row],[Parameter]]=\"Rohfaser_gkg\",tblAnforderungen[[#This Row],[Min]]*2,IF(tblAnforderungen[[#This Row],[Parameter]]=\"Ca_gkg\",tblAnforderungen[[#This Row],[Min]]*1.4,IF(tblAnforderungen[[#This Row],[Parameter]]=\"Pverd_gkg\",tblAnforderungen[[#This Row],[Min]]*1.3,IF(tblAnforderungen[[#This Row],[Parameter]]=\"Na_gkg\",tblAnforderungen[[#This Row],[Min]]*1.3,tblAnforderungen[[#This Row],[Min]]*1.3)))))))))))","v":247}]
["Schwein","Vorstarter",0,4,"Lysin_gkg","g/kg",13,{"$f":"IF(tblAnforderungen[[#This Row],[Min]]=\"\",\"\",IF(tblAnforderungen[[#This Row],[Parameter]]=\"ME\",tblAnforderungen[[#This Row],[Min]]+0.7,IF(tblAnforderungen[[#This Row],[Parameter]]=\"XP\",tblAnforderungen[[#This Row],[Min]]*1.3,IF(tblAnforderungen[[#This Row],[Parameter]]=\"Lysin_gkg\",tblAnforderungen[[#This Row],[Min]]*1.25,IF(tblAnforderungen[[#This Row],[Parameter]]=\"Methionin_gkg\",tblAnforderungen[[#This Row],[Min]]*1.25,IF(tblAnforderungen[[#This Row],[Parameter]]=\"MetCys_gkg\",tblAnforderungen[[#This Row],[Min]]*1.25,IF(tblAnforderungen[[#This Row],[Parameter]]=\"Rohfett_gkg\",tblAnforderungen[[#This Row],[Min]]*2,IF(tblAnforderungen[[#This Row],[Parameter]]=\"Rohfaser_gkg\",tblAnforderungen[[#This Row],[Min]]*2,IF(tblAnforderungen[[#This Row],[Parameter]]=\"Ca_gkg\",tblAnforderungen[[#This Row],[Min]]*1.4,IF(tblAnforderungen[[#This Row],[Parameter]]=\"Pverd_gkg\",tblAnforderungen[[#This Row],[Min]]*1.3,IF(tblAnforderungen[[#This Row],[Parameter]]=\"Na_gkg\",tblAnforderungen[[#This Row],[Min]]*1.3,tblAnforderungen[[#This Row],[Min]]*1.3)))))))))))","v":16.25}]
["Schwein","Vorstarter",0,4,"MetCys_gkg","g/kg",7.5,{"$f":"IF(tblAnforderungen[[#This Row],[Min]]=\"\",\"\",IF(tblAnforderungen[[#This Row],[Parameter]]=\"ME\",tblAnforderungen[[#This Row],[Min]]+0.7,IF(tblAnforderungen[[#This Row],[Parameter]]=\"XP\",tblAnforderungen[[#This Row],[Min]]*1.3,IF(tblAnforderungen[[#This Row],[Parameter]]=\"Lysin_gkg\",tblAnforderungen[[#This Row],[Min]]*1.25,IF(tblAnforderungen[[#This Row],[Parameter]]=\"Methionin_gkg\",tblAnforderungen[[#This Row],[Min]]*1.25,IF(tblAnforderungen[[#This Row],[Parameter]]=\"MetCys_gkg\",tblAnforderungen[[#This Row],[Min]]*1.25,IF(tblAnforderungen[[#This Row],[Parameter]]=\"Rohfett_gkg\",tblAnforderungen[[#This Row],[Min]]*2,IF(tblAnforderungen[[#This Row],[Parameter]]=\"Rohfaser_gkg\",tblAnforderungen[[#This Row],[Min]]*2,IF(tblAnforderungen[[#This Row],[Parameter]]=\"Ca_gkg\",tblAnforderungen[[#This Row],[Min]]*1.4,IF(tblAnforderungen[[#This Row],[Parameter]]=\"Pverd_gkg\",tblAnforderungen[[#This Row],[Min]]*1.3,IF(tblAnforderungen[[#This Row],[Parameter]]=\"Na_gkg\",tblAnforderungen[[#This Row],[Min]]*1.3,tblAnforderungen[[#This Row],[Min]]*1.3)))))))))))","v":9.375}]
["Schwein","Vorstarter",0,4,"Ca_gkg","g/kg",7,9]
["Schwein","Vorstarter",0,4,"Pverd_gkg","g/kg",3.8,{"$f":"IF(tblAnforderungen[[#This Row],[Min]]=\"\",\"\",IF(tblAnforderungen[[#This Row],[Parameter]]=\"ME\",tblAnforderungen[[#This Row],[Min]]+0.7,IF(tblAnforderungen[[#This Row],[Parameter]]=\"XP\",tblAnforderungen[[#This Row],[Min]]*1.3,IF(tblAnforderungen[[#This Row],[Parameter]]=\"Lysin_gkg\",tblAnforderungen[[#This Row],[Min]]*1.25,IF(tblAnforderungen[[#This Row],[Parameter]]=\"Methionin_gkg\",tblAnforderungen[[#This Row],[Min]]*1.25,IF(tblAnforderungen[[#This Row],[Parameter]]=\"MetCys_gkg\",tblAnforderungen[[#This Row],[Min]]*1.25,IF(tblAnforderungen[[#This Row],[Parameter]]=\"Rohfett_gkg\",tblAnforderungen[[#This Row],[Min]]*2,IF(tblAnforderungen[[#This Row],[Parameter]]=\"Rohfaser_gkg\",tblAnforderungen[[#This Row],[Min]]*2,IF(tblAnforderungen[[#This Row],[Parameter]]=\"Ca_gkg\",tblAnforderungen[[#This Row],[Min]]*1.4,IF(tblAnforderungen[[#This Row],[Parameter]]=\"Pverd_gkg\",tblAnforderungen[[#This Row],[Min]]*1.3,IF(tblAnforderungen[[#This Row],[Parameter]]=\"Na_gkg\",tblAnforderungen[[#This Row],[Min]]*1.3,tblAnforderungen[[#This Row],[Min]]*1.3)))))))))))","v":4.9399999999999995}]
["Schwein","Vorstarter",0,4,"Na_gkg","g/kg",1.7,2]
["Schwein","Vorstarter",0,4,"Rohfett_gkg","g/kg",null,80]
["Schwein","Vorstarter",0,4,"Rohfaser_gkg","g/kg",null,45]
["Schwein","Ferkel",4,8,"ME","MJ/kg",13.8,{"$f":"IF(tblAnforderungen[[#This Row],[Min]]=\"\",\"\",IF(tblAnforderungen[[#This Row],[Parameter]]=\"ME\",tblAnforderungen[[#This Row],[Min]]+0.7,IF(tblAnforderungen[[#This Row],[Parameter]]=\"XP\",tblAnforderungen[[#This Row],[Min]]*1.3,IF(tblAnforderungen[[#This Row],[Parameter]]=\"Lysin_gkg\",tblAnforderungen[[#This Row],[Min]]*1.25,IF(tblAnforderungen[[#This Row],[Parameter]]=\"Methionin_gkg\",tblAnforderungen[[#This Row],[Min]]*1.25,IF(tblAnforderungen[[#This Row],[Parameter]]=\"MetCys_gkg\",tblAnforderungen[[#This Row],[Min]]*1.25,IF(tblAnforderungen[[#This Row],[Parameter]]=\"Rohfett_gkg\",tblAnforderungen[[#This Row],[Min]]*2,IF(tblAnforderungen[[#This Row],[Parameter]]=\"Rohfaser_gkg\",tblAnforderungen[[#This Row],[Min]]*2,IF(tblAnforderungen[[#This Row],[Parameter]]=\"Ca_gkg\",tblAnforderungen[[#This Row],[Min]]*1.4,IF(tblAnforderungen[[#This Row],[Parameter]]=\"Pverd_gkg\",tblAnforderungen[[#This Row],[Min]]*1.3,IF(tblAnforderungen[[#This Row],[Parameter]]=\"Na_gkg\",tblAnforderungen[[#This Row],[Min]]*1.3,tblAnforderungen[[#This Row],[Min]]*1.3)))))))))))","v":14.5}]
["Schwein","Ferkel",4,8,"XP","g/kg",180,{"$f":"IF(tblAnforderungen[[#This Row],[Min]]=\"\",\"\",IF(tblAnforderungen[[#This Row],[Parameter]]=\"ME\",tblAnforderungen[[#This Row],[Min]]+0.7,IF(tblAnforderungen[[#This Row],[Parameter]]=\"XP\",tblAnforderungen[[#This Row],[Min]]*1.3,IF(tblAnforderungen[[#This Row],[Parameter]]=\"Lysin_gkg\",tblAnforderungen[[#This Row],[Min]]*1.25,IF(tblAnforderungen[[#This Row],[Parameter]]=\"Methionin_gkg\",tblAnforderungen[[#This Row],[Min]]*1.25,IF(tblAnforderungen[[#This Row],[Parameter]]=\"MetCys_gkg\",tblAnforderungen[[#This Row],[Min]]*1.25,IF(tblAnforderungen[[#This Row],[Parameter]]=\"Rohfett_gkg\",tblAnforderungen[[#This Row],[Min]]*2,IF(tblAnforderungen[[#This Row],[Parameter]]=\"Rohfaser_gkg\",tblAnforderungen[[#This Row],[Min]]*2,IF(tblAnforderungen[[#This Row],[Parameter]]=\"Ca_gkg\",tblAnforderungen[[#This Row],[Min]]*1.4,IF(tblAnforderungen[[#This Row],[Parameter]]=\"Pverd_gkg\",tblAnforderungen[[#This Row],[Min]]*1.3,IF(tblAnforderungen[[#This Row],[Parameter]]=\"Na_gkg\",tblAnforderungen[[#This Row],[Min]]*1.3,tblAnforderungen[[#This Row],[Min]]*1.3)))))))))))","v":234}]
["Schwein","Ferkel",4,8,"Lysin_gkg","g/kg",12,{"$f":"IF(tblAnforderungen[[#This Row],[Min]]=\"\",\"\",IF(tblAnforderungen[[#This Row],[Parameter]]=\"ME\",tblAnforderungen[[#This Row],[Min]]+0.7,IF(tblAnforderungen[[#This Row],[Parameter]]=\"XP\",tblAnforderungen[[#This Row],[Min]]*1.3,IF(tblAnforderungen[[#This Row],[Parameter]]=\"Lysin_gkg\",tblAnforderungen[[#This Row],[Min]]*1.25,IF(tblAnforderungen[[#This Row],[Parameter]]=\"Methionin_gkg\",tblAnforderungen[[#This Row],[Min]]*1.25,IF(tblAnforderungen[[#This Row],[Parameter]]=\"MetCys_gkg\",tblAnforderungen[[#This Row],[Min]]*1.25,IF(tblAnforderungen[[#This Row],[Parameter]]=\"Rohfett_gkg\",tblAnforderungen[[#This Row],[Min]]*2,IF(tblAnforderungen[[#This Row],[Parameter]]=\"Rohfaser_gkg\",tblAnforderungen[[#This Row],[Min]]*2,IF(tblAnforderungen[[#This Row],[Parameter]]=\"Ca_gkg\",tblAnforderungen[[#This Row],[Min]]*1.4,IF(tblAnforderungen[[#This Row],[Parameter]]=\"Pverd_gkg\",tblAnforderungen[[#This Row],[Min]]*1.3,IF(tblAnforderungen[[#This Row],[Parameter]]=\"Na_gkg\",tblAnforderungen[[#This Row],[Min]]*1.3,tblAnforderungen[[#This Row],[Min]]*1.3)))))))))))","v":15}]
["Schwein","Ferkel",4,8,"MetCys_gkg","g/kg",7,{"$f":"IF(tblAnforderungen[[#This Row],[Min]]=\"\",\"\",IF(tblAnforderungen[[#This Row],[Parameter]]=\"ME\",tblAnforderungen[[#This Row],[Min]]+0.7,IF(tblAnforderungen[[#This Row],[Parameter]]=\"XP\",tblAnforderungen[[#This Row],[Min]]*1.3,IF(tblAnforderungen[[#This Row],[Parameter]]=\"Lysin_gkg\",tblAnforderungen[[#This Row],[Min]]*1.25,IF(tblAnforderungen[[#This Row],[Parameter]]=\"Methionin_gkg\",tblAnforderungen[[#This Row],[Min]]*1.25,IF(tblAnforderungen[[#This Row],[Parameter]]=\"MetCys_gkg\",tblAnforderungen[[#This Row],[Min]]*1.25,IF(tblAnforderungen[[#This Row],[Parameter]]=\"Rohfett_gkg\",tblAnforderungen[[#This Row],[Min]]*2,IF(tblAnforderungen[[#This Row],[Parameter]]=\"Rohfaser_gkg\",tblAnforderungen[[#This Row],[Min]]*2,IF(tblAnforderungen[[#This Row],[Parameter]]=\"Ca_gkg\",tblAnforderungen[[#This Row],[Min]]*1.4,IF(tblAnforderungen[[#This Row],[Parameter]]=\"Pverd_gkg\",tblAnforderungen[[#This Row],[Min]]*1.3,IF(tblAnforderungen[[#This Row],[Parameter]]=\"Na_gkg\",tblAnforderungen[[#This Row],[Min]]*1.3,tblAnforderungen[[#This Row],[Min]]*1.3)))))))))))","v":8.75}]
["Schwein","Ferkel",4,8,"Ca_gkg","g/kg",6.5,8.5]
["Schwein","Ferkel",4,8,"Pverd_gkg","g/kg",3.5,{"$f":"IF(tblAnforderungen[[#This Row],[Min]]=\"\",\"\",IF(tblAnforderungen[[#This Row],[Parameter]]=\"ME\",tblAnforderungen[[#This Row],[Min]]+0.7,IF(tblAnforderungen[[#This Row],[Parameter]]=\"XP\",tblAnforderungen[[#This Row],[Min]]*1.3,IF(tblAnforderungen[[#This Row],[Parameter]]=\"Lysin_gkg\",tblAnforderungen[[#This Row],[Min]]*1.25,IF(tblAnforderungen[[#This Row],[Parameter]]=\"Methionin_gkg\",tblAnforderungen[[#This Row],[Min]]*1.25,IF(tblAnforderungen[[#This Row],[Parameter]]=\"MetCys_gkg\",tblAnforderungen[[#This Row],[Min]]*1.25,IF(tblAnforderungen[[#This Row],[Parameter]]=\"Rohfett_gkg\",tblAnforderungen[[#This Row],[Min]]*2,IF(tblAnforderungen[[#This Row],[Parameter]]=\"Rohfaser_gkg\",tblAnforderungen[[#This Row],[Min]]*2,IF(tblAnforderungen[[#This Row],[Parameter]]=\"Ca_gkg\",tblAnforderungen[[#This Row],[Min]]*1.4,IF(tblAnforderungen[[#This Row],[Parameter]]=\"Pverd_gkg\",tblAnforderungen[[#This Row],[Min]]*1.3,IF(tblAnforderungen[[#This Row],[Parameter]]=\"Na_gkg\",tblAnforderungen[[#This Row],[Min]]*1.3,tblAnforderungen[[#This Row],[Min]]*1.3)))))))))))","v":4.55}]
["Schwein","Ferkel",4,8,"Na_gkg","g/kg",1.6,1.9]
["Schwein","Ferkel",4,8,"Rohfett_gkg","g/kg",null,80]
["Schwein","Ferkel",4,8,"Rohfaser_gkg","g/kg",null,50]
["Schwein","Aufzucht",8,30,"ME","MJ/kg",13.4,{"$f":"IF(tblAnforderungen[[#This Row],[Min]]=\"\",\"\",IF(tblAnforderungen[[#This Row],[Parameter]]=\"ME\",tblAnforderungen[[#This Row],[Min]]+0.7,IF(tblAnforderungen[[#This Row],[Parameter]]=\"XP\",tblAnforderungen[[#This Row],[Min]]*1.3,IF(tblAnforderungen[[#This Row],[Parameter]]=\"Lysin_gkg\",tblAnforderungen[[#This Row],[Min]]*1.25,IF(tblAnforderungen[[#This Row],[Parameter]]=\"Methionin_gkg\",tblAnforderungen[[#This Row],[Min]]*1.25,IF(tblAnforderungen[[#This Row],[Parameter]]=\"MetCys_gkg\",tblAnforderungen[[#This Row],[Min]]*1.25,IF(tblAnforderungen[[#This Row],[Parameter]]=\"Rohfett_gkg\",tblAnforderungen[[#This Row],[Min]]*2,IF(tblAnforderungen[[#This Row],[Parameter]]=\"Rohfaser_gkg\",tblAnforderungen[[#This Row],[Min]]*2,IF(tblAnforderungen[[#This Row],[Parameter]]=\"Ca_gkg\",tblAnforderungen[[#This Row],[Min]]*1.4,IF(tblAnforderungen[[#This Row],[Parameter]]=\"Pverd_gkg\",tblAnforderungen[[#This Row],[Min]]*1.3,IF(tblAnforderungen[[#This Row],[Parameter]]=\"Na_gkg\",tblAnforderungen[[#This Row],[Min]]*1.3,tblAnforderungen[[#This Row],[Min]]*1.3)))))))))))","v":14.1}]
["Schwein","Aufzucht",8,30,"XP","g/kg",165,{"$f":"IF(tblAnforderungen[[#This Row],[Min]]=\"\",\"\",IF(tblAnforderungen[[#This Row],[Parameter]]=\"ME\",tblAnforderungen[[#This Row],[Min]]+0.7,IF(tblAnforderungen[[#This Row],[Parameter]]=\"XP\",tblAnforderungen[[#This Row],[Min]]*1.3,IF(tblAnforderungen[[#This Row],[Parameter]]=\"Lysin_gkg\",tblAnforderungen[[#This Row],[Min]]*1.25,IF(tblAnforderungen[[#This Row],[Parameter]]=\"Methionin_gkg\",tblAnforderungen[[#This Row],[Min]]*1.25,IF(tblAnforderungen[[#This Row],[Parameter]]=\"MetCys_gkg\",tblAnforderungen[[#This Row],[Min]]*1.25,IF(tblAnforderungen[[#This Row],[Parameter]]=\"Rohfett_gkg\",tblAnforderungen[[#This Row],[Min]]*2,IF(tblAnforderungen[[#This Row],[Parameter]]=\"Rohfaser_gkg\",tblAnforderungen[[#This Row],[Min]]*2,IF(tblAnforderungen[[#This Row],[Parameter]]=\"Ca_gkg\",tblAnforderungen[[#This Row],[Min]]*1.4,IF(tblAnforderungen[[#This Row],[Parameter]]=\"Pverd_gkg\",tblAnforderungen[[#This Row],[Min]]*1.3,IF(tblAnforderungen[[#This Row],[Parameter]]=\"Na_gkg\",tblAnforderungen[[#This Row],[Min]]*1.3,tblAnforderungen[[#This Row],[Min]]*1.3)))))))))))","v":214.5}]
["Schwein","Aufzucht",8,30,"Lysin_gkg","g/kg",10.5,{"$f":"IF(tblAnforderungen[[#This Row],[Min]]=\"\",\"\",IF(tblAnforderungen[[#This Row],[Parameter]]=\"ME\",tblAnforderungen[[#This Row],[Min]]+0.7,IF(tblAnforderungen[[#This Row],[Parameter]]=\"XP\",tblAnforderungen[[#This Row],[Min]]*1.3,IF(tblAnforderungen[[#This Row],[Parameter]]=\"Lysin_gkg\",tblAnforderungen[[#This Row],[Min]]*1.25,IF(tblAnforderungen[[#This Row],[Parameter]]=\"Methionin_gkg\",tblAnforderungen[[#This Row],[Min]]*1.25,IF(tblAnforderungen[[#This Row],[Parameter]]=\"MetCys_gkg\",tblAnforderungen[[#This Row],[Min]]*1.25,IF(tblAnforderungen[[#This Row],[Parameter]]=\"Rohfett_gkg\",tblAnforderungen[[#This Row],[Min]]*2,IF(tblAnforderungen[[#This Row],[Parameter]]=\"Rohfaser_gkg\",tblAnforderungen[[#This Row],[Min]]*2,IF(tblAnforderungen[[#This Row],[Parameter]]=\"Ca_gkg\",tblAnforderungen[[#This Row],[Min]]*1.4,IF(tblAnforderungen[[#This Row],[Parameter]]=\"Pverd_gkg\",tblAnforderungen[[#This Row],[Min]]*1.3,IF(tblAnforderungen[[#This Row],[Parameter]]=\"Na_gkg\",tblAnforderungen[[#This Row],[Min]]*1.3,tblAnforderungen[[#This Row],[Min]]*1.3)))))))))))","v":13.125}]
["Schwein","Aufzucht",8,30,"MetCys_gkg","g/kg",6.5,{"$f":"IF(tblAnforderungen[[#This Row],[Min]]=\"\",\"\",IF(tblAnforderungen[[#This Row],[Parameter]]=\"ME\",tblAnforderungen[[#This Row],[Min]]+0.7,IF(tblAnforderungen[[#This Row],[Parameter]]=\"XP\",tblAnforderungen[[#This Row],[Min]]*1.3,IF(tblAnforderungen[[#This Row],[Parameter]]=\"Lysin_gkg\",tblAnforderungen[[#This Row],[Min]]*1.25,IF(tblAnforderungen[[#This Row],[Parameter]]=\"Methionin_gkg\",tblAnforderungen[[#This Row],[Min]]*1.25,IF(tblAnforderungen[[#This Row],[Parameter]]=\"MetCys_gkg\",tblAnforderungen[[#This Row],[Min]]*1.25,IF(tblAnforderungen[[#This Row],[Parameter]]=\"Rohfett_gkg\",tblAnforderungen[[#This Row],[Min]]*2,IF(tblAnforderungen[[#This Row],[Parameter]]=\"Rohfaser_gkg\",tblAnforderungen[[#This Row],[Min]]*2,IF(tblAnforderungen[[#This Row],[Parameter]]=\"Ca_gkg\",tblAnforderungen[[#This Row],[Min]]*1.4,IF(tblAnforderungen[[#This Row],[Parameter]]=\"Pverd_gkg\",tblAnforderungen[[#This Row],[Min]]*1.3,IF(tblAnforderungen[[#This Row],[Parameter]]=\"Na_gkg\",tblAnforderungen[[#This Row],[Min]]*1.3,tblAnforderungen[[#This Row],[Min]]*1.3)))))))))))","v":8.125}]
["Schwein","Aufzucht",8,30,"Ca_gkg","g/kg",6,8]
["Schwein","Aufzucht",8,30,"Pverd_gkg","g/kg",3.2,{"$f":"IF(tblAnforderungen[[#This Row],[Min]]=\"\",\"\",IF(tblAnforderungen[[#This Row],[Parameter]]=\"ME\",tblAnforderungen[[#This Row],[Min]]+0.7,IF(tblAnforderungen[[#This Row],[Parameter]]=\"XP\",tblAnforderungen[[#This Row],[Min]]*1.3,IF(tblAnforderungen[[#This Row],[Parameter]]=\"Lysin_gkg\",tblAnforderungen[[#This Row],[Min]]*1.25,IF(tblAnforderungen[[#This Row],[Parameter]]=\"Methionin_gkg\",tblAnforderungen[[#This Row],[Min]]*1.25,IF(tblAnforderungen[[#This Row],[Parameter]]=\"MetCys_gkg\",tblAnforderungen[[#This Row],[Min]]*1.25,IF(tblAnforderungen[[#This Row],[Parameter]]=\"Rohfett_gkg\",tblAnforderungen[[#This Row],[Min]]*2,IF(tblAnforderungen[[#This Row],[Parameter]]=\"Rohfaser_gkg\",tblAnforderungen[[#This Row],[Min]]*2,IF(tblAnforderungen[[#This Row],[Parameter]]=\"Ca_gkg\",tblAnforderungen[[#This Row],[Min]]*1.4,IF(tblAnforderungen[[#This Row],[Parameter]]=\"Pverd_gkg\",tblAnforderungen[[#This Row],[Min]]*1.3,IF(tblAnforderungen[[#This Row],[Parameter]]=\"Na_gkg\",tblAnforderungen[[#This Row],[Min]]*1.3,tblAnforderungen[[#This Row],[Min]]*1.3)))))))))))","v":4.16}]
["Schwein","Aufzucht",8,30,"Na_gkg","g/kg",1.5,1.8]
["Schwein","Aufzucht",8,30,"Rohfett_gkg","g/kg",null,80]
["Schwein","Aufzucht",8,30,"Rohfaser_gkg","g/kg",null,55]
["Schwein","Mast",30,120,"ME","MJ/kg",13,{"$f":"IF(tblAnforderungen[[#This Row],[Min]]=\"\",\"\",IF(tblAnforderungen[[#This Row],[Parameter]]=\"ME\",tblAnforderungen[[#This Row],[Min]]+0.7,IF(tblAnforderungen[[#This Row],[Parameter]]=\"XP\",tblAnforderungen[[#This Row],[Min]]*1.3,IF(tblAnforderungen[[#This Row],[Parameter]]=\"Lysin_gkg\",tblAnforderungen[[#This Row],[Min]]*1.25,IF(tblAnforderungen[[#This Row],[Parameter]]=\"Methionin_gkg\",tblAnforderungen[[#This Row],[Min]]*1.25,IF(tblAnforderungen[[#This Row],[Parameter]]=\"MetCys_gkg\",tblAnforderungen[[#This Row],[Min]]*1.25,IF(tblAnforderungen[[#This Row],[Parameter]]=\"Rohfett_gkg\",tblAnforderungen[[#This Row],[Min]]*2,IF(tblAnforderungen[[#This Row],[Parameter]]=\"Rohfaser_gkg\",tblAnforderungen[[#This Row],[Min]]*2,IF(tblAnforderungen[[#This Row],[Parameter]]=\"Ca_gkg\",tblAnforderungen[[#This Row],[Min]]*1.4,IF(tblAnforderungen[[#This Row],[Parameter]]=\"Pverd_gkg\",tblAnforderungen[[#This Row],[Min]]*1.3,IF(tblAnforderungen[[#This Row],[Parameter]]=\"Na_gkg\",tblAnforderungen[[#This Row],[Min]]*1.3,tblAnforderungen[[#This Row],[Min]]*1.3)))))))))))","v":13.7}]
["Schwein","Mast",30,120,"XP","g/kg",155,{"$f":"IF(tblAnforderungen[[#This Row],[Min]]=\"\",\"\",IF(tblAnforderungen[[#This Row],[Parameter]]=\"ME\",tblAnforderungen[[#This Row],[Min]]+0.7,IF(tblAnforderungen[[#This Row],[Parameter]]=\"XP\",tblAnforderungen[[#This Row],[Min]]*1.3,IF(tblAnforderungen[[#This Row],[Parameter]]=\"Lysin_gkg\",tblAnforderungen[[#This Row],[Min]]*1.25,IF(tblAnforderungen[[#This Row],[Parameter]]=\"Methionin_gkg\",tblAnforderungen[[#This Row],[Min]]*1.25,IF(tblAnforderungen[[#This Row],[Parameter]]=\"MetCys_gkg\",tblAnforderungen[[#This Row],[Min]]*1.25,IF(tblAnforderungen[[#This Row],[Parameter]]=\"Rohfett_gkg\",tblAnforderungen[[#This Row],[Min]]*2,IF(tblAnforderungen[[#This Row],[Parameter]]=\"Rohfaser_gkg\",tblAnforderungen[[#This Row],[Min]]*2,IF(tblAnforderungen[[#This Row],[Parameter]]=\"Ca_gkg\",tblAnforderungen[[#This Row],[Min]]*1.4,IF(tblAnforderungen[[#This Row],[Parameter]]=\"Pverd_gkg\",tblAnforderungen[[#This Row],[Min]]*1.3,IF(tblAnforderungen[[#This Row],[Parameter]]=\"Na_gkg\",tblAnforderungen[[#This Row],[Min]]*1.3,tblAnforderungen[[#This Row],[Min]]*1.3)))))))))))","v":201.5}]
["Schwein","Mast",30,120,"Lysin_gkg","g/kg",9,{"$f":"IF(tblAnforderungen[[#This Row],[Min]]=\"\",\"\",IF(tblAnforderungen[[#This Row],[Parameter]]=\"ME\",tblAnforderungen[[#This Row],[Min]]+0.7,IF(tblAnforderungen[[#This Row],[Parameter]]=\"XP\",tblAnforderungen[[#This Row],[Min]]*1.3,IF(tblAnforderungen[[#This Row],[Parameter]]=\"Lysin_gkg\",tblAnforderungen[[#This Row],[Min]]*1.25,IF(tblAnforderungen[[#This Row],[Parameter]]=\"Methionin_gkg\",tblAnforderungen[[#This Row],[Min]]*1.25,IF(tblAnforderungen[[#This Row],[Parameter]]=\"MetCys_gkg\",tblAnforderungen[[#This Row],[Min]]*1.25,IF(tblAnforderungen[[#This Row],[Parameter]]=\"Rohfett_gkg\",tblAnforderungen[[#This Row],[Min]]*2,IF(tblAnforderungen[[#This Row],[Parameter]]=\"Rohfaser_gkg\",tblAnforderungen[[#This Row],[Min]]*2,IF(tblAnforderungen[[#This Row],[Parameter]]=\"Ca_gkg\",tblAnforderungen[[#This Row],[Min]]*1.4,IF(tblAnforderungen[[#This Row],[Parameter]]=\"Pverd_gkg\",tblAnforderungen[[#This Row],[Min]]*1.3,IF(tblAnforderungen[[#This Row],[Parameter]]=\"Na_gkg\",tblAnforderungen[[#This Row],[Min]]*1.3,tblAnforderungen[[#This Row],[Min]]*1.3)))))))))))","v":11.25}]
["Schwein","Mast",30,120,"MetCys_gkg","g/kg",6,{"$f":"IF(tblAnforderungen[[#This Row],[Min]]=\"\",\"\",IF(tblAnforderungen[[#This Row],[Parameter]]=\"ME\",tblAnforderungen[[#This Row],[Min]]+0.7,IF(tblAnforderungen[[#This Row],[Parameter]]=\"XP\",tblAnforderungen[[#This Row],[Min]]*1.3,IF(tblAnforderungen[[#This Row],[Parameter]]=\"Lysin_gkg\",tblAnforderungen[[#This Row],[Min]]*1.25,IF(tblAnforderungen[[#This Row],[Parameter]]=\"Methionin_gkg\",tblAnforderungen[[#This Row],[Min]]*1.25,IF(tblAnforderungen[[#This Row],[Parameter]]=\"MetCys_gkg\",tblAnforderungen[[#This Row],[Min]]*1.25,IF(tblAnforderungen[[#This Row],[Parameter]]=\"Rohfett_gkg\",tblAnforderungen[[#This Row],[Min]]*2,IF(tblAnforderungen[[#This Row],[Parameter]]=\"Rohfaser_gkg\",tblAnforderungen[[#This Row],[Min]]*2,IF(tblAnforderungen[[#This Row],[Parameter]]=\"Ca_gkg\",tblAnforderungen[[#This Row],[Min]]*1.4,IF(tblAnforderungen[[#This Row],[Parameter]]=\"Pverd_gkg\",tblAnforderungen[[#This Row],[Min]]*1.3,IF(tblAnforderungen[[#This Row],[Parameter]]=\"Na_gkg\",tblAnforderungen[[#This Row],[Min]]*1.3,tblAnforderungen[[#This Row],[Min]]*1.3)))))))))))","v":7.5}]
["Schwein","Mast",30,120,"Ca_gkg","g/kg",5.5,7]
["Schwein","Mast",30,120,"Pverd_gkg","g/kg",3,{"$f":"IF(tblAnforderungen[[#This Row],[Min]]=\"\",\"\",IF(tblAnforderungen[[#This Row],[Parameter]]=\"ME\",tblAnforderungen[[#This Row],[Min]]+0.7,IF(tblAnforderungen[[#This Row],[Parameter]]=\"XP\",tblAnforderungen[[#This Row],[Min]]*1.3,IF(tblAnforderungen[[#This Row],[Parameter]]=\"Lysin_gkg\",tblAnforderungen[[#This Row],[Min]]*1.25,IF(tblAnforderungen[[#This Row],[Parameter]]=\"Methionin_gkg\",tblAnforderungen[[#This Row],[Min]]*1.25,IF(tblAnforderungen[[#This Row],[Parameter]]=\"MetCys_gkg\",tblAnforderungen[[#This Row],[Min]]*1.25,IF(tblAnforderungen[[#This Row],[Parameter]]=\"Rohfett_gkg\",tblAnforderungen[[#This Row],[Min]]*2,IF(tblAnforderungen[[#This Row],[Parameter]]=\"Rohfaser_gkg\",tblAnforderungen[[#This Row],[Min]]*2,IF(tblAnforderungen[[#This Row],[Parameter]]=\"Ca_gkg\",tblAnforderungen[[#This Row],[Min]]*1.4,IF(tblAnforderungen[[#This Row],[Parameter]]=\"Pverd_gkg\",tblAnforderungen[[#This Row],[Min]]*1.3,IF(tblAnforderungen[[#This Row],[Parameter]]=\"Na_gkg\",tblAnforderungen[[#This Row],[Min]]*1.3,tblAnforderungen[[#This Row],[Min]]*1.3)))))))))))","v":3.9000000000000004}]
["Schwein","Mast",30,120,"Na_gkg","g/kg",1.4,1.7]
["Schwein","Mast",30,120,"Rohfett_gkg","g/kg",null,80]
["Schwein","Mast",30,120,"Rohfaser_gkg","g/kg",null,60]
["Sau","Tragend",0,16,"ME","MJ/kg",12.5,{"$f":"IF(tblAnforderungen[[#This Row],[Min]]=\"\",\"\",IF(tblAnforderungen[[#This Row],[Parameter]]=\"ME\",tblAnforderungen[[#This Row],[Min]]+0.7,IF(tblAnforderungen[[#This Row],[Parameter]]=\"XP\",tblAnforderungen[[#This Row],[Min]]*1.3,IF(tblAnforderungen[[#This Row],[Parameter]]=\"Lysin_gkg\",tblAnforderungen[[#This Row],[Min]]*1.25,IF(tblAnforderungen[[#This Row],[Parameter]]=\"Methionin_gkg\",tblAnforderungen[[#This Row],[Min]]*1.25,IF(tblAnforderungen[[#This Row],[Parameter]]=\"MetCys_gkg\",tblAnforderungen[[#This Row],[Min]]*1.25,IF(tblAnforderungen[[#This Row],[Parameter]]=\"Rohfett_gkg\",tblAnforderungen[[#This Row],[Min]]*2,IF(tblAnforderungen[[#This Row],[Parameter]]=\"Rohfaser_gkg\",tblAnforderungen[[#This Row],[Min]]*2,IF(tblAnforderungen[[#This Row],[Parameter]]=\"Ca_gkg\",tblAnforderungen[[#This Row],[Min]]*1.4,IF(tblAnforderungen[[#This Row],[Parameter]]=\"Pverd_gkg\",tblAnforderungen[[#This Row],[Min]]*1.3,IF(tblAnforderungen[[#This Row],[Parameter]]=\"Na_gkg\",tblAnforderungen[[#This Row],[Min]]*1.3,tblAnforderungen[[#This Row],[Min]]*1.3)))))))))))","v":13.2}]
["Sau","Tragend",0,16,"XP","g/kg",140,{"$f":"IF(tblAnforderungen[[#This Row],[Min]]=\"\",\"\",IF(tblAnforderungen[[#This Row],[Parameter]]=\"ME\",tblAnforderungen[[#This Row],[Min]]+0.7,IF(tblAnforderungen[[#This Row],[Parameter]]=\"XP\",tblAnforderungen[[#This Row],[Min]]*1.3,IF(tblAnforderungen[[#This Row],[Parameter]]=\"Lysin_gkg\",tblAnforderungen[[#This Row],[Min]]*1.25,IF(tblAnforderungen[[#This Row],[Parameter]]=\"Methionin_gkg\",tblAnforderungen[[#This Row],[Min]]*1.25,IF(tblAnforderungen[[#This Row],[Parameter]]=\"MetCys_gkg\",tblAnforderungen[[#This Row],[Min]]*1.25,IF(tblAnforderungen[[#This Row],[Parameter]]=\"Rohfett_gkg\",tblAnforderungen[[#This Row],[Min]]*2,IF(tblAnforderungen[[#This Row],[Parameter]]=\"Rohfaser_gkg\",tblAnforderungen[[#This Row],[Min]]*2,IF(tblAnforderungen[[#This Row],[Parameter]]=\"Ca_gkg\",tblAnforderungen[[#This Row],[Min]]*1.4,IF(tblAnforderungen[[#This Row],[Parameter]]=\"Pverd_gkg\",tblAnforderungen[[#This Row],[Min]]*1.3,IF(tblAnforderungen[[#This Row],[Parameter]]=\"Na_gkg\",tblAnforderungen[[#This Row],[Min]]*1.3,tblAnforderungen[[#This Row],[Min]]*1.3)))))))))))","v":182}]
["Sau","Tragend",0,16,"Lysin_gkg","g/kg",6,{"$f":"IF(tblAnforderungen[[#This Row],[Min]]=\"\",\"\",IF(tblAnforderungen[[#This Row],[Parameter]]=\"ME\",tblAnforderungen[[#This Row],[Min]]+0.7,IF(tblAnforderungen[[#This Row],[Parameter]]=\"XP\",tblAnforderungen[[#This Row],[Min]]*1.3,IF(tblAnforderungen[[#This Row],[Parameter]]=\"Lysin_gkg\",tblAnforderungen[[#This Row],[Min]]*1.25,IF(tblAnforderungen[[#This Row],[Parameter]]=\"Methionin_gkg\",tblAnforderungen[[#This Row],[Min]]*1.25,IF(tblAnforderungen[[#This Row],[Parameter]]=\"MetCys_gkg\",tblAnforderungen[[#This Row],[Min]]*1.25,IF(tblAnforderungen[[#This Row],[Parameter]]=\"Rohfett_gkg\",tblAnforderungen[[#This Row],[Min]]*2,IF(tblAnforderungen[[#This Row],[Parameter]]=\"Rohfaser_gkg\",tblAnforderungen[[#This Row],[Min]]*2,IF(tblAnforderungen[[#This Row],[Parameter]]=\"Ca_gkg\",tblAnforderungen[[#This Row],[Min]]*1.4,IF(tblAnforderungen[[#This Row],[Parameter]]=\"Pverd_gkg\",tblAnforderungen[[#This Row],[Min]]*1.3,IF(tblAnforderungen[[#This Row],[Parameter]]=\"Na_gkg\",tblAnforderungen[[#This Row],[Min]]*1.3,tblAnforderungen[[#This Row],[Min]]*1.3)))))))))))","v":7.5}]
["Sau","Tragend",0,16,"MetCys_gkg","g/kg",4.5,{"$f":"IF(tblAnforderungen[[#This Row],[Min]]=\"\",\"\",IF(tblAnforderungen[[#This Row],[Parameter]]=\"ME\",tblAnforderungen[[#This Row],[Min]]+0.7,IF(tblAnforderungen[[#This Row],[Parameter]]=\"XP\",tblAnforderungen[[#This Row],[Min]]*1.3,IF(tblAnforderungen[[#This Row],[Parameter]]=\"Lysin_gkg\",tblAnforderungen[[#This Row],[Min]]*1.25,IF(tblAnforderungen[[#This Row],[Parameter]]=\"Methionin_gkg\",tblAnforderungen[[#This Row],[Min]]*1.25,IF(tblAnforderungen[[#This Row],[Parameter]]=\"MetCys_gkg\",tblAnforderungen[[#This Row],[Min]]*1.25,IF(tblAnforderungen[[#This Row],[Parameter]]=\"Rohfett_gkg\",tblAnforderungen[[#This Row],[Min]]*2,IF(tblAnforderungen[[#This Row],[Parameter]]=\"Rohfaser_gkg\",tblAnforderungen[[#This Row],[Min]]*2,IF(tblAnforderungen[[#This Row],[Parameter]]=\"Ca_gkg\",tblAnforderungen[[#This Row],[Min]]*1.4,IF(tblAnforderungen[[#This Row],[Parameter]]=\"Pverd_gkg\",tblAnforderungen[[#This Row],[Min]]*1.3,IF(tblAnforderungen[[#This Row],[Parameter]]=\"Na_gkg\",tblAnforderungen[[#This Row],[Min]]*1.3,tblAnforderungen[[#This Row],[Min]]*1.3)))))))))))","v":5.625}]
["Sau","Tragend",0,16,"Ca_gkg","g/kg",6,8]
["Sau","Tragend",0,16,"Pverd_gkg","g/kg",2.8,{"$f":"IF(tblAnforderungen[[#This Row],[Min]]=\"\",\"\",IF(tblAnforderungen[[#This Row],[Parameter]]=\"ME\",tblAnforderungen[[#This Row],[Min]]+0.7,IF(tblAnforderungen[[#This Row],[Parameter]]=\"XP\",tblAnforderungen[[#This Row],[Min]]*1.3,IF(tblAnforderungen[[#This Row],[Parameter]]=\"Lysin_gkg\",tblAnforderungen[[#This Row],[Min]]*1.25,IF(tblAnforderungen[[#This Row],[Parameter]]=\"Methionin_gkg\",tblAnforderungen[[#This Row],[Min]]*1.25,IF(tblAnforderungen[[#This Row],[Parameter]]=\"MetCys_gkg\",tblAnforderungen[[#This Row],[Min]]*1.25,IF(tblAnforderungen[[#This Row],[Parameter]]=\"Rohfett_gkg\",tblAnforderungen[[#This Row],[Min]]*2,IF(tblAnforderungen[[#This Row],[Parameter]]=\"Rohfaser_gkg\",tblAnforderungen[[#This Row],[Min]]*2,IF(tblAnforderungen[[#This Row],[Parameter]]=\"Ca_gkg\",tblAnforderungen[[#This Row],[Min]]*1.4,IF(tblAnforderungen[[#This Row],[Parameter]]=\"Pverd_gkg\",tblAnforderungen[[#This Row],[Min]]*1.3,IF(tblAnforderungen[[#This Row],[Parameter]]=\"Na_gkg\",tblAnforderungen[[#This Row],[Min]]*1.3,tblAnforderungen[[#This Row],[Min]]*1.3)))))))))))","v":3.6399999999999997}]
["Sau","Tragend",0,16,"Na_gkg","g/kg",1.5,1.8]
["Sau","Tragend",0,16,"Rohfett_gkg","g/kg",null,80]
["Sau","Tragend",0,16,"Rohfaser_gkg","g/kg",null,80]
["Sau","Laktierend",0,5,"ME","MJ/kg",13.4,{"$f":"IF(tblAnforderungen[[#This Row],[Min]]=\"\",\"\",IF(tblAnforderungen[[#This Row],[Parameter]]=\"ME\",tblAnforderungen[[#This Row],[Min]]+0.7,IF(tblAnforderungen[[#This Row],[Parameter]]=\"XP\",tblAnforderungen[[#This Row],[Min]]*1.3,IF(tblAnforderungen[[#This Row],[Parameter]]=\"Lysin_gkg\",tblAnforderungen[[#This Row],[Min]]*1.25,IF(tblAnforderungen[[#This Row],[Parameter]]=\"Methionin_gkg\",tblAnforderungen[[#This Row],[Min]]*1.25,IF(tblAnforderungen[[#This Row],[Parameter]]=\"MetCys_gkg\",tblAnforderungen[[#This Row],[Min]]*1.25,IF(tblAnforderungen[[#This Row],[Parameter]]=\"Rohfett_gkg\",tblAnforderungen[[#This Row],[Min]]*2,IF(tblAnforderungen[[#This Row],[Parameter]]=\"Rohfaser_gkg\",tblAnforderungen[[#This Row],[Min]]*2,IF(tblAnforderungen[[#This Row],[Parameter]]=\"Ca_gkg\",tblAnforderungen[[#This Row],[Min]]*1.4,IF(tblAnforderungen[[#This Row],[Parameter]]=\"Pverd_gkg\",tblAnforderungen[[#This Row],[Min]]*1.3,IF(tblAnforderungen[[#This Row],[Parameter]]=\"Na_gkg\",tblAnforderungen[[#This Row],[Min]]*1.3,tblAnforderungen[[#This Row],[Min]]*1.3)))))))))))","v":14.1}]
["Sau","Laktierend",0,5,"XP","g/kg",170,{"$f":"IF(tblAnforderungen[[#This Row],[Min]]=\"\",\"\",IF(tblAnforderungen[[#This Row],[Parameter]]=\"ME\",tblAnforderungen[[#This Row],[Min]]+0.7,IF(tblAnforderungen[[#This Row],[Parameter]]=\"XP\",tblAnforderungen[[#This Row],[Min]]*1.3,IF(tblAnforderungen[[#This Row],[Parameter]]=\"Lysin_gkg\",tblAnforderungen[[#This Row],[Min]]*1.25,IF(tblAnforderungen[[#This Row],[Parameter]]=\"Methionin_gkg\",tblAnforderungen[[#This Row],[Min]]*1.25,IF(tblAnforderungen[[#This Row],[Parameter]]=\"MetCys_gkg\",tblAnforderungen[[#This Row],[Min]]*1.25,IF(tblAnforderungen[[#This Row],[Parameter]]=\"Rohfett_gkg\",tblAnforderungen[[#This Row],[Min]]*2,IF(tblAnforderungen[[#This Row],[Parameter]]=\"Rohfaser_gkg\",tblAnforderungen[[#This Row],[Min]]*2,IF(tblAnforderungen[[#This Row],[Parameter]]=\"Ca_gkg\",tblAnforderungen[[#This Row],[Min]]*1.4,IF(tblAnforderungen[[#This Row],[Parameter]]=\"Pverd_gkg\",tblAnforderungen[[#This Row],[Min]]*1.3,IF(tblAnforderungen[[#This Row],[Parameter]]=\"Na_gkg\",tblAnforderungen[[#This Row],[Min]]*1.3,tblAnforderungen[[#This Row],[Min]]*1.3)))))))))))","v":221}]
["Sau","Laktierend",0,5,"Lysin_gkg","g/kg",9.5,{"$f":"IF(tblAnforderungen[[#This Row],[Min]]=\"\",\"\",IF(tblAnforderungen[[#This Row],[Parameter]]=\"ME\",tblAnforderungen[[#This Row],[Min]]+0.7,IF(tblAnforderungen[[#This Row],[Parameter]]=\"XP\",tblAnforderungen[[#This Row],[Min]]*1.3,IF(tblAnforderungen[[#This Row],[Parameter]]=\"Lysin_gkg\",tblAnforderungen[[#This Row],[Min]]*1.25,IF(tblAnforderungen[[#This Row],[Parameter]]=\"Methionin_gkg\",tblAnforderungen[[#This Row],[Min]]*1.25,IF(tblAnforderungen[[#This Row],[Parameter]]=\"MetCys_gkg\",tblAnforderungen[[#This Row],[Min]]*1.25,IF(tblAnforderungen[[#This Row],[Parameter]]=\"Rohfett_gkg\",tblAnforderungen[[#This Row],[Min]]*2,IF(tblAnforderungen[[#This Row],[Parameter]]=\"Rohfaser_gkg\",tblAnforderungen[[#This Row],[Min]]*2,IF(tblAnforderungen[[#This Row],[Parameter]]=\"Ca_gkg\",tblAnforderungen[[#This Row],[Min]]*1.4,IF(tblAnforderungen[[#This Row],[Parameter]]=\"Pverd_gkg\",tblAnforderungen[[#This Row],[Min]]*1.3,IF(tblAnforderungen[[#This Row],[Parameter]]=\"Na_gkg\",tblAnforderungen[[#This Row],[Min]]*1.3,tblAnforderungen[[#This Row],[Min]]*1.3)))))))))))","v":11.875}]
["Sau","Laktierend",0,5,"MetCys_gkg","g/kg",6,{"$f":"IF(tblAnforderungen[[#This Row],[Min]]=\"\",\"\",IF(tblAnforderungen[[#This Row],[Parameter]]=\"ME\",tblAnforderungen[[#This Row],[Min]]+0.7,IF(tblAnforderungen[[#This Row],[Parameter]]=\"XP\",tblAnforderungen[[#This Row],[Min]]*1.3,IF(tblAnforderungen[[#This Row],[Parameter]]=\"Lysin_gkg\",tblAnforderungen[[#This Row],[Min]]*1.25,IF(tblAnforderungen[[#This Row],[Parameter]]=\"Methionin_gkg\",tblAnforderungen[[#This Row],[Min]]*1.25,IF(tblAnforderungen[[#This Row],[Parameter]]=\"MetCys_gkg\",tblAnforderungen[[#This Row],[Min]]*1.25,IF(tblAnforderungen[[#This Row],[Parameter]]=\"Rohfett_gkg\",tblAnforderungen[[#This Row],[Min]]*2,IF(tblAnforderungen[[#This Row],[Parameter]]=\"Rohfaser_gkg\",tblAnforderungen[[#This Row],[Min]]*2,IF(tblAnforderungen[[#This Row],[Parameter]]=\"Ca_gkg\",tblAnforderungen[[#This Row],[Min]]*1.4,IF(tblAnforderungen[[#This Row],[Parameter]]=\"Pverd_gkg\",tblAnforderungen[[#This Row],[Min]]*1.3,IF(tblAnforderungen[[#This Row],[Parameter]]=\"Na_gkg\",tblAnforderungen[[#This Row],[Min]]*1.3,tblAnforderungen[[#This Row],[Min]]*1.3)))))))))))","v":7.5}]
["Sau","Laktierend",0,5,"Ca_gkg","g/kg",8,10]
["Sau","Laktierend",0,5,"Pverd_gkg","g/kg",4,{"$f":"IF(tblAnforderungen[[#This Row],[Min]]=\"\",\"\",IF(tblAnforderungen[[#This Row],[Parameter]]=\"ME\",tblAnforderungen[[#This Row],[Min]]+0.7,IF(tblAnforderungen[[#This Row],[Parameter]]=\"XP\",tblAnforderungen[[#This Row],[Min]]*1.3,IF(tblAnforderungen[[#This Row],[Parameter]]=\"Lysin_gkg\",tblAnforderungen[[#This Row],[Min]]*1.25,IF(tblAnforderungen[[#This Row],[Parameter]]=\"Methionin_gkg\",tblAnforderungen[[#This Row],[Min]]*1.25,IF(tblAnforderungen[[#This Row],[Parameter]]=\"MetCys_gkg\",tblAnforderungen[[#This Row],[Min]]*1.25,IF(tblAnforderungen[[#This Row],[Parameter]]=\"Rohfett_gkg\",tblAnforderungen[[#This Row],[Min]]*2,IF(tblAnforderungen[[#This Row],[Parameter]]=\"Rohfaser_gkg\",tblAnforderungen[[#This Row],[Min]]*2,IF(tblAnforderungen[[#This Row],[Parameter]]=\"Ca_gkg\",tblAnforderungen[[#This Row],[Min]]*1.4,IF(tblAnforderungen[[#This Row],[Parameter]]=\"Pverd_gkg\",tblAnforderungen[[#This Row],[Min]]*1.3,IF(tblAnforderungen[[#This Row],[Parameter]]=\"Na_gkg\",tblAnforderungen[[#This Row],[Min]]*1.3,tblAnforderungen[[#This Row],[Min]]*1.3)))))))))))","v":5.2}]
["Sau","Laktierend",0,5,"Na_gkg","g/kg",1.6,2]
["Sau","Laktierend",0,5,"Rohfett_gkg","g/kg",null,80]
["Sau","Laktierend",0,5,"Rohfaser_gkg","g/kg",null,70]
["Rind","Bullenstarter",0,3,"ME","MJ/kg",10.8,{"$f":"IF(tblAnforderungen[[#This Row],[Min]]=\"\",\"\",IF(tblAnforderungen[[#This Row],[Parameter]]=\"ME\",tblAnforderungen[[#This Row],[Min]]+0.7,IF(tblAnforderungen[[#This Row],[Parameter]]=\"XP\",tblAnforderungen[[#This Row],[Min]]*1.3,IF(tblAnforderungen[[#This Row],[Parameter]]=\"Lysin_gkg\",tblAnforderungen[[#This Row],[Min]]*1.25,IF(tblAnforderungen[[#This Row],[Parameter]]=\"Methionin_gkg\",tblAnforderungen[[#This Row],[Min]]*1.25,IF(tblAnforderungen[[#This Row],[Parameter]]=\"MetCys_gkg\",tblAnforderungen[[#This Row],[Min]]*1.25,IF(tblAnforderungen[[#This Row],[Parameter]]=\"Rohfett_gkg\",tblAnforderungen[[#This Row],[Min]]*2,IF(tblAnforderungen[[#This Row],[Parameter]]=\"Rohfaser_gkg\",tblAnforderungen[[#This Row],[Min]]*2,IF(tblAnforderungen[[#This Row],[Parameter]]=\"Ca_gkg\",tblAnforderungen[[#This Row],[Min]]*1.4,IF(tblAnforderungen[[#This Row],[Parameter]]=\"Pverd_gkg\",tblAnforderungen[[#This Row],[Min]]*1.3,IF(tblAnforderungen[[#This Row],[Parameter]]=\"Na_gkg\",tblAnforderungen[[#This Row],[Min]]*1.3,tblAnforderungen[[#This Row],[Min]]*1.3)))))))))))","v":11.5}]
["Rind","Bullenstarter",0,3,"XP","g/kg",150,{"$f":"IF(tblAnforderungen[[#This Row],[Min]]=\"\",\"\",IF(tblAnforderungen[[#This Row],[Parameter]]=\"ME\",tblAnforderungen[[#This Row],[Min]]+0.7,IF(tblAnforderungen[[#This Row],[Parameter]]=\"XP\",tblAnforderungen[[#This Row],[Min]]*1.3,IF(tblAnforderungen[[#This Row],[Parameter]]=\"Lysin_gkg\",tblAnforderungen[[#This Row],[Min]]*1.25,IF(tblAnforderungen[[#This Row],[Parameter]]=\"Methionin_gkg\",tblAnforderungen[[#This Row],[Min]]*1.25,IF(tblAnforderungen[[#This Row],[Parameter]]=\"MetCys_gkg\",tblAnforderungen[[#This Row],[Min]]*1.25,IF(tblAnforderungen[[#This Row],[Parameter]]=\"Rohfett_gkg\",tblAnforderungen[[#This Row],[Min]]*2,IF(tblAnforderungen[[#This Row],[Parameter]]=\"Rohfaser_gkg\",tblAnforderungen[[#This Row],[Min]]*2,IF(tblAnforderungen[[#This Row],[Parameter]]=\"Ca_gkg\",tblAnforderungen[[#This Row],[Min]]*1.4,IF(tblAnforderungen[[#This Row],[Parameter]]=\"Pverd_gkg\",tblAnforderungen[[#This Row],[Min]]*1.3,IF(tblAnforderungen[[#This Row],[Parameter]]=\"Na_gkg\",tblAnforderungen[[#This Row],[Min]]*1.3,tblAnforderungen[[#This Row],[Min]]*1.3)))))))))))","v":195}]
["Rind","Bullenstarter",0,3,"Lysin_gkg","g/kg",6,{"$f":"IF(tblAnforderungen[[#This Row],[Min]]=\"\",\"\",IF(tblAnforderungen[[#This Row],[Parameter]]=\"ME\",tblAnforderungen[[#This Row],[Min]]+0.7,IF(tblAnforderungen[[#This Row],[Parameter]]=\"XP\",tblAnforderungen[[#This Row],[Min]]*1.3,IF(tblAnforderungen[[#This Row],[Parameter]]=\"Lysin_gkg\",tblAnforderungen[[#This Row],[Min]]*1.25,IF(tblAnforderungen[[#This Row],[Parameter]]=\"Methionin_gkg\",tblAnforderungen[[#This Row],[Min]]*1.25,IF(tblAnforderungen[[#This Row],[Parameter]]=\"MetCys_gkg\",tblAnforderungen[[#This Row],[Min]]*1.25,IF(tblAnforderungen[[#This Row],[Parameter]]=\"Rohfett_gkg\",tblAnforderungen[[#This Row],[Min]]*2,IF(tblAnforderungen[[#This Row],[Parameter]]=\"Rohfaser_gkg\",tblAnforderungen[[#This Row],[Min]]*2,IF(tblAnforderungen[[#This Row],[Parameter]]=\"Ca_gkg\",tblAnforderungen[[#This Row],[Min]]*1.4,IF(tblAnforderungen[[#This Row],[Parameter]]=\"Pverd_gkg\",tblAnforderungen[[#This Row],[Min]]*1.3,IF(tblAnforderungen[[#This Row],[Parameter]]=\"Na_gkg\",tblAnforderungen[[#This Row],[Min]]*1.3,tblAnforderungen[[#This Row],[Min]]*1.3)))))))))))","v":7.5}]
["Rind","Bullenstarter",0,3,"MetCys_gkg","g/kg",4,{"$f":"IF(tblAnforderungen[[#This Row],[Min]]=\"\",\"\",IF(tblAnforderungen[[#This Row],[Parameter]]=\"ME\",tblAnforderungen[[#This Row],[Min]]+0.7,IF(tblAnforderungen[[#This Row],[Parameter]]=\"XP\",tblAnforderungen[[#This Row],[Min]]*1.3,IF(tblAnforderungen[[#This Row],[Parameter]]=\"Lysin_gkg\",tblAnforderungen[[#This Row],[Min]]*1.25,IF(tblAnforderungen[[#This Row],[Parameter]]=\"Methionin_gkg\",tblAnforderungen[[#This Row],[Min]]*1.25,IF(tblAnforderungen[[#This Row],[Parameter]]=\"MetCys_gkg\",tblAnforderungen[[#This Row],[Min]]*1.25,IF(tblAnforderungen[[#This Row],[Parameter]]=\"Rohfett_gkg\",tblAnforderungen[[#This Row],[Min]]*2,IF(tblAnforderungen[[#This Row],[Parameter]]=\"Rohfaser_gkg\",tblAnforderungen[[#This Row],[Min]]*2,IF(tblAnforderungen[[#This Row],[Parameter]]=\"Ca_gkg\",tblAnforderungen[[#This Row],[Min]]*1.4,IF(tblAnforderungen[[#This Row],[Parameter]]=\"Pverd_gkg\",tblAnforderungen[[#This Row],[Min]]*1.3,IF(tblAnforderungen[[#This Row],[Parameter]]=\"Na_gkg\",tblAnforderungen[[#This Row],[Min]]*1.3,tblAnforderungen[[#This Row],[Min]]*1.3)))))))))))","v":5}]
["Rind","Bullenstarter",0,3,"Ca_gkg","g/kg",7,9]
["Rind","Bullenstarter",0,3,"Pverd_gkg","g/kg",3,{"$f":"IF(tblAnforderungen[[#This Row],[Min]]=\"\",\"\",IF(tblAnforderungen[[#This Row],[Parameter]]=\"ME\",tblAnforderungen[[#This Row],[Min]]+0.7,IF(tblAnforderungen[[#This Row],[Parameter]]=\"XP\",tblAnforderungen[[#This Row],[Min]]*1.3,IF(tblAnforderungen[[#This Row],[Parameter]]=\"Lysin_gkg\",tblAnforderungen[[#This Row],[Min]]*1.25,IF(tblAnforderungen[[#This Row],[Parameter]]=\"Methionin_gkg\",tblAnforderungen[[#This Row],[Min]]*1.25,IF(tblAnforderungen[[#This Row],[Parameter]]=\"MetCys_gkg\",tblAnforderungen[[#This Row],[Min]]*1.25,IF(tblAnforderungen[[#This Row],[Parameter]]=\"Rohfett_gkg\",tblAnforderungen[[#This Row],[Min]]*2,IF(tblAnforderungen[[#This Row],[Parameter]]=\"Rohfaser_gkg\",tblAnforderungen[[#This Row],[Min]]*2,IF(tblAnforderungen[[#This Row],[Parameter]]=\"Ca_gkg\",tblAnforderungen[[#This Row],[Min]]*1.4,IF(tblAnforderungen[[#This Row],[Parameter]]=\"Pverd_gkg\",tblAnforderungen[[#This Row],[Min]]*1.3,IF(tblAnforderungen[[#This Row],[Parameter]]=\"Na_gkg\",tblAnforderungen[[#This Row],[Min]]*1.3,tblAnforderungen[[#This Row],[Min]]*1.3)))))))))))","v":3.9000000000000004}]
["Rind","Bullenstarter",0,3,"Na_gkg","g/kg",1.2,1.6]
["Rind","Bullenstarter",0,3,"Rohfett_gkg","g/kg",null,80]
["Rind","Bullenstarter",0,3,"Rohfaser_gkg","g/kg",null,180]
["Rind","Bullenmast",3,12,"ME","MJ/kg",10.199999999999999,{"$f":"IF(tblAnforderungen[[#This Row],[Min]]=\"\",\"\",IF(tblAnforderungen[[#This Row],[Parameter]]=\"ME\",tblAnforderungen[[#This Row],[Min]]+0.7,IF(tblAnforderungen[[#This Row],[Parameter]]=\"XP\",tblAnforderungen[[#This Row],[Min]]*1.3,IF(tblAnforderungen[[#This Row],[Parameter]]=\"Lysin_gkg\",tblAnforderungen[[#This Row],[Min]]*1.25,IF(tblAnforderungen[[#This Row],[Parameter]]=\"Methionin_gkg\",tblAnforderungen[[#This Row],[Min]]*1.25,IF(tblAnforderungen[[#This Row],[Parameter]]=\"MetCys_gkg\",tblAnforderungen[[#This Row],[Min]]*1.25,IF(tblAnforderungen[[#This Row],[Parameter]]=\"Rohfett_gkg\",tblAnforderungen[[#This Row],[Min]]*2,IF(tblAnforderungen[[#This Row],[Parameter]]=\"Rohfaser_gkg\",tblAnforderungen[[#This Row],[Min]]*2,IF(tblAnforderungen[[#This Row],[Parameter]]=\"Ca_gkg\",tblAnforderungen[[#This Row],[Min]]*1.4,IF(tblAnforderungen[[#This Row],[Parameter]]=\"Pverd_gkg\",tblAnforderungen[[#This Row],[Min]]*1.3,IF(tblAnforderungen[[#This Row],[Parameter]]=\"Na_gkg\",tblAnforderungen[[#This Row],[Min]]*1.3,tblAnforderungen[[#This Row],[Min]]*1.3)))))))))))","v":10.899999999999999}]
["Rind","Bullenmast",3,12,"XP","g/kg",140,{"$f":"IF(tblAnforderungen[[#This Row],[Min]]=\"\",\"\",IF(tblAnforderungen[[#This Row],[Parameter]]=\"ME\",tblAnforderungen[[#This Row],[Min]]+0.7,IF(tblAnforderungen[[#This Row],[Parameter]]=\"XP\",tblAnforderungen[[#This Row],[Min]]*1.3,IF(tblAnforderungen[[#This Row],[Parameter]]=\"Lysin_gkg\",tblAnforderungen[[#This Row],[Min]]*1.25,IF(tblAnforderungen[[#This Row],[Parameter]]=\"Methionin_gkg\",tblAnforderungen[[#This Row],[Min]]*1.25,IF(tblAnforderungen[[#This Row],[Parameter]]=\"MetCys_gkg\",tblAnforderungen[[#This Row],[Min]]*1.25,IF(tblAnforderungen[[#This Row],[Parameter]]=\"Rohfett_gkg\",tblAnforderungen[[#This Row],[Min]]*2,IF(tblAnforderungen[[#This Row],[Parameter]]=\"Rohfaser_gkg\",tblAnforderungen[[#This Row],[Min]]*2,IF(tblAnforderungen[[#This Row],[Parameter]]=\"Ca_gkg\",tblAnforderungen[[#This Row],[Min]]*1.4,IF(tblAnforderungen[[#This Row],[Parameter]]=\"Pverd_gkg\",tblAnforderungen[[#This Row],[Min]]*1.3,IF(tblAnforderungen[[#This Row],[Parameter]]=\"Na_gkg\",tblAnforderungen[[#This Row],[Min]]*1.3,tblAnforderungen[[#This Row],[Min]]*1.3)))))))))))","v":182}]
["Rind","Bullenmast",3,12,"Lysin_gkg","g/kg",5.5,{"$f":"IF(tblAnforderungen[[#This Row],[Min]]=\"\",\"\",IF(tblAnforderungen[[#This Row],[Parameter]]=\"ME\",tblAnforderungen[[#This Row],[Min]]+0.7,IF(tblAnforderungen[[#This Row],[Parameter]]=\"XP\",tblAnforderungen[[#This Row],[Min]]*1.3,IF(tblAnforderungen[[#This Row],[Parameter]]=\"Lysin_gkg\",tblAnforderungen[[#This Row],[Min]]*1.25,IF(tblAnforderungen[[#This Row],[Parameter]]=\"Methionin_gkg\",tblAnforderungen[[#This Row],[Min]]*1.25,IF(tblAnforderungen[[#This Row],[Parameter]]=\"MetCys_gkg\",tblAnforderungen[[#This Row],[Min]]*1.25,IF(tblAnforderungen[[#This Row],[Parameter]]=\"Rohfett_gkg\",tblAnforderungen[[#This Row],[Min]]*2,IF(tblAnforderungen[[#This Row],[Parameter]]=\"Rohfaser_gkg\",tblAnforderungen[[#This Row],[Min]]*2,IF(tblAnforderungen[[#This Row],[Parameter]]=\"Ca_gkg\",tblAnforderungen[[#This Row],[Min]]*1.4,IF(tblAnforderungen[[#This Row],[Parameter]]=\"Pverd_gkg\",tblAnforderungen[[#This Row],[Min]]*1.3,IF(tblAnforderungen[[#This Row],[Parameter]]=\"Na_gkg\",tblAnforderungen[[#This Row],[Min]]*1.3,tblAnforderungen[[#This Row],[Min]]*1.3)))))))))))","v":6.875}]
["Rind","Bullenmast",3,12,"MetCys_gkg","g/kg",3.8,{"$f":"IF(tblAnforderungen[[#This Row],[Min]]=\"\",\"\",IF(tblAnforderungen[[#This Row],[Parameter]]=\"ME\",tblAnforderungen[[#This Row],[Min]]+0.7,IF(tblAnforderungen[[#This Row],[Parameter]]=\"XP\",tblAnforderungen[[#This Row],[Min]]*1.3,IF(tblAnforderungen[[#This Row],[Parameter]]=\"Lysin_gkg\",tblAnforderungen[[#This Row],[Min]]*1.25,IF(tblAnforderungen[[#This Row],[Parameter]]=\"Methionin_gkg\",tblAnforderungen[[#This Row],[Min]]*1.25,IF(tblAnforderungen[[#This Row],[Parameter]]=\"MetCys_gkg\",tblAnforderungen[[#This Row],[Min]]*1.25,IF(tblAnforderungen[[#This Row],[Parameter]]=\"Rohfett_gkg\",tblAnforderungen[[#This Row],[Min]]*2,IF(tblAnforderungen[[#This Row],[Parameter]]=\"Rohfaser_gkg\",tblAnforderungen[[#This Row],[Min]]*2,IF(tblAnforderungen[[#This Row],[Parameter]]=\"Ca_gkg\",tblAnforderungen[[#This Row],[Min]]*1.4,IF(tblAnforderungen[[#This Row],[Parameter]]=\"Pverd_gkg\",tblAnforderungen[[#This Row],[Min]]*1.3,IF(tblAnforderungen[[#This Row],[Parameter]]=\"Na_gkg\",tblAnforderungen[[#This Row],[Min]]*1.3,tblAnforderungen[[#This Row],[Min]]*1.3)))))))))))","v":4.75}]
["Rind","Bullenmast",3,12,"Ca_gkg","g/kg",6,8]
["Rind","Bullenmast",3,12,"Pverd_gkg","g/kg",2.7,{"$f":"IF(tblAnforderungen[[#This Row],[Min]]=\"\",\"\",IF(tblAnforderungen[[#This Row],[Parameter]]=\"ME\",tblAnforderungen[[#This Row],[Min]]+0.7,IF(tblAnforderungen[[#This Row],[Parameter]]=\"XP\",tblAnforderungen[[#This Row],[Min]]*1.3,IF(tblAnforderungen[[#This Row],[Parameter]]=\"Lysin_gkg\",tblAnforderungen[[#This Row],[Min]]*1.25,IF(tblAnforderungen[[#This Row],[Parameter]]=\"Methionin_gkg\",tblAnforderungen[[#This Row],[Min]]*1.25,IF(tblAnforderungen[[#This Row],[Parameter]]=\"MetCys_gkg\",tblAnforderungen[[#This Row],[Min]]*1.25,IF(tblAnforderungen[[#This Row],[Parameter]]=\"Rohfett_gkg\",tblAnforderungen[[#This Row],[Min]]*2,IF(tblAnforderungen[[#This Row],[Parameter]]=\"Rohfaser_gkg\",tblAnforderungen[[#This Row],[Min]]*2,IF(tblAnforderungen[[#This Row],[Parameter]]=\"Ca_gkg\",tblAnforderungen[[#This Row],[Min]]*1.4,IF(tblAnforderungen[[#This Row],[Parameter]]=\"Pverd_gkg\",tblAnforderungen[[#This Row],[Min]]*1.3,IF(tblAnforderungen[[#This Row],[Parameter]]=\"Na_gkg\",tblAnforderungen[[#This Row],[Min]]*1.3,tblAnforderungen[[#This Row],[Min]]*1.3)))))))))))","v":3.5100000000000002}]
["Rind","Bullenmast",3,12,"Na_gkg","g/kg",1.1000000000000001,1.5]
["Rind","Bullenmast",3,12,"Rohfett_gkg","g/kg",null,80]
["Rind","Bullenmast",3,12,"Rohfaser_gkg","g/kg",null,200]
["Milchkuh","Laktation",0,40,"ME","MJ/kg",10.5,{"$f":"IF(tblAnforderungen[[#This Row],[Min]]=\"\",\"\",IF(tblAnforderungen[[#This Row],[Parameter]]=\"ME\",tblAnforderungen[[#This Row],[Min]]+0.7,IF(tblAnforderungen[[#This Row],[Parameter]]=\"XP\",tblAnforderungen[[#This Row],[Min]]*1.3,IF(tblAnforderungen[[#This Row],[Parameter]]=\"Lysin_gkg\",tblAnforderungen[[#This Row],[Min]]*1.25,IF(tblAnforderungen[[#This Row],[Parameter]]=\"Methionin_gkg\",tblAnforderungen[[#This Row],[Min]]*1.25,IF(tblAnforderungen[[#This Row],[Parameter]]=\"MetCys_gkg\",tblAnforderungen[[#This Row],[Min]]*1.25,IF(tblAnforderungen[[#This Row],[Parameter]]=\"Rohfett_gkg\",tblAnforderungen[[#This Row],[Min]]*2,IF(tblAnforderungen[[#This Row],[Parameter]]=\"Rohfaser_gkg\",tblAnforderungen[[#This Row],[Min]]*2,IF(tblAnforderungen[[#This Row],[Parameter]]=\"Ca_gkg\",tblAnforderungen[[#This Row],[Min]]*1.4,IF(tblAnforderungen[[#This Row],[Parameter]]=\"Pverd_gkg\",tblAnforderungen[[#This Row],[Min]]*1.3,IF(tblAnforderungen[[#This Row],[Parameter]]=\"Na_gkg\",tblAnforderungen[[#This Row],[Min]]*1.3,tblAnforderungen[[#This Row],[Min]]*1.3)))))))))))","v":11.2}]
["Milchkuh","Laktation",0,40,"XP","g/kg",170,{"$f":"IF(tblAnforderungen[[#This Row],[Min]]=\"\",\"\",IF(tblAnforderungen[[#This Row],[Parameter]]=\"ME\",tblAnforderungen[[#This Row],[Min]]+0.7,IF(tblAnforderungen[[#This Row],[Parameter]]=\"XP\",tblAnforderungen[[#This Row],[Min]]*1.3,IF(tblAnforderungen[[#This Row],[Parameter]]=\"Lysin_gkg\",tblAnforderungen[[#This Row],[Min]]*1.25,IF(tblAnforderungen[[#This Row],[Parameter]]=\"Methionin_gkg\",tblAnforderungen[[#This Row],[Min]]*1.25,IF(tblAnforderungen[[#This Row],[Parameter]]=\"MetCys_gkg\",tblAnforderungen[[#This Row],[Min]]*1.25,IF(tblAnforderungen[[#This Row],[Parameter]]=\"Rohfett_gkg\",tblAnforderungen[[#This Row],[Min]]*2,IF(tblAnforderungen[[#This Row],[Parameter]]=\"Rohfaser_gkg\",tblAnforderungen[[#This Row],[Min]]*2,IF(tblAnforderungen[[#This Row],[Parameter]]=\"Ca_gkg\",tblAnforderungen[[#This Row],[Min]]*1.4,IF(tblAnforderungen[[#This Row],[Parameter]]=\"Pverd_gkg\",tblAnforderungen[[#This Row],[Min]]*1.3,IF(tblAnforderungen[[#This Row],[Parameter]]=\"Na_gkg\",tblAnforderungen[[#This Row],[Min]]*1.3,tblAnforderungen[[#This Row],[Min]]*1.3)))))))))))","v":221}]
["Milchkuh","Laktation",0,40,"Lysin_gkg","g/kg",7,{"$f":"IF(tblAnforderungen[[#This Row],[Min]]=\"\",\"\",IF(tblAnforderungen[[#This Row],[Parameter]]=\"ME\",tblAnforderungen[[#This Row],[Min]]+0.7,IF(tblAnforderungen[[#This Row],[Parameter]]=\"XP\",tblAnforderungen[[#This Row],[Min]]*1.3,IF(tblAnforderungen[[#This Row],[Parameter]]=\"Lysin_gkg\",tblAnforderungen[[#This Row],[Min]]*1.25,IF(tblAnforderungen[[#This Row],[Parameter]]=\"Methionin_gkg\",tblAnforderungen[[#This Row],[Min]]*1.25,IF(tblAnforderungen[[#This Row],[Parameter]]=\"MetCys_gkg\",tblAnforderungen[[#This Row],[Min]]*1.25,IF(tblAnforderungen[[#This Row],[Parameter]]=\"Rohfett_gkg\",tblAnforderungen[[#This Row],[Min]]*2,IF(tblAnforderungen[[#This Row],[Parameter]]=\"Rohfaser_gkg\",tblAnforderungen[[#This Row],[Min]]*2,IF(tblAnforderungen[[#This Row],[Parameter]]=\"Ca_gkg\",tblAnforderungen[[#This Row],[Min]]*1.4,IF(tblAnforderungen[[#This Row],[Parameter]]=\"Pverd_gkg\",tblAnforderungen[[#This Row],[Min]]*1.3,IF(tblAnforderungen[[#This Row],[Parameter]]=\"Na_gkg\",tblAnforderungen[[#This Row],[Min]]*1.3,tblAnforderungen[[#This Row],[Min]]*1.3)))))))))))","v":8.75}]
["Milchkuh","Laktation",0,40,"MetCys_gkg","g/kg",5,{"$f":"IF(tblAnforderungen[[#This Row],[Min]]=\"\",\"\",IF(tblAnforderungen[[#This Row],[Parameter]]=\"ME\",tblAnforderungen[[#This Row],[Min]]+0.7,IF(tblAnforderungen[[#This Row],[Parameter]]=\"XP\",tblAnforderungen[[#This Row],[Min]]*1.3,IF(tblAnforderungen[[#This Row],[Parameter]]=\"Lysin_gkg\",tblAnforderungen[[#This Row],[Min]]*1.25,IF(tblAnforderungen[[#This Row],[Parameter]]=\"Methionin_gkg\",tblAnforderungen[[#This Row],[Min]]*1.25,IF(tblAnforderungen[[#This Row],[Parameter]]=\"MetCys_gkg\",tblAnforderungen[[#This Row],[Min]]*1.25,IF(tblAnforderungen[[#This Row],[Parameter]]=\"Rohfett_gkg\",tblAnforderungen[[#This Row],[Min]]*2,IF(tblAnforderungen[[#This Row],[Parameter]]=\"Rohfaser_gkg\",tblAnforderungen[[#This Row],[Min]]*2,IF(tblAnforderungen[[#This Row],[Parameter]]=\"Ca_gkg\",tblAnforderungen[[#This Row],[Min]]*1.4,IF(tblAnforderungen[[#This Row],[Parameter]]=\"Pverd_gkg\",tblAnforderungen[[#This Row],[Min]]*1.3,IF(tblAnforderungen[[#This Row],[Parameter]]=\"Na_gkg\",tblAnforderungen[[#This Row],[Min]]*1.3,tblAnforderungen[[#This Row],[Min]]*1.3)))))))))))","v":6.25}]
["Milchkuh","Laktation",0,40,"Ca_gkg","g/kg",8,11]
["Milchkuh","Laktation",0,40,"Pverd_gkg","g/kg",3.5,{"$f":"IF(tblAnforderungen[[#This Row],[Min]]=\"\",\"\",IF(tblAnforderungen[[#This Row],[Parameter]]=\"ME\",tblAnforderungen[[#This Row],[Min]]+0.7,IF(tblAnforderungen[[#This Row],[Parameter]]=\"XP\",tblAnforderungen[[#This Row],[Min]]*1.3,IF(tblAnforderungen[[#This Row],[Parameter]]=\"Lysin_gkg\",tblAnforderungen[[#This Row],[Min]]*1.25,IF(tblAnforderungen[[#This Row],[Parameter]]=\"Methionin_gkg\",tblAnforderungen[[#This Row],[Min]]*1.25,IF(tblAnforderungen[[#This Row],[Parameter]]=\"MetCys_gkg\",tblAnforderungen[[#This Row],[Min]]*1.25,IF(tblAnforderungen[[#This Row],[Parameter]]=\"Rohfett_gkg\",tblAnforderungen[[#This Row],[Min]]*2,IF(tblAnforderungen[[#This Row],[Parameter]]=\"Rohfaser_gkg\",tblAnforderungen[[#This Row],[Min]]*2,IF(tblAnforderungen[[#This Row],[Parameter]]=\"Ca_gkg\",tblAnforderungen[[#This Row],[Min]]*1.4,IF(tblAnforderungen[[#This Row],[Parameter]]=\"Pverd_gkg\",tblAnforderungen[[#This Row],[Min]]*1.3,IF(tblAnforderungen[[#This Row],[Parameter]]=\"Na_gkg\",tblAnforderungen[[#This Row],[Min]]*1.3,tblAnforderungen[[#This Row],[Min]]*1.3)))))))))))","v":4.55}]
["Milchkuh","Laktation",0,40,"Na_gkg","g/kg",1.7,2.2999999999999998]
["Milchkuh","Laktation",0,40,"Rohfett_gkg","g/kg",null,80]
["Milchkuh","Laktation",0,40,"Rohfaser_gkg","g/kg",null,220]

{"sheet":"Phasenplan","index":9,"n_rows":7,"n_cols":3,"rows_kept":7,"cut":false,"hidden":true,"merged":[]}
["Tierart","Phase","Anteil"]
["Pute","Starter 1",12]
["Pute","Starter 2",12]
["Pute","Grower 1",20]
["Pute","Grower 2",20]
["Pute","Finisher 1",18]
["Pute","Finisher 2",18]

{"sheet":"Optimierung","index":10,"n_rows":100,"n_cols":24,"rows_kept":100,"cut":false,"hidden":true,"merged":[]}
[null,"Pute"]
[null,"Finisher 2",null,null,null,null,null,null,null,null,null,null,null,null,null,null,null,null,null,null,null,null,"Alle_OK",{"$f":"AND(W4:W13)","v":false}]
[]
["Gesamt_kg_pro_t",{"$f":"SUM(B6:B100)","v":1000.0000000000001},null,null,null,null,null,null,null,null,null,null,null,null,null,"Gesamtkosten_€/t",{"$f":"SUMPRODUCT(B6:INDEX(B:B,ROW(C6)+ROWS(_xlfn.ANCHORARRAY(C6))-1),INDEX(_xlfn.ANCHORARRAY(C6),,3))","v":222.20637355278353},null,"Ist_ME_MJkg",{"$f":"SUMPRODUCT(B6:INDEX(B:B,ROW(C6)+ROWS(_xlfn.ANCHORARRAY(C6))-1),INDEX(_xlfn.ANCHORARRAY(C6),,5))/1000","v":9.1016940872231302},{"$f":"INDEX(_xlfn._xlws.FILTER(tblAnforderungen[Min],(tblAnforderungen[Tierart]=$B$1)*(tblAnforderungen[Phase]=$B$2)*(tblAnforderungen[Parameter]=\"ME\")),1)","v":11.8},{"$f":"INDEX(_xlfn._xlws.FILTER(tblAnforderungen[Max],(tblAnforderungen[Tierart]=$B$1)*(tblAnforderungen[Phase]=$B$2)*(tblAnforderungen[Parameter]=\"ME\")),1)","v":12.5},{"$f":"AND(T4>=U4,T4<=V4)","v":false}]
[null,"Menge_kg_1000","Komponente",null,"Menge_kg_1000",null,null,null,null,null,null,null,null,null,null,null,null,null,"Ist_XP_gkg",{"$f":"SUMPRODUCT(B6:INDEX(B:B,ROW(C6)+ROWS(_xlfn.ANCHORARRAY(C6))-1),INDEX(_xlfn.ANCHORARRAY(C6),,6))/1000","v":98.871989710675891},{"$f":"INDEX(_xlfn._xlws.FILTER(tblAnforderungen[Min],(tblAnforderungen[Tierart]=$B$1)*(tblAnforderungen[Phase]=$B$2)*(tblAnforderungen[Parameter]=\"XP\")),1)","v":175},{"$f":"INDEX(_xlfn._xlws.FILTER(tblAnforderungen[Max],(tblAnforderungen[Tierart]=$B$1)*(tblAnforderungen[Phase]=$B$2)*(tblAnforderungen[Parameter]=\"XP\")),1)","v":227.5},false]
[null,0,{"$f":"_xlfn._xlws.FILTER(tblKomponenten[[Komponente]:[Na_gkg]],tblKomponenten[Verfügbar]=TRUE)","v":"Mais"},"Getreide",0.27,true,13.5,80,2.7,1.8,3.6,40,20,0.3,2.2000000000000002,0.1,null,null,"Ist_Lysin_gkg",{"$f":"SUMPRODUCT(B6:INDEX(B:B,ROW(C6)+ROWS(_xlfn.ANCHORARRAY(C6))-1),INDEX(_xlfn.ANCHORARRAY(C6),,7))/1000","v":3.3400823926551362},{"$f":"INDEX(_xlfn._xlws.FILTER(tblAnforderungen[Min],(tblAnforderungen[Tierart]=$B$1)*(tblAnforderungen[Phase]=$B$2)*(tblAnforderungen[Parameter]=\"Lysin_gkg\")),1)","v":11},{"$f":"INDEX(_xlfn._xlws.FILTER(tblAnforderungen[Max],(tblAnforderungen[Tierart]=$B$1)*(tblAnforderungen[Phase]=$B$2)*(tblAnforderungen[Parameter]=\"Lysin_gkg\")),1)","v":13.75},false]
[null,0,"Weizen","Getreide",0.22,true,13.2,115,3.4,1.9,3.5,18,25,0.5,2.5,0.1,null,null,"Ist_Methionin_gkg",{"$f":"SUMPRODUCT(B6:INDEX(B:B,ROW(C6)+ROWS(_xlfn.ANCHORARRAY(C6))-1),INDEX(_xlfn.ANCHORARRAY(C6),,8))/1000","v":5.3782180040305176},{"$f":"INDEX(_xlfn._xlws.FILTER(tblAnforderungen[Min],(tblAnforderungen[Tierart]=$B$1)*(tblAnforderungen[Phase]=$B$2)*(tblAnforderungen[Parameter]=\"MetCys_gkg\")),1)","v":9},{"$f":"INDEX(_xlfn._xlws.FILTER(tblAnforderungen[Max],(tblAnforderungen[Tierart]=$B$1)*(tblAnforderungen[Phase]=$B$2)*(tblAnforderungen[Parameter]=\"MetCys_gkg\")),1)","v":11.25},false]
[null,0,"Gerste","Getreide",0.2,true,12.8,110,4,1.9,3.6,25,50,0.6,2.2999999999999998,0.1,null,null,"Ist_MetCys_gkg",{"$f":"SUMPRODUCT(B6:INDEX(B:B,ROW(C6)+ROWS(_xlfn.ANCHORARRAY(C6))-1),INDEX(_xlfn.ANCHORARRAY(C6),,9))/1000","v":6.6559448220199249},{"$f":"INDEX(_xlfn._xlws.FILTER(tblAnforderungen[Min],(tblAnforderungen[Tierart]=$B$1)*(tblAnforderungen[Phase]=$B$2)*(tblAnforderungen[Parameter]=\"MetCys_gkg\")),1)","v":9},{"$f":"INDEX(_xlfn._xlws.FILTER(tblAnforderungen[Max],(tblAnforderungen[Tierart]=$B$1)*(tblAnforderungen[Phase]=$B$2)*(tblAnforderungen[Parameter]=\"MetCys_gkg\")),1)","v":11.25},false]
[null,0,"Triticale","Getreide",0.2,true,13,120,4.2,1.9,3.7,20,25,0.6,2.4,0.1,null,null,"Ist_Rohfett_gkg",{"$f":"SUMPRODUCT(B6:INDEX(B:B,ROW(C6)+ROWS(_xlfn.ANCHORARRAY(C6))-1),INDEX(_xlfn.ANCHORARRAY(C6),,10))/1000","v":17.370050426537702},{"$f":"INDEX(_xlfn._xlws.FILTER(tblAnforderungen[Min],(tblAnforderungen[Tierart]=$B$1)*(tblAnforderungen[Phase]=$B$2)*(tblAnforderungen[Parameter]=\"Rohfett_gkg\")),1)","v":0},{"$f":"INDEX(_xlfn._xlws.FILTER(tblAnforderungen[Max],(tblAnforderungen[Tierart]=$B$1)*(tblAnforderungen[Phase]=$B$2)*(tblAnforderungen[Parameter]=\"Rohfett_gkg\")),1)","v":80},true]
[null,668.28680931952613,"Roggen","Getreide",0.19,true,12.5,105,3.5,1.8,3.3,20,35,0.5,2.2999999999999998,0.1,null,null,"Ist_Rohfaser_gkg",{"$f":"SUMPRODUCT(B6:INDEX(B:B,ROW(C6)+ROWS(_xlfn.ANCHORARRAY(C6))-1),INDEX(_xlfn.ANCHORARRAY(C6),,11))/1000","v":29.396509686404183},{"$f":"INDEX(_xlfn._xlws.FILTER(tblAnforderungen[Min],(tblAnforderungen[Tierart]=$B$1)*(tblAnforderungen[Phase]=$B$2)*(tblAnforderungen[Parameter]=\"Rohfaser_gkg\")),1)","v":0},{"$f":"INDEX(_xlfn._xlws.FILTER(tblAnforderungen[Max],(tblAnforderungen[Tierart]=$B$1)*(tblAnforderungen[Phase]=$B$2)*(tblAnforderungen[Parameter]=\"Rohfaser_gkg\")),1)","v":65},true]
[null,0,"Hafer","Getreide",0.21,true,11.5,110,4.5,2,3.9,55,100,0.8,2,0.1,null,null,"Ist_Ca_gkg",{"$f":"SUMPRODUCT(B6:INDEX(B:B,ROW(C6)+ROWS(_xlfn.ANCHORARRAY(C6))-1),INDEX(_xlfn.ANCHORARRAY(C6),,12))/1000","v":93.739582746955222},{"$f":"INDEX(_xlfn._xlws.FILTER(tblAnforderungen[Min],(tblAnforderungen[Tierart]=$B$1)*(tblAnforderungen[Phase]=$B$2)*(tblAnforderungen[Parameter]=\"Ca_gkg\")),1)","v":6.5},{"$f":"INDEX(_xlfn._xlws.FILTER(tblAnforderungen[Max],(tblAnforderungen[Tierart]=$B$1)*(tblAnforderungen[Phase]=$B$2)*(tblAnforderungen[Parameter]=\"Ca_gkg\")),1)","v":8},false]
[null,0,"Maiskleberfutter","Getreidenebenprodukt",0.23,true,11.5,210,5,3,5.5,40,120,0.5,3,0.3,null,null,"Ist_Pverd_gkg",{"$f":"SUMPRODUCT(B6:INDEX(B:B,ROW(C6)+ROWS(_xlfn.ANCHORARRAY(C6))-1),INDEX(_xlfn.ANCHORARRAY(C6),,13))/1000","v":5.1750124664762627},{"$f":"INDEX(_xlfn._xlws.FILTER(tblAnforderungen[Min],(tblAnforderungen[Tierart]=$B$1)*(tblAnforderungen[Phase]=$B$2)*(tblAnforderungen[Parameter]=\"Pverd_gkg\")),1)","v":3.8},{"$f":"INDEX(_xlfn._xlws.FILTER(tblAnforderungen[Max],(tblAnforderungen[Tierart]=$B$1)*(tblAnforderungen[Phase]=$B$2)*(tblAnforderungen[Parameter]=\"Pverd_gkg\")),1)","v":4.9399999999999995},false]
[null,0,"Maisklebermehl","Getreidenebenprodukt",0.65,true,12,600,12,18,22,60,20,0.3,4,0.3,null,null,"Ist_Na_gkg",{"$f":"SUMPRODUCT(B6:INDEX(B:B,ROW(C6)+ROWS(_xlfn.ANCHORARRAY(C6))-1),INDEX(_xlfn.ANCHORARRAY(C6),,14))/1000","v":9.1855644932872488E-2},{"$f":"INDEX(_xlfn._xlws.FILTER(tblAnforderungen[Min],(tblAnforderungen[Tierart]=$B$1)*(tblAnforderungen[Phase]=$B$2)*(tblAnforderungen[Parameter]=\"Na_gkg\")),1)","v":1.4},{"$f":"INDEX(_xlfn._xlws.FILTER(tblAnforderungen[Max],(tblAnforderungen[Tierart]=$B$1)*(tblAnforderungen[Phase]=$B$2)*(tblAnforderungen[Parameter]=\"Na_gkg\")),1)","v":1.7},false]
[null,0,"Weizenkleie","Getreidenebenprodukt",0.21,true,9,160,5,2.2000000000000002,4.5,45,110,1.3,3,0.3]
[null,0,"Weizenschrot","Getreide",0.22,true,13,120,3.5,2,3.7,20,30,0.6,2.5,0.1]
[null,0,"Gerstenschrot","Getreide",0.21,true,12.8,110,4,1.9,3.6,25,50,0.6,2.2999999999999998,0.1]
[null,0,"Sojaschrot 48","Eiweißträger",0.4,true,12,480,28,6,11,10,35,3,2.5,0.1]
[null,0,"Sojaschrot 44","Eiweißträger",0.37,true,11.5,440,25,5.5,10,15,55,3,2.2999999999999998,0.1]
[null,50.053928001839751,"Rapskuchen","Eiweißträger",0.28999999999999998,true,11,340,20,6.5,12,80,120,7,4,0.5]
[null,0,"Rapsschrot","Eiweißträger",0.26,true,10.5,360,21,7,13,35,120,7,4,0.5]
[null,0,"Ackerbohnen","Eiweißträger",0.32,true,12,260,18,2.2999999999999998,4.8,15,70,2,2.2999999999999998,0.1]
[null,0,"Erbsen","Eiweißträger",0.3,true,12.5,230,17,2,4.3,15,60,1.5,2.1,0.1]
[null,0,"Lupinen weiß","Eiweißträger",0.38,true,11,360,21,3.5,6.5,60,150,2.5,2.5,0.1]
[null,0,"Lupinen blau","Eiweißträger",0.36,true,10.5,340,20,3.5,6.5,55,160,2.5,2.5,0.1]
[null,0,"Geflügelproteinmehl","Tierisches Protein",1.2,true,12,600,40,12,22,120,0,50,30,30]
[null,0,"Pflanzenöl","Öl/Fett",1.2,true,35,0,0,0,0,1000,0,0,0,0]
[null,0,"Rapsöl","Öl/Fett",1.1000000000000001,true,35,0,0,0,0,1000,0,0,0,0]
[null,0,"Sojaöl","Öl/Fett",1.1499999999999999,true,35,0,0,0,0,1000,0,0,0,0]
[null,0,"Melasse","Nebenprodukt Energie",0.22,true,11.5,60,2,1,2,5,0,7,0.5,5]
[null,0,"Bierhefe","Nebenprodukt Eiweiß",0.65,true,11.5,450,28,6,11,15,50,3,3,3]
[null,0,"Kartoffelprotein","Nebenprodukt Eiweiß",0.75,true,10.5,780,60,18,30,5,20,2,3,5]
[null,0,"Weizen-DDGS","DDGS",0.27,true,11.5,320,11,6,10,60,120,2.5,4,3]
[null,236.81155450241684,"Kalkstein","Mineral",0.09,true,0,0,0,0,0,0,0,380,0,0]
[null,11.477604275388982,"Monocalciumphosphat (MCP)","Mineral",0.57999999999999996,true,0,0,0,0,0,0,0,170,220,0]
[null,5.070356402491206,"Dicalciumphosphat (DCP)","Mineral",0.52,true,0,0,0,0,0,0,0,220,180,0]
[null,0,"Dinatriumphosphat","Mineral",1.6,true,0,0,0,0,0,0,0,0,190,190]
[null,0,"Natriumchlorid (Salz)","Mineral",0.12,true,0,0,0,0,0,0,0,0,0,390]
[null,1.5325889527176373,"Magnesiumoxid","Mineral",0.95,true,0,0,0,0,0,0,0,0,0,0]
[null,0,"L-Lysin","Aminosäure",2.1,true,12,780,780,0,0,0,0,0,0,0]
[null,6.4165853587390194,"DL-Methionin","Aminosäure",3.2,true,12,600,0,600,600,0,0,0,0,0]
[null,10.043061533662454,"L-Threonin","Aminosäure",2.8,true,12,780,0,0,0,0,0,0,0,0]
[null,0,"L-Tryptophan","Aminosäure",9,true,12,780,0,0,0,0,0,0,0,0]
[null,0,"Arginin","Aminosäure",6,true,12,780,0,0,0,0,0,0,0,0]
[null,0,"Geflügel-Premix","Premix",1.6,true,0,0,0,0,0,0,0,0,0,0]
[null,0,"Puten-Premix","Premix",1.7,true,0,0,0,0,0,0,0,0,0,0]
[null,0,"Broiler-Premix","Premix",1.7,true,0,0,0,0,0,0,0,0,0,0]
[null,0,"Legehennen-Premix","Premix",1.5,true,0,0,0,0,0,0,0,0,0,0]
[null,0,"Sauen-Premix","Premix",1.4,true,0,0,0,0,0,0,0,0,0,0]
[null,0,"Enzym-Mix","Zusatzstoff",12,true,0,0,0,0,0,0,0,0,0,0]
[null,0,"Kokzidiostatikum","Zusatzstoff",15,true,0,0,0,0,0,0,0,0,0,0]
[null,0,"Buttersäuresalz","Zusatzstoff",2.5,true,0,0,0,0,0,0,0,0,0,0]
[null,0,"Organische Säuren","Zusatzstoff",1.4,true,0,0,0,0,0,0,0,0,0,0]
[null,0]
[null,0,null,null,0]
[null,0,null,null,0]
[null,0,null,null,0]
[null,0,null,null,0]
[null,0,null,null,0]
[null,0,null,null,0]
[null,0,null,null,0]
[null,0,null,null,0]
[null,0,null,null,0]
[null,0,null,null,0]
[null,0,null,null,0]
[null,0,null,null,0]
[null,0,null,null,0]
[null,0,null,null,0]
[null,0,null,null,0]
[null,0,null,null,0]
[null,0,null,null,0]
[null,0,null,null,0]
[null,0,null,null,0]
[null,0,null,null,0]
[null,0,null,null,0]
[null,0,null,null,0]
[null,0,null,null,0]
[null,0,null,null,0]
[null,0,null,null,0]
[null,0,null,null,0]
[null,0,null,null,0]
[null,0,null,null,0]
[null,0,null,null,0]
[null,0,null,null,0]
[null,0,null,null,0]
[null,0,null,null,0]
[null,0,null,null,0]
[null,0,null,null,0]
[null,0,null,null,0]
[null,0,null,null,0]
[null,0,null,null,0]
[null,0,null,null,0]
[null,0,null,null,0]
[null,0,null,null,0]
[null,0,null,null,0]
[null,0,null,null,0]
[null,0,null,null,0]
[null,0,null,null,0]
[null,0,null,null,0]
[null,0,null,null,0]
[null,10.307511653218093,null,null,0]